TRANS No,Service Area Categorisation,Service Division Categorisation,Responsible Unit,Unit Code,Expenses Type,Expenses Sub Type,Exp Code,Narrative,Amount,Invoice Date,Cap/Rev,Supplier Name
1,Central Services,SupS Customer Services and Dev,Data protection,A01016,Supplies & Services           ,Services                      ,DF03,Consultants                             ,"1,193.75",06/10/2013,R,REDACTED
2,Central Services,SupS Chief Execs,Local Involvement Network,A01039,Third Party Payments          ,Private Contractors           ,EH10,Contract Payments                       ,"10,787.08",01/10/2013,R,MERTON VOLUNTARY SERV COUNCIL 
3,Central Services,SupS Chief Execs,Local Involvement Network,A01039,Third Party Payments          ,Private Contractors           ,EH10,Contract Payments                       ,828,30/09/2013,R,VOICEABILITY                  
4,Central Services,SupS Chief Execs,Local Involvement Network,A01039,Third Party Payments          ,Private Contractors           ,EH10,Contract Payments                       ,"3,381.00",07/10/2013,R,VOICEABILITY                  
5,Cultural Env Reg&Plan Services,Comm Safety (Crime Reduction),Crime and Strategy Team,A01100,Third Party Payments          ,Private Contractors           ,EH02,Miscellaneous Hired Services            ,"19,000.00",16/10/2013,R,VICTIM SUPPORT                
6,Cultural Env Reg&Plan Services,Comm Safety (Crime Reduction),CCTV,A01200,Supplies & Services           ,Equip Furniture/Materials     ,DA01,Equipment - R & M                       ,"10,346.53",19/09/2013,R,EUROVIA INFRASTRUCTURE LTD    
7,Cultural Env Reg&Plan Services,Comm Safety (Crime Reduction),CCTV,A01200,Supplies & Services           ,Equip Furniture/Materials     ,DA01,Equipment - R & M                       ,704.35,20/09/2013,R,EUROVIA INFRASTRUCTURE LTD    
8,Cultural Env Reg&Plan Services,Comm Safety (Crime Reduction),CCTV,A01200,Supplies & Services           ,Comms and Computing           ,DG15,Network Maintenance                     ,"2,719.51",01/10/2013,R,BT REDCARE                    
9,Cultural Env Reg&Plan Services,Comm Safety (Crime Reduction),CCTV,A01200,Supplies & Services           ,Comms and Computing           ,DG15,Network Maintenance                     ,"18,741.01",02/09/2013,R,BT REDCARE                    
10,Adult Social Care,Substance Abuse (Addictions),DAAT Commissioning,A01300,Third Party Payments          ,Private Contractors           ,EH02,Miscellaneous Hired Services            ,"1,200.00",04/10/2013,R,GLENCOT LIMITED               
11,Adult Social Care,Substance Abuse (Addictions),DAAT Commissioning,A01300,Third Party Payments          ,Private Contractors           ,EH02,Miscellaneous Hired Services            ,"1,200.00",07/10/2013,R,GLENCOT LIMITED               
12,Central Services,SupS Chief Execs,NON-STATUTORY MARKETING & COMM,A02019,Supplies & Services           ,Services                      ,DF02,Misc Advertising/Publicity              ,537.5,27/08/2013,R,JCDECAUX UNITED KINGDOM       
13,Central Services,SupS Chief Execs,NON-STATUTORY MARKETING & COMM,A02019,Supplies & Services           ,Services                      ,DF02,Misc Advertising/Publicity              ,537.5,24/09/2013,R,JCDECAUX UNITED KINGDOM       
14,Central Services,SupS Chief Execs,NON-STATUTORY MARKETING & COMM,A02019,Supplies & Services           ,Services                      ,DF02,Misc Advertising/Publicity              ,537.5,27/08/2013,R,JCDECAUX UNITED KINGDOM       
15,Central Services,SupS Chief Execs,NON-STATUTORY MARKETING & COMM,A02019,Supplies & Services           ,Services                      ,DF02,Misc Advertising/Publicity              ,537.5,27/08/2013,R,JCDECAUX UNITED KINGDOM       
16,Central Services,SupS Chief Execs,NON-STATUTORY MARKETING & COMM,A02019,Supplies & Services           ,Services                      ,DF02,Misc Advertising/Publicity              ,"1,515.00",01/10/2013,R,TIME & LEISURE                
17,Central Services,SupS Chief Execs,NON-STATUTORY MARKETING & COMM,A02019,Supplies & Services           ,Services                      ,DF35,Graphic Design                          ,"1,650.00",19/09/2013,R,CUBIQUITY MEDIA               
18,Central Services,SupS Chief Execs,NON-STATUTORY MARKETING & COMM,A02019,Supplies & Services           ,Services                      ,DF35,Graphic Design                          ,"2,105.00",10/09/2013,R,DOMINO 4 LIMITED              
19,Central Services,SupS Chief Execs,NON-STATUTORY MARKETING & COMM,A02019,Supplies & Services           ,Services                      ,DF35,Graphic Design                          ,"3,465.00",07/10/2013,R,THE BIG IDEA (MARK BUCKINGHAM)
20,Central Services,SupS Chief Execs,Democratic Services,A02023,Employees                     ,Direct Employee Expenses      ,AA17,Agency Staff & Casual Paymts            ,521.25,03/10/2013,R,REDACTED
21,Central Services,SupS Chief Execs,Press and Public Relations.,A02026,Supplies & Services           ,Prntng Stnry Gen Off Exp      ,DE20,Council Magazine                        ,"3,892.00",24/09/2013,R,LONDON LETTERBOX MARKETING    
22,Central Services,SupS Chief Execs,Press and Public Relations.,A02026,Supplies & Services           ,Prntng Stnry Gen Off Exp      ,DE20,Council Magazine                        ,650,17/10/2013,R,REDACTED
23,Central Services,SupS Chief Execs,Press and Public Relations.,A02026,Supplies & Services           ,Expenses                      ,DH14,Prizes and Awards                       ,"1,190.00",16/10/2013,R,PORTOBELLO PARTNERSHIPS LTD   
24,Central Services,SupS Chief Execs,Press and Public Relations.,A02026,Supplies & Services           ,Expenses                      ,DH21,Christma Lights                         ,"4,700.00",09/10/2013,R,BLACHERE ILLUMINATION         
25,CS -Oth Operating Inc & Expend,T/A Corporate Services,Prtng Jobs - Ext Agncy,A03041,Supplies & Services           ,Prntng Stnry Gen Off Exp      ,DE01,External Printing                       ,570,30/09/2013,R,IMPRESS PRINT SERVICES LTD    
26,CS -Oth Operating Inc & Expend,T/A Corporate Services,Prtng Jobs - Ext Agncy,A03041,Supplies & Services           ,Prntng Stnry Gen Off Exp      ,DE01,External Printing                       ,"1,881.00",18/10/2013,R,H CHARLESWORTH & CO LTD       
27,CS -Oth Operating Inc & Expend,T/A Corporate Services,Prtng Jobs - Ext Agncy,A03041,Supplies & Services           ,Prntng Stnry Gen Off Exp      ,DE01,External Printing                       ,"1,536.00",02/10/2013,R,THE STATIONERY OFFICE LTD     
28,CS -Oth Operating Inc & Expend,T/A Corporate Services,Prtng Jobs - Ext Agncy,A03041,Supplies & Services           ,Prntng Stnry Gen Off Exp      ,DE01,External Printing                       ,"8,508.00",13/09/2013,R,ULTIMATE INVOICE FINANCE LTD  
29,CS -Oth Operating Inc & Expend,T/A Corporate Services,PrintUnit-HighVolPhtcopying,A03042,Supplies & Services           ,Equip Furniture/Materials     ,DA06,Paper-Internal Print Jobs               ,"7,800.00",30/10/2013,R,RAINBOW OFFICE SUPPLIES LTD   
30,CS -Oth Operating Inc & Expend,T/A Corporate Services,Translation Services,A04060,Supplies & Services           ,Services                      ,DF45,Payment of Sessional Workers            ,699,30/09/2013,R,COSMIC EUROPE LIMTED          
31,CS -Oth Operating Inc & Expend,T/A Corporate Services,Translation Services,A04060,Supplies & Services           ,Services                      ,DF45,Payment of Sessional Workers            ,740,31/08/2013,R,COSMIC EUROPE LIMTED          
32,CS -Oth Operating Inc & Expend,T/A Corporate Services,Translation Services,A04060,Supplies & Services           ,Services                      ,DF45,Payment of Sessional Workers            ,750,31/08/2013,R,COSMIC EUROPE LIMTED          
33,CS -Oth Operating Inc & Expend,T/A Corporate Services,Translation Services,A04060,Supplies & Services           ,Services                      ,DF45,Payment of Sessional Workers            ,530,31/08/2013,R,COSMIC EUROPE LIMTED          
34,CS -Oth Operating Inc & Expend,T/A Corporate Services,Translation Services,A04060,Supplies & Services           ,Services                      ,DF45,Payment of Sessional Workers            ,765,30/09/2013,R,COSMIC EUROPE LIMTED          
35,CS -Oth Operating Inc & Expend,T/A Corporate Services,Translation Services,A04060,Supplies & Services           ,Services                      ,DF45,Payment of Sessional Workers            ,965,30/09/2013,R,COSMIC EUROPE LIMTED          
36,CS -Oth Operating Inc & Expend,T/A Corporate Services,Translation Services,A04060,Supplies & Services           ,Services                      ,DF45,Payment of Sessional Workers            ,620,30/09/2013,R,UBIQUS UK LTD                 
37,Central Services,SupS Best Value,Merton Link,A04070,Supplies & Services           ,Comms and Computing           ,DG15,Network Maintenance                     ,879.8,01/10/2013,R,NORTHGATE INFORMATION SOLUTION
38,Central Services,Grants - Voluntary Groups,VOLUNTARY SECTOR COORDINATION,A04082,Supplies & Services           ,Grants and Subscriptions      ,DJ01,Grants                                  ,"21,091.50",11/10/2013,R,MERTON VOLUNTARY SERV COUNCIL 
39,Central Services,Grants - Voluntary Groups,VOLUNTARY SECTOR COORDINATION,A04082,Supplies & Services           ,Grants and Subscriptions      ,DJ01,Grants                                  ,"177,878.00",16/10/2013,R,MERTON CITIZEN ADVICE BUREAU  
40,Central Services,Grants - Voluntary Groups,VOLUNTARY SECTOR COORDINATION,A04082,Supplies & Services           ,Grants and Subscriptions      ,DJ01,Grants                                  ,"27,000.00",11/10/2013,R,SW LONDON LAW CENTRES         
41,Central Services,Grants - Voluntary Groups,VOLUNTARY SECTOR COORDINATION,A04082,Supplies & Services           ,Grants and Subscriptions      ,DJ01,Grants                                  ,"10,000.00",11/10/2013,R,MERTON COMMUNITY TRANSPORT    
42,Central Services,Grants - Voluntary Groups,VOLUNTARY SECTOR COORDINATION,A04082,Supplies & Services           ,Grants and Subscriptions      ,DJ01,Grants                                  ,"5,000.00",11/10/2013,R,COMMONSIDE COMMUNITY DEV TRUST
43,Central Services,Grants - Voluntary Groups,VOLUNTARY SECTOR COORDINATION,A04082,Supplies & Services           ,Grants and Subscriptions      ,DJ01,Grants                                  ,"11,140.00",11/10/2013,R,MERTON VOLUNTARY SERV COUNCIL 
44,Central Services,Grants - Voluntary Groups,VOLUNTARY SECTOR COORDINATION,A04082,Supplies & Services           ,Grants and Subscriptions      ,DJ01,Grants                                  ,"28,303.00",11/10/2013,R,SPRINGFIELD LAW CENTRE LTD
45,Central Services,Grants - Voluntary Groups,VOLUNTARY SECTOR COORDINATION,A04082,Supplies & Services           ,Grants and Subscriptions      ,DJ01,Grants                                  ,"11,881.00",11/10/2013,R,MERTON CIL                    
46,Central Services,Grants - Voluntary Groups,VOLUNTARY SECTOR COORDINATION,A04082,Supplies & Services           ,Grants and Subscriptions      ,DJ01,Grants                                  ,"12,457.50",11/10/2013,R,VOLUNTEER CENTRE MERTON       
47,Central Services,Grants - Voluntary Groups,VOLUNTARY SECTOR COORDINATION,A04082,Supplies & Services           ,Grants and Subscriptions      ,DJ04,Subscriptions                           ,"54,987.75",02/10/2013,R,LONDON COUNCILS               
48,Central Services,SupS Comm and Member Services,COMMERICIAL SERVICES,A04085,Employees                     ,Direct Employee Expenses      ,AA17,Agency Staff & Casual Paymts            ,"2,712.00",27/09/2013,R,REDACTED
49,Central Services,SupS Comm and Member Services,COMMERICIAL SERVICES,A04085,Employees                     ,Direct Employee Expenses      ,AA17,Agency Staff & Casual Paymts            ,"3,390.00",03/10/2013,R,REDACTED
50,Central Services,SupS Health & Safety,Learning and Development,B06146,Employees                     ,Indirect Employee Expenses    ,AB56,Internal Training Costs                 ,502,18/09/2013,R,INST.OF CEMETERY & CREMATORIUM
51,Central Services,SupS Health & Safety,Learning and Development,B06146,Employees                     ,Indirect Employee Expenses    ,AB56,Internal Training Costs                 ,"5,200.00",19/09/2013,R,TREE LIFE ARBHORICULTURAL CONS
52,Central Services,SupS Health & Safety,Learning and Development,B06146,Employees                     ,Indirect Employee Expenses    ,AB57,EXTERNAL TRAINING COSTS                 ,"3,193.00",25/10/2013,R,CIWM                          
53,Central Services,SupS Health & Safety,Learning and Development,B06146,Employees                     ,Indirect Employee Expenses    ,AB57,EXTERNAL TRAINING COSTS                 ,"1,661.65",30/09/2013,R,ACT NOW TRAINING LTD          
54,Central Services,SupS Health & Safety,Learning and Development,B06146,Employees                     ,Indirect Employee Expenses    ,AB57,EXTERNAL TRAINING COSTS                 ,"3,350.00",29/09/2013,R,UNIVERSITY OF WESTMINSTER     
55,Central Services,SupS Health & Safety,Learning and Development,B06146,Employees                     ,Indirect Employee Expenses    ,AB57,EXTERNAL TRAINING COSTS                 ,"1,940.00",09/09/2013,R,CIPFA BUSINESS LTD            
56,Central Services,SupS Health & Safety,Learning and Development,B06146,Employees                     ,Indirect Employee Expenses    ,AB57,EXTERNAL TRAINING COSTS                 ,"1,660.00",25/09/2013,R,SERCO LTD                     
57,Central Services,SupS Health & Safety,Learning and Development,B06146,Employees                     ,Indirect Employee Expenses    ,AB57,EXTERNAL TRAINING COSTS                 ,500,24/09/2013,R,GRANT RICHES COMM. CONSUL.    
58,Central Services,SupS Health & Safety,Learning and Development,B06146,Employees                     ,Indirect Employee Expenses    ,AB57,EXTERNAL TRAINING COSTS                 ,"6,600.00",02/08/2013,R,JB INTERNATIONAL              
59,Central Services,SupS Health & Safety,Learning and Development,B06146,Employees                     ,Indirect Employee Expenses    ,AB57,EXTERNAL TRAINING COSTS                 ,"1,940.00",09/09/2013,R,CIPFA BUSINESS LTD            
60,Central Services,SupS Health & Safety,Learning and Development,B06146,Employees                     ,Indirect Employee Expenses    ,AB57,EXTERNAL TRAINING COSTS                 ,660,11/02/2013,R,PLANET TRAINING               
61,Central Services,SupS Health & Safety,Learning and Development,B06146,Employees                     ,Indirect Employee Expenses    ,AB57,EXTERNAL TRAINING COSTS                 ,"1,510.00",23/07/2013,R,MORLEY LLOYD                  
62,Central Services,SupS Health & Safety,Learning and Development,B06146,Employees                     ,Indirect Employee Expenses    ,AB57,EXTERNAL TRAINING COSTS                 ,"1,525.00",31/08/2013,R,CROFT MANAGEMENT CENTRE       
63,Central Services,SupS Health & Safety,Learning and Development,B06146,Employees                     ,Indirect Employee Expenses    ,AB57,EXTERNAL TRAINING COSTS                 ,699.98,26/09/2013,R,THE HUB EVENTS LIMITED        
64,Central Services,SupS Health & Safety,Learning and Development,B06146,Employees                     ,Indirect Employee Expenses    ,AB57,EXTERNAL TRAINING COSTS                 ,"3,050.00",11/09/2013,R,CIPFA BUSINESS LTD            
65,Central Services,SupS Health & Safety,Learning and Development,B06146,Employees                     ,Indirect Employee Expenses    ,AB57,EXTERNAL TRAINING COSTS                 ,"4,150.00",22/10/2013,R,CLAUDIUS CONSULTING LTD       
66,Central Services,SupS Health & Safety,Learning and Development,B06146,Supplies & Services           ,Catering                      ,DB50,Refreshment at Meetings                 ,540,02/10/2013,R,VILLANI GROUP                 
67,Central Services,SupS Health & Safety,Learning and Development,B06146,Supplies & Services           ,Services                      ,DF03,Consultants                             ,"6,315.00",16/09/2013,R,SOLACE ENTERPRISE LIMITED     
68,Central Services,SupS Health & Safety,Departmental HR - CSF,B06148,Employees                     ,Indirect Employee Expenses    ,AB02,Recruitment Adverts                     ,"19,200.00",25/07/2013,R,LONDON BOROUGH OF SUTTON      
126,,,Acquisitions Budget                     ,CA003MA,Acquisition of Land and Existing Buildings,,A1,,"27,000.00",25/09/2013,C,CUNNINGTONS SOLICITORS        
127,,,Acquisitions Budget                     ,CA003MA,Acquisition of Land and Existing Buildings,,A1,,730,21/08/2013,C,SITECHNICS LIMITED            
128,,,Laptops for Social Care Mngrs           ,CC018EA,Vehicles Plant Equipment and Machinery,,D3,,"1,364.13",20/09/2013,C,SPECIALIST COMPUTER CENT. PLC 
129,,,Laptops for Other Staff                 ,CC018EB,Vehicles Plant Equipment and Machinery,,D3,,"3,310.00",18/09/2013,C,AUDITWARE SYSTEMS LTD         
130,,,Merton Information Portal               ,CC018FD,Vehicles Plant Equipment and Machinery,,D5,,"29,250.00",16/10/2013,C,OPEN OBJECTS SOFTWARE LTD     
131,,,Merton Dementia Hub                     ,CC021AA,New Construction Conversion and Renovation,,B4,,500,10/09/2013,C,KC DRAINS LTD                 
132,,,Disabled Facilities Grant DCLG          ,CE004RA,Other Capital Expenditure,,E1,,"2,287.03",22/10/2013,C,ASCENDIT LIFTS LTD            
133,,,Disabled Facilities Grant DCLG          ,CE004RA,Other Capital Expenditure,,E1,,"4,845.00",22/10/2013,C,ASCENDIT LIFTS LTD            
134,,,Disabled Facilities Grant DCLG          ,CE004RA,Other Capital Expenditure,,E1,,"3,670.12",22/10/2013,C,STAYING FIRST                 
135,,,Disabled Facilities Grant DCLG          ,CE004RA,Other Capital Expenditure,,E1,,"5,965.00",02/10/2013,C,TBS ADAPTATIONS LTD           
136,,,Disabled Facilities Grant DCLG          ,CE004RA,Other Capital Expenditure,,E1,,"1,671.20",15/10/2013,C,STAYING FIRST                 
137,,,Disabled Facilities Grant DCLG          ,CE004RA,Other Capital Expenditure,,E1,,507.15,02/10/2013,C,ABLE 2 OCCUP.THERAPY SERV.LTD 
138,,,Disabled Facilities Grant DCLG          ,CE004RA,Other Capital Expenditure,,E1,,"1,688.88",22/10/2013,C,EXCEL INTERIOR REFURBISHMENT  
139,,,Disabled Facilities Grant DCLG          ,CE004RA,Other Capital Expenditure,,E1,,"3,820.00",22/10/2013,C,NONDRIP                       
140,,,Disabled Facilities Grant DCLG          ,CE004RA,Other Capital Expenditure,,E1,,"4,325.00",22/10/2013,C,TBS ADAPTATIONS LTD           
141,,,Disabled Facilities Grant DCLG          ,CE004RA,Other Capital Expenditure,,E1,,"1,033.87",22/10/2013,C,STAYING FIRST                 
142,,,Disabled Facilities Grant DCLG          ,CE004RA,Other Capital Expenditure,,E1,,795,22/10/2013,C,SUTTON STAYING PUT            
143,,,Disabled Facilities Grant DCLG          ,CE004RA,Other Capital Expenditure,,E1,,536.19,16/10/2013,C,HARDING DESIGN LIMITED        
144,,,Disabled Facilities Grant DCLG          ,CE004RA,Other Capital Expenditure,,E1,,"2,376.52",22/10/2013,C,S&S CONSTRUCTION              
145,,,Disabled Facilities Grant DCLG          ,CE004RA,Other Capital Expenditure,,E1,,"1,407.70",02/10/2013,C,STAYING FIRST                 
146,,,Disabled Facilities Grant DCLG          ,CE004RA,Other Capital Expenditure,,E1,,"1,541.44",22/10/2013,C,CBS ADAPTATION                
147,,,Disabled Facilities Grant DCLG          ,CE004RA,Other Capital Expenditure,,E1,,"5,208.00",22/10/2013,C,TBS ADAPTATIONS LTD           
148,,,Disabled Facilities Grant DCLG          ,CE004RA,Other Capital Expenditure,,E1,,"5,494.67",22/10/2013,C,TBS ADAPTATIONS LTD           
149,,,Small Repairs Grant                     ,CE005RA,Other Capital Expenditure,,E1,,"3,960.00",24/10/2013,C,CHELSEA WINDOWS LTD           
150,,,Colliers Wd- Regeneration Fund          ,CE006FB,New Construction Conversion and Renovation,,B4,,"2,090.00",13/09/2013,C,ARROW TILING LTD              
151,,,Mitcham - Outer London Fund             ,CE006FC,New Construction Conversion and Renovation,,B3,,"2,400.00",23/08/2013,C,STUDIO WEAVE LTD              
152,,,Mitcham - Outer London Fund             ,CE006FC,New Construction Conversion and Renovation,,B3,,950,30/09/2013,C,STUDIO WEAVE LTD              
153,,,Mitcham - Outer London Fund             ,CE006FC,New Construction Conversion and Renovation,,B3,,"6,999.25",30/09/2013,C,STUDIO WEAVE LTD              
154,,,Mitcham - Outer London Fund             ,CE006FC,New Construction Conversion and Renovation,,B3,,"2,500.00",30/09/2013,C,STUDIO WEAVE LTD              
155,,,Mitcham - Outer London Fund             ,CE006FC,New Construction Conversion and Renovation,,B3,,500,30/09/2013,C,STUDIO WEAVE LTD              
156,,,Mitcham - Outer London Fund             ,CE006FC,New Construction Conversion and Renovation,,B3,,"3,061.71",30/09/2013,C,STUDIO WEAVE LTD              
157,,,Mitcham - Outer London Fund             ,CE006FC,New Construction Conversion and Renovation,,B4,,"9,237.20",25/09/2013,C,FOURTH WALL CREATIONS         
158,,,Mitcham - Outer London Fund             ,CE006FC,New Construction Conversion and Renovation,,B4,,"4,390.00",06/10/2013,C,MFS BUILDERS                  
159,,,B487 Landscape Ravensbury Park          ,CE009CA,New Construction Conversion and Renovation,,B4,,"23,500.00",07/10/2013,C,REDDINGTON & SONS             
160,,,B487 Landscape Ravensbury Park          ,CE009CA,New Construction Conversion and Renovation,,B4,,"3,845.00",22/10/2013,C,REDACTED
161,,,Parks Investment                        ,CE013SA,New Construction Conversion and Renovation,,B4,,"1,318.00",26/09/2013,C,KOMPAN LTD                    
162,,,Parks Investment                        ,CE013SA,New Construction Conversion and Renovation,,B4,,"3,262.00",15/10/2013,C,TAYLOR BUILDING COMPANY LTD   
163,,,Parks Investment                        ,CE013SA,New Construction Conversion and Renovation,,B4,,"2,615.00",01/10/2013,C,THE CRESCENT FENCING CO.      
164,,,Parks Investment                        ,CE013SA,New Construction Conversion and Renovation,,B4,,"5,677.00",14/10/2013,C,PROLUDIC LTD                  
165,,,Parks Investment                        ,CE013SA,New Construction Conversion and Renovation,,B4,,"4,755.00",03/10/2013,C,TAYLOR BUILDING COMPANY LTD   
166,,,Parks Investment                        ,CE013SA,New Construction Conversion and Renovation,,B4,,"7,250.00",14/10/2013,C,PROLUDIC LTD                  
167,,,Parks Investment                        ,CE013SA,New Construction Conversion and Renovation,,B4,,"8,000.00",14/10/2013,C,PROLUDIC LTD                  
168,,,Parks Investment                        ,CE013SA,New Construction Conversion and Renovation,,B5,,"23,905.00",19/08/2013,C,JUPITER PLAY & LEISURE LTD    
169,,,Surface Water Drainage                  ,CE024FA,New Construction Conversion and Renovation,,B4,,"1,900.00",17/10/2013,C,FM CONWAY LTD                 
170,,,Repairs to Footways                     ,CE029FA,New Construction Conversion and Renovation,,B4,,"24,341.46",16/10/2013,C,FM CONWAY LTD                 
171,,,Repairs to Footways                     ,CE029FA,New Construction Conversion and Renovation,,B4,,"50,000.00",16/10/2013,C,FM CONWAY LTD                 
172,,,Repairs to Footways                     ,CE029FA,New Construction Conversion and Renovation,,B4,,"1,638.55",17/10/2013,C,FM CONWAY LTD                 
173,,,Repairs to Footways                     ,CE029FA,New Construction Conversion and Renovation,,B4,,"8,000.00",05/10/2013,C,FM CONWAY LTD                 
174,,,Repairs to Footways                     ,CE029FA,New Construction Conversion and Renovation,,B4,,"80,000.00",17/09/2013,C,FM CONWAY LTD                 
175,,,Improve markings & road signs           ,CE066EA,New Construction Conversion and Renovation,,B4,,"2,228.24",27/09/2013,C,MAY GURNEY LTD T/A CARTLEDGE  
176,,,Improve markings & road signs           ,CE066EA,New Construction Conversion and Renovation,,B4,,"3,000.00",27/09/2013,C,MAY GURNEY LTD T/A CARTLEDGE  
177,,,Improve markings & road signs           ,CE066EA,Vehicles Plant Equipment and Machinery,,D5,,"3,500.00",29/09/2013,C,TRAFFIC SAFETY SYSTEMS LTD    
178,,,Street scene enhancements               ,CE066FE,New Construction Conversion and Renovation,,B2,,"4,980.00",27/09/2013,C,MVA CONSULTANCY
179,,,Street scene enhancements               ,CE066FE,New Construction Conversion and Renovation,,B4,,"2,045.00",25/09/2013,C,PRECIA MOLEN                  
180,,,Street scene enhancements               ,CE066FE,New Construction Conversion and Renovation,,B4,,"12,270.00",14/08/2013,C,PRECIA MOLEN                  
181,,,Street scene enhancements               ,CE066FE,New Construction Conversion and Renovation,,B6,,"2,383.00",30/09/2013,C,UK POWER NETWORKS (OPERATIONS)
182,,,Street Lighting Replacement Pr          ,CE068FA,New Construction Conversion and Renovation,,B4,,945,27/10/2013,C,MAY GURNEY LTD T/A CARTLEDGE  
183,,,Street Lighting Replacement Pr          ,CE068FA,New Construction Conversion and Renovation,,B4,,825.66,25/10/2013,C,MAY GURNEY LTD T/A CARTLEDGE  
184,,,Street Lighting Replacement Pr          ,CE068FA,New Construction Conversion and Renovation,,B4,,"15,000.00",02/10/2013,C,MAY GURNEY LTD T/A CARTLEDGE  
185,,,Street Lighting Replacement Pr          ,CE068FA,New Construction Conversion and Renovation,,B4,,"215,000.00",02/10/2013,C,MAY GURNEY LTD T/A CARTLEDGE  
186,,,Street Lighting Replacement Pr          ,CE068FA,New Construction Conversion and Renovation,,B4,,"8,401.00",27/09/2013,C,MAY GURNEY LTD T/A CARTLEDGE  
187,,,Street Lighting Replacement Pr          ,CE068FA,New Construction Conversion and Renovation,,B4,,"7,000.00",02/10/2013,C,MAY GURNEY LTD T/A CARTLEDGE  
188,,,Street Lighting Replacement Pr          ,CE068FA,New Construction Conversion and Renovation,,B4,,"1,698.00",27/09/2013,C,MAY GURNEY LTD T/A CARTLEDGE  
189,,,Street Lighting Replacement Pr          ,CE068FA,New Construction Conversion and Renovation,,B4,,"2,391.08",27/09/2013,C,MAY GURNEY LTD T/A CARTLEDGE  
190,,,Street Lighting Replacement Pr          ,CE068FA,New Construction Conversion and Renovation,,B6,,550,14/10/2013,C,UK POWER NETWORKS (OPERATIONS)
191,,,Traffic surveys & Safety Measu          ,CE075FA,New Construction Conversion and Renovation,,B2,,"1,000.00",15/10/2013,C,AXIOM TRAFFIC LTD             
192,,,Alley Gating Scheme - Fly Tip           ,CE087FA,Other Capital Expenditure,,E1,,"1,590.30",24/10/2013,C,SEYKING GATING ASSOCIATION    
193,,,Alley Gating Scheme - Fly Tip           ,CE087FA,Other Capital Expenditure,,E1,,738.18,24/10/2013,C,MORDEN BROOK GATING ASSOC     
194,,,Alley Gating Scheme - Fly Tip           ,CE087FA,Other Capital Expenditure,,E1,,691.2,24/10/2013,C,BEECHOLME GATING ASSOCIATION  
195,,,Alley Gating Scheme - Fly Tip           ,CE087FA,Other Capital Expenditure,,E1,,708.48,10/10/2013,C,142-148 DORSET ROAD           
196,,,B453 Haydons Road                       ,CE098FA,New Construction Conversion and Renovation,,B4,,550,03/10/2013,C,TAYLOR BUILDING COMPANY LTD   
197,,,Strategic corridor Mitcham              ,CE104FB,New Construction Conversion and Renovation,,B1,,980,21/10/2013,C,W. J. KENT TREE CONSULTANCY LT
198,,,Strategic corridor Mitcham              ,CE104FB,New Construction Conversion and Renovation,,B3,,"4,387.50",23/08/2013,C,STUDIO WEAVE LTD              
199,,,Kingston/Hartfield Rd StratCor          ,CE104FC,New Construction Conversion and Renovation,,B4,,"4,129.12",03/10/2013,C,THAMES WATER UTILITIES LTD.   
200,,,Kingston/Hartfield Rd StratCor          ,CE104FC,New Construction Conversion and Renovation,,B4,,825.82,03/10/2013,C,THAMES WATER UTILITIES LTD.   
201,,,Kingston/Hartfield Rd StratCor          ,CE104FC,Vehicles Plant Equipment and Machinery,,D5,,"6,546.72",23/09/2013,C,PETER BRETT ASSOCIATES        
202,,,Casualty Reduction & Schools            ,CE104RA,New Construction Conversion and Renovation,,B4,,"1,058.77",16/10/2013,C,FM CONWAY LTD                 
203,,,Casualty Reduction & Schools            ,CE104RA,New Construction Conversion and Renovation,,B4,,"15,000.00",03/10/2013,C,FM CONWAY LTD                 
204,,,Casualty Reduction & Schools            ,CE104RA,New Construction Conversion and Renovation,,B5,,732,15/10/2013,C,UNIPART RAIL LTD - DORMAN     
205,,,Casualty Reduction & Schools            ,CE104RA,New Construction Conversion and Renovation,,B6,,704,07/10/2013,C,UK POWER NETWORKS (OPERATIONS)
206,,,School & Road Safety Campaigns          ,CE104RC,Other Capital Expenditure,,E4,,765,23/10/2013,C,FOCUS MULTIMEDIA LIMITED      
207,,,King George Rec Play Area               ,CE110CB,New Construction Conversion and Renovation,,B4,,"8,360.00",03/10/2013,C,TAYLOR BUILDING COMPANY LTD   
208,,,Tamworth Rec Interactive Water          ,CE110CD,New Construction Conversion and Renovation,,B6,,"1,852.00",24/10/2013,C,UK POWER NETWORKS (OPERATIONS)
209,,,Civic Centre refurbishment              ,CF001AB,Vehicles Plant Equipment and Machinery,,D4,,"7,469.09",18/10/2013,C,UNIQUE OFFICE SOLUTIONS LTD   
210,,,Civic Centre Windows                    ,CF001AK,New Construction Conversion and Renovation,,B2,,570,31/07/2013,C,POLE STRUCTURAL ENGINEERS     
211,,,Civic Centre Windows                    ,CF001AK,New Construction Conversion and Renovation,,B4,,"2,080.50",31/08/2013,C,EDE'S (U.K.) LTD              
212,,,Civic Centre Windows                    ,CF001AK,New Construction Conversion and Renovation,,B4,,"4,874.00",17/10/2013,C,NETWORK BLINDS LIMITED        
213,,,Civic Centre Windows                    ,CF001AK,New Construction Conversion and Renovation,,B4,,"2,589.80",27/09/2013,C,NETWORK BLINDS LIMITED        
214,,,Civic Centre Windows                    ,CF001AK,New Construction Conversion and Renovation,,B4,,723.59,20/09/2013,C,NETWORK BLINDS LIMITED        
215,,,Civic Centre Windows                    ,CF001AK,New Construction Conversion and Renovation,,B4,,"226,090.60",07/10/2013,C,HAZLEMERE WINDOW CO LIMITED   
216,,,Civic Centre Windows                    ,CF001AK,New Construction Conversion and Renovation,,B4,,"3,990.00",30/09/2013,C,EDE'S (U.K.) LTD              
217,,,Repair and Maintenance                  ,CF004SA,New Construction Conversion and Renovation,,B4,,"2,847.77",21/10/2013,C,COFELY LIMITED                
218,,,Gifford House Minor Refurb              ,CF058AC,New Construction Conversion and Renovation,,B4,,"4,930.29",09/10/2013,C,DATA TECHNIQUES               
219,,,Gifford House Minor Refurb              ,CF058AC,New Construction Conversion and Renovation,,B4,,"1,346.04",09/10/2013,C,DATA TECHNIQUES               
220,,,Gifford House Minor Refurb              ,CF058AC,New Construction Conversion and Renovation,,B4,,515.59,09/10/2013,C,DATA TECHNIQUES               
221,,,Gifford House Minor Refurb              ,CF058AC,New Construction Conversion and Renovation,,B4,,"1,488.00",16/09/2013,C,FORBO FLOORING UK LTD         
222,,,Gifford House Minor Refurb              ,CF058AC,Vehicles Plant Equipment and Machinery,,D4,,"4,427.50",30/09/2013,C,UNIQUE OFFICE SOLUTIONS LTD   
223,,,Gifford House Minor Refurb              ,CF058AC,Vehicles Plant Equipment and Machinery,,D4,,"2,500.00",30/09/2013,C,UNIQUE OFFICE SOLUTIONS LTD   
224,,,St Ann's - Targeted Capital             ,CS001DA,New Construction Conversion and Renovation,,B4,,"19,742.60",19/09/2013,C,R DURTNELL & SONS LTD         
225,,,Temp classroom for 5 schools            ,CS009EA,New Construction Conversion and Renovation,,B1,,542.91,25/09/2013,C,ATKINS LIMITED                
226,,,Cranmer expansion                       ,CS010AA,New Construction Conversion and Renovation,,B1,,"20,929.42",27/09/2013,C,ATKINS LIMITED                
227,,,Cranmer expansion                       ,CS010AA,New Construction Conversion and Renovation,,B4,,"21,990.00",08/10/2013,C,WILLMOTT DIXON CONSTRUCT'N LTD
228,,,William Morris PCP                      ,CS016AA,New Construction Conversion and Renovation,,B1,,730.9,25/09/2013,C,ATKINS LIMITED                
229,,,William Morris PCP                      ,CS016AA,New Construction Conversion and Renovation,,B4,,"16,596.93",08/10/2013,C,MANSELL CONSTRUCTION SERVICES 
230,,,Gorringe Park expansion                 ,CS018AB,New Construction Conversion and Renovation,,B2,,"3,200.00",17/09/2013,C,SCACOUSTICS                   
231,,,Gorringe Park expansion                 ,CS018AB,New Construction Conversion and Renovation,,B4,,"93,904.08",14/10/2013,C,GEE CONSTRUCTION LTD          
232,,,Hillcross School Expansion              ,CS020AC,New Construction Conversion and Renovation,,B1,,"22,344.30",09/10/2013,C,CURL LA TOURELLE ARCHITECTS   
233,,,Hillcross School Expansion              ,CS020AC,New Construction Conversion and Renovation,,B1,,"6,500.00",30/09/2013,C,STACE LLP                     
234,,,Hillcross School Expansion              ,CS020AC,New Construction Conversion and Renovation,,B1,,"3,850.00",30/09/2013,C,STACE LLP                     
235,,,Hillcross School Expansion              ,CS020AC,New Construction Conversion and Renovation,,B2,,636.17,24/09/2013,C,REDHILLS ENVIRONMENTAL CONSUL.
236,,,Hillcross School Expansion              ,CS020AC,New Construction Conversion and Renovation,,B4,,"22,216.12",20/09/2013,C,MANSELL CONSTRUCTION SERVICES 
237,,,Merton Abbey Temp Accomodation          ,CS022AC,New Construction Conversion and Renovation,,B1,,"44,477.63",28/08/2013,C,PELLINGS LLP                  
238,,,Merton Abbey Temp Accomodation          ,CS022AC,New Construction Conversion and Renovation,,B2,,"2,305.62",30/09/2013,C,KEEGANS LIMITED               
239,,,Pelham School Expansion                 ,CS023AC,New Construction Conversion and Renovation,,B1,,"3,950.00",30/09/2013,C,STACE LLP                     
240,,,Pelham School Expansion                 ,CS023AC,New Construction Conversion and Renovation,,B1,,"23,524.00",03/10/2013,C,HAVERSTOCK ASSOCIATES LLP     
241,,,Pelham School Expansion                 ,CS023AC,Vehicles Plant Equipment and Machinery,,D3,,"1,558.78",16/09/2013,C,STRICTLY EDUCATION LTD        
242,,,Dundonald expansion                     ,CS031AC,New Construction Conversion and Renovation,,B1,,"2,868.75",30/09/2013,C,SYNERGY CPC LLP               
243,,,St Ann's Primary Phase                  ,CS032AA,New Construction Conversion and Renovation,,B1,,"3,060.00",30/09/2013,C,SYNERGY CPC LLP               
244,,,St Ann's Primary Phase                  ,CS032AA,New Construction Conversion and Renovation,,B4,,"17,804.60",26/09/2013,C,C FLETCHER SONS & CO LTD      
245,,,St Ann's Primary Phase                  ,CS032AA,New Construction Conversion and Renovation,,B4,,"43,312.34",19/09/2013,C,R DURTNELL & SONS LTD         
246,,,Poplar Permanent Expansion              ,CS034AB,New Construction Conversion and Renovation,,B1,,610.46,25/09/2013,C,ATKINS LIMITED                
247,,,Poplar Permanent Expansion              ,CS034AB,New Construction Conversion and Renovation,,B2,,"2,210.95",29/09/2013,C,KEEGANS LIMITED               
248,,,Singlegate expansion                    ,CS049AA,New Construction Conversion and Renovation,,B2,,582.5,31/07/2013,C,PENNINGTON CHOICES            
249,,,Singlegate expansion                    ,CS049AA,New Construction Conversion and Renovation,,B2,,"3,759.00",28/01/2013,C,PENNINGTON CHOICES            
250,,,Wimbledon Park expansion                ,CS050AA,New Construction Conversion and Renovation,,B1,,"1,062.00",30/09/2013,C,SYNERGY CPC LLP               
251,,,Wimbledon Park expansion                ,CS050AA,New Construction Conversion and Renovation,,B4,,"153,092.13",09/10/2013,C,GEE CONSTRUCTION LTD          
252,,,Wimbledon Park expansion                ,CS050AA,New Construction Conversion and Renovation,,B6,,650,30/09/2013,C,JULIUS RUTHERFOORD & CO LTD   
253,,,Schools Access Initiative Inc           ,CS050SA,New Construction Conversion and Renovation,,B4,,"1,980.00",24/09/2013,C,MANSELL CONSTRUCTION SERVICES 
254,,,Youth&Comm centres reprovision          ,CS083SA,New Construction Conversion and Renovation,,B4,,"53,315.65",15/10/2013,C,STP SOLUTIONS                 
255,,,Breaks-disabled children grant          ,CS085RA,New Construction Conversion and Renovation,,B4,,"7,670.00",07/10/2013,C,SYMES FENCING                 
256,,,Breaks-disabled children grant          ,CS085RA,New Construction Conversion and Renovation,,B4,,"2,675.00",20/09/2013,C,SSD LIMITED                   
257,,,Breaks-disabled children grant          ,CS085RA,New Construction Conversion and Renovation,,B4,,"2,400.00",30/08/2013,C,REIGATE GARDENS CENTRE        
258,,,Breaks-disabled children grant          ,CS085RA,Vehicles Plant Equipment and Machinery,,D3,,"6,373.30",29/08/2013,C,ALLSOP AND FRANCIS LTD        
259,,,Breaks-disabled children grant          ,CS085RA,Vehicles Plant Equipment and Machinery,,D3,,"2,286.00",12/09/2013,C,ST MARKS PRIMARY SCHOOL       
260,,,Beecholme - Automated Gates             ,CS091AA,New Construction Conversion and Renovation,,B4,,"8,843.00",20/09/2013,C,TONBRIDGE FENCING LTD         
261,,,St Marks Pri-Automated gates            ,CS091AE,New Construction Conversion and Renovation,,B4,,"26,400.00",20/09/2013,C,TONBRIDGE FENCING LTD         
262,,,The Sherwood-Boiler&Perim Fnc           ,CS091AF,New Construction Conversion and Renovation,,B4,,"3,000.00",20/09/2013,C,TONBRIDGE FENCING LTD         
263,,,The Sherwood-Boiler&Perim Fnc           ,CS091AF,New Construction Conversion and Renovation,,B4,,"1,012.10",20/09/2013,C,TONBRIDGE FENCING LTD         
264,,,The Sherwood-Boiler&Perim Fnc           ,CS091AF,New Construction Conversion and Renovation,,B4,,"17,191.05",20/09/2013,C,TONBRIDGE FENCING LTD         
265,,,West Wim-Boiler&Perim Fnc               ,CS091AG,New Construction Conversion and Renovation,,B4,,"7,083.50",20/09/2013,C,TONBRIDGE FENCING LTD         
266,,,West Wim-Boiler&Perim Fnc               ,CS091AG,New Construction Conversion and Renovation,,B4,,"9,410.75",20/09/2013,C,TONBRIDGE FENCING LTD         
267,,,Disaster recovery                       ,CT003EA,Vehicles Plant Equipment and Machinery,,D3,,556,09/10/2013,C,TOTAL COMPUTER NETWORKS       
268,,,IT Equipment                            ,CT006EA,Vehicles Plant Equipment and Machinery,,D3,,"11,667.75",30/09/2013,C,SPECIALIST COMPUTER CENT. PLC 
269,,,IT Equipment                            ,CT006EA,Vehicles Plant Equipment and Machinery,,D3,,"55,474.50",30/09/2013,C,NET-CTRL                      
270,,,IT Equipment                            ,CT006EA,Vehicles Plant Equipment and Machinery,,D3,,"7,200.00",10/10/2013,C,VIGLEN LIMITED                
271,,,IT Equipment                            ,CT006EA,Other Capital Expenditure,,E3,,"-1,900.00",26/09/2013,C,HORNBILL SERVICE MGMENT LTD   
272,,,IT Equipment                            ,CT006EA,Other Capital Expenditure,,E3,,"7,500.00",30/09/2013,C,NET-CTRL                      
273,Central Services,Council tax collection,Local Taxation Services,E02100,Employees                     ,Indirect Employee Expenses    ,AB57,External Training Costs                 ,995,27/09/2013,R,IRRV SERVICES LTD             
274,Central Services,Council tax collection,Local Taxation Services,E02100,Supplies & Services           ,Services                      ,DF11,Counsel's Fees                          ,920,18/09/2013,R,WELBECK LAW LLP               
275,Central Services,Council tax collection,Local Taxation Services,E02100,Supplies & Services           ,Services                      ,DF11,Counsel's Fees                          ,920,01/10/2013,R,WELBECK LAW LLP               
276,Central Services,Council tax collection,Local Taxation Services,E02100,Supplies & Services           ,Comms and Computing           ,DG09,Computer Purchases - Misc               ,"3,150.00",27/09/2013,R,BLAZIE                        
277,Central Services,Council tax collection,Local Taxation Bailiffs,E02101,Supplies & Services           ,Services                      ,DF18,Bailiffs' fees                          ,643,24/10/2013,R,REDACTED
278,Central Services,Council tax collection,Local Taxation Bailiffs,E02101,Supplies & Services           ,Services                      ,DF18,Bailiffs' fees                          ,"1,250.00",22/10/2013,R,REDACTED
279,Central Services,Council tax collection,Local Taxation Bailiffs,E02101,Supplies & Services           ,Services                      ,DF18,Bailiffs' fees                          ,527.95,30/09/2013,R,HPI LIMITED                   
280,Housing Services,HB Administration,Benefits Administration,E02120,Supplies & Services           ,Comms and Computing           ,DG09,Computer Purchases - Misc               ,875,18/10/2013,R,CIVICA UK LIMITED             
281,Housing Services,HB Administration,Benefits Administration,E02120,Supplies & Services           ,Comms and Computing           ,DG09,Computer Purchases - Misc               ,"1,747.00",14/10/2013,R,CIVICA UK                     
282,Housing Services,HB Administration,Local Welfare Support,E02123,Supplies & Services           ,Comms and Computing           ,DG15,Network Maintenance                     ,"1,515.40",02/10/2013,R,POST OFFICE LTD               
283,Housing Services,HB Administration,Local Welfare Support,E02123,Transfer Payments             ,Housing Benefits              ,FA95,Other Payments                          ,558.67,11/07/2013,R,THE VINE PROJECT              
284,Central Services,SupS Payroll,Payroll,E02140,Employees                     ,Direct Employee Expenses      ,AA04,Shared Services Salaries                ,"30,101.12",30/07/2013,R,LONDON BOROUGH OF SUTTON      
285,Central Services,SupS Payroll,Payroll,E02140,Employees                     ,Direct Employee Expenses      ,AA04,Shared Services Salaries                ,"32,494.67",25/04/2013,R,LONDON BOROUGH OF SUTTON      
286,Central Services,SupS Payroll,Payroll,E02140,Third Party Payments          ,Private Contractors           ,EH10,Contract Payments                       ,"5,626.47",15/10/2013,R,LONDON BOROUGH OF SUTTON      
287,Central Services,SupS Payroll,Payroll,E02140,Third Party Payments          ,Private Contractors           ,EH10,Contract Payments                       ,"13,515.10",15/10/2013,R,LONDON BOROUGH OF SUTTON      
288,Central Services,SupS Pensions,Pensions,E02160,Supplies & Services           ,Comms and Computing           ,DG02,Software Licences                       ,"64,858.50",22/10/2013,R,HEYWOOD                       
289,Central Services,SupS DOF,AD Customer Services,E02180,Employees                     ,Indirect Employee Expenses    ,AB57,External Training Costs                 ,995,14/10/2013,R,HBINFO LTD                    
290,Central Services,SupS Facilities,Post Room,E02220,Supplies & Services           ,Equip Furniture/Materials     ,DA01,Equipment - R & M                       ,"5,073.72",13/10/2013,R,NEOPOST FINANCE LIMITED       
291,Central Services,SupS Facilities,Post Room,E02220,Supplies & Services           ,Equip Furniture/Materials     ,DA01,Equipment - R & M                       ,908.01,27/09/2013,R,NEOPOST FINANCE LIMITED       
292,Central Services,SupS Facilities,Security Services,E02221,Employees                     ,Direct Employee Expenses      ,AA17,Agency Staff & Casual Paymts            ,"2,503.80",01/10/2013,R,REDACTED
293,Central Services,SupS Facilities,Security Services,E02221,Employees                     ,Direct Employee Expenses      ,AA17,Agency Staff & Casual Paymts            ,725.4,01/10/2013,R,REDACTED
294,Central Services,SupS Facilities,Security Services,E02221,Employees                     ,Direct Employee Expenses      ,AA17,Agency Staff & Casual Paymts            ,"1,146.60",01/10/2013,R,REDACTED
295,Central Services,SupS Facilities,Security Services,E02221,Employees                     ,Direct Employee Expenses      ,AA17,Agency Staff & Casual Paymts            ,"2,655.90",01/10/2013,R,REDACTED
296,Central Services,SupS Facilities,Civic Centre,E02222,Premises Related Expenditure  ,RepairsAlterations&MtceOfBldgs,BA29,BUILD MAINT MGT FEES                    ,850,09/10/2013,R,PW INDUSTRIAL SVCE/S LTD      
297,Central Services,SupS Facilities,Civic Centre,E02222,Premises Related Expenditure  ,RepairsAlterations&MtceOfBldgs,BA29,BUILD MAINT MGT FEES                    ,686.5,30/09/2013,R,EDE'S (U.K.) LTD              
298,Central Services,SupS Facilities,Civic Centre,E02222,Premises Related Expenditure  ,RepairsAlterations&MtceOfBldgs,BA29,BUILD MAINT MGT FEES                    ,750.5,30/09/2013,R,EDE'S (U.K.) LTD              
299,Central Services,SupS Facilities,Civic Centre,E02222,Premises Related Expenditure  ,RepairsAlterations&MtceOfBldgs,BA29,BUILD MAINT MGT FEES                    ,"2,907.70",31/08/2013,R,FORMARK SCAFFOLDING LTD       
300,Central Services,SupS Facilities,Civic Centre,E02222,Premises Related Expenditure  ,RepairsAlterations&MtceOfBldgs,BA29,BUILD MAINT MGT FEES                    ,541.5,30/09/2013,R,EDE'S (U.K.) LTD              
301,Central Services,SupS Facilities,Civic Centre,E02222,Premises Related Expenditure  ,RepairsAlterations&MtceOfBldgs,BA29,BUILD MAINT MGT FEES                    ,627,30/09/2013,R,EDE'S (U.K.) LTD              
302,Central Services,SupS Facilities,Civic Centre,E02222,Premises Related Expenditure  ,RepairsAlterations&MtceOfBldgs,BA29,BUILD MAINT MGT FEES                    ,750.5,30/09/2013,R,EDE'S (U.K.) LTD              
303,Central Services,SupS Facilities,Civic Centre,E02222,Premises Related Expenditure  ,RepairsAlterations&MtceOfBldgs,BA29,BUILD MAINT MGT FEES                    ,529.75,30/09/2013,R,EDE'S (U.K.) LTD              
304,Central Services,SupS Facilities,Civic Centre,E02222,Premises Related Expenditure  ,RepairsAlterations&MtceOfBldgs,BA29,BUILD MAINT MGT FEES                    ,541.5,30/09/2013,R,EDE'S (U.K.) LTD              
305,Central Services,SupS Facilities,Civic Centre,E02222,Premises Related Expenditure  ,Cleaning and Domestic Supplies,BH01,Cleaning Materials                      ,504,09/10/2013,R,GREENHAM                      
306,Central Services,SupS Facilities,Civic Centre,E02222,Premises Related Expenditure  ,Cleaning and Domestic Supplies,BH03,Cleaning Services                       ,819.47,30/09/2013,R,BIRKIN CLEANING SERVICES LTD  
307,Central Services,SupS Facilities,Civic Centre,E02222,Premises Related Expenditure  ,Cleaning and Domestic Supplies,BH03,Cleaning Services                       ,"1,199.41",30/09/2013,R,BIRKIN CLEANING SERVICES LTD  
308,Central Services,SupS Facilities,Civic Centre,E02222,Premises Related Expenditure  ,Cleaning and Domestic Supplies,BH03,Cleaning Services                       ,"1,395.29",30/09/2013,R,BIRKIN CLEANING SERVICES LTD  
309,Central Services,SupS Facilities,Civic Centre,E02222,Premises Related Expenditure  ,Cleaning and Domestic Supplies,BH03,Cleaning Services                       ,"1,642.40",30/09/2013,R,BIRKIN CLEANING SERVICES LTD  
310,Central Services,SupS Facilities,Civic Centre,E02222,Premises Related Expenditure  ,Cleaning and Domestic Supplies,BH03,Cleaning Services                       ,"1,464.69",30/09/2013,R,BIRKIN CLEANING SERVICES LTD  
311,Central Services,SupS Facilities,Civic Centre,E02222,Premises Related Expenditure  ,Cleaning and Domestic Supplies,BH03,Cleaning Services                       ,"1,215.98",30/09/2013,R,BIRKIN CLEANING SERVICES LTD  
312,Central Services,SupS Facilities,Civic Centre,E02222,Premises Related Expenditure  ,Cleaning and Domestic Supplies,BH03,Cleaning Services                       ,"6,473.18",30/09/2013,R,BIRKIN CLEANING SERVICES LTD  
313,Central Services,SupS Facilities,Civic Centre,E02222,Premises Related Expenditure  ,Cleaning and Domestic Supplies,BH03,Cleaning Services                       ,"3,035.93",30/09/2013,R,BIRKIN CLEANING SERVICES LTD  
314,Central Services,SupS Facilities,Civic Centre,E02222,Premises Related Expenditure  ,Cleaning and Domestic Supplies,BH03,Cleaning Services                       ,"1,511.31",30/09/2013,R,BIRKIN CLEANING SERVICES LTD  
315,Central Services,SupS Facilities,Civic Centre,E02222,Third Party Payments          ,Private Contractors           ,EH10,Contract Payments                       ,"3,021.15",21/06/2013,R,ISS COLLECTIONS LTD           
316,Central Services,SupS Facilities,Civic Centre,E02222,Third Party Payments          ,Private Contractors           ,EH10,Contract Payments                       ,"3,976.56",20/09/2013,R,ISS COLLECTIONS LTD           
317,Central Services,SupS Facilities,Facilities,E02231,Premises Related Expenditure  ,RepairsAlterations&MtceOfBldgs,BA02,ENERGY CONSERVATION                     ,"1,749.87",01/07/2013,R,BERGEN ENERGI                 
318,Central Services,SupS Facilities,Facilities,E02231,Premises Related Expenditure  ,RepairsAlterations&MtceOfBldgs,BA02,ENERGY CONSERVATION                     ,"1,917.00",12/07/2013,R,BERGEN ENERGI                 
319,Central Services,SupS Facilities,Facilities,E02231,Premises Related Expenditure  ,RepairsAlterations&MtceOfBldgs,BA02,ENERGY CONSERVATION                     ,"1,917.00",01/10/2013,R,BERGEN ENERGI                 
320,Central Services,SupS Facilities,Facilities,E02231,Premises Related Expenditure  ,RepairsAlterations&MtceOfBldgs,BA02,ENERGY CONSERVATION                     ,"1,749.87",11/10/2013,R,BERGEN ENERGI                 
321,Central Services,SupS Facilities,Facilities,E02231,Premises Related Expenditure  ,RepairsAlterations&MtceOfBldgs,BA02,ENERGY CONSERVATION                     ,"1,749.87",30/04/2013,R,BERGEN ENERGI                 
322,Central Services,SupS Facilities,Facilities,E02231,Premises Related Expenditure  ,RepairsAlterations&MtceOfBldgs,BA02,ENERGY CONSERVATION                     ,"1,917.00",27/09/2013,R,BERGEN ENERGI                 
323,Central Services,SupS Facilities,Facilities,E02231,Premises Related Expenditure  ,RepairsAlterations&MtceOfBldgs,BA90,Water Hygiene                           ,500,16/07/2013,R,COFELY LIMITED                
324,Central Services,SupS Facilities,Facilities,E02231,Supplies & Services           ,Services                      ,DF09,Miscellaneous Fees                      ,"1,016.37",30/09/2013,R,STARK SOFTWARE INTERNATIONAL  
325,Central Services,SupS Facilities,Facilities,E02231,Supplies & Services           ,Services                      ,DF09,Miscellaneous Fees                      ,550,07/10/2013,R,BELL FLOW SYSTEMS LTD         
326,Central Services,SupS Facilities,Corporate Services Buildings,E02240,Premises Related Expenditure  ,RepairsAlterations&MtceOfBldgs,BA01,DDM - General Building                  ,600,04/10/2013,R,KC DRAINS LTD                 
327,Central Services,SupS Facilities,Corporate Services Buildings,E02240,Premises Related Expenditure  ,RepairsAlterations&MtceOfBldgs,BA01,DDM - General Building                  ,"1,750.00",04/10/2013,R,KC DRAINS LTD                 
328,Central Services,SupS Facilities,Corporate Services Buildings,E02240,Premises Related Expenditure  ,RepairsAlterations&MtceOfBldgs,BA01,DDM - General Building                  ,705,19/10/2013,R,AXIS ELEVATORS LTD            
329,Central Services,SupS Facilities,Corporate Services Buildings,E02240,Premises Related Expenditure  ,RepairsAlterations&MtceOfBldgs,BA01,DDM - General Building                  ,875,04/10/2013,R,KC DRAINS LTD                 
330,Central Services,SupS Facilities,Corporate Services Buildings,E02240,Premises Related Expenditure  ,RepairsAlterations&MtceOfBldgs,BA01,DDM - General Building                  ,"6,084.00",18/10/2013,R,COBSEN-DAVIES ROOFING (LOND)LT
331,Central Services,SupS Facilities,Corporate Services Buildings,E02240,Premises Related Expenditure  ,RepairsAlterations&MtceOfBldgs,BA03,DDM - Mechanical                        ,"4,118.70",25/09/2013,R,COFELY LIMITED                
332,Central Services,SupS Facilities,Corporate Services Buildings,E02240,Premises Related Expenditure  ,RepairsAlterations&MtceOfBldgs,BA05,DDM - Electrical                        ,"3,624.04",01/10/2013,R,ADT FIRE & SECURITY PLC       
333,Central Services,SupS Facilities,Corporate Services Buildings,E02240,Premises Related Expenditure  ,RepairsAlterations&MtceOfBldgs,BA05,DDM - Electrical                        ,676.66,30/11/2012,R,FIRST CHOICE FACILITIES PLC   
334,Central Services,SupS Facilities,Corporate Services Buildings,E02240,Premises Related Expenditure  ,RepairsAlterations&MtceOfBldgs,BA05,DDM - Electrical                        ,"2,204.32",19/10/2013,R,AXIS ELEVATORS LTD            
335,Central Services,SupS Facilities,Corporate Services Buildings,E02240,Premises Related Expenditure  ,RepairsAlterations&MtceOfBldgs,BA05,DDM - Electrical                        ,"1,720.95",30/09/2013,R,AXIS ELEVATORS LTD            
336,Central Services,SupS Facilities,Corporate Services Buildings,E02240,Premises Related Expenditure  ,RepairsAlterations&MtceOfBldgs,BA05,DDM - Electrical                        ,902.5,10/10/2013,R,PURE SAFETY                   
337,Central Services,SupS Facilities,Corporate Services Buildings,E02240,Premises Related Expenditure  ,RepairsAlterations&MtceOfBldgs,BA05,DDM - Electrical                        ,609.87,01/10/2013,R,ADT FIRE & SECURITY PLC       
338,Central Services,SupS Facilities,Corporate Services Buildings,E02240,Premises Related Expenditure  ,RepairsAlterations&MtceOfBldgs,BA05,DDM - Electrical                        ,754.3,01/09/2013,R,ABEL ALARM COMPANY LIMITED    
339,Central Services,SupS Facilities,Corporate Services Buildings,E02240,Premises Related Expenditure  ,RepairsAlterations&MtceOfBldgs,BA05,DDM - Electrical                        ,737,30/09/2013,R,FIRST CHOICE FACILITIES PLC   
340,Central Services,SupS Facilities,Corporate Services Buildings,E02240,Premises Related Expenditure  ,RepairsAlterations&MtceOfBldgs,BA05,DDM - Electrical                        ,"8,043.33",18/09/2013,R,APPLIANCE WAREHOUSE (UK) LTD  
341,Central Services,SupS Facilities,Corporate Services Buildings,E02240,Premises Related Expenditure  ,RepairsAlterations&MtceOfBldgs,BA05,DDM - Electrical                        ,609.87,01/10/2013,R,ADT FIRE & SECURITY PLC       
342,Central Services,SupS Facilities,Corporate Services Buildings,E02240,Premises Related Expenditure  ,RepairsAlterations&MtceOfBldgs,BA05,DDM - Electrical                        ,886.95,01/10/2013,R,ADT FIRE & SECURITY PLC       
343,Central Services,SupS Facilities,Corporate Services Buildings,E02240,Premises Related Expenditure  ,RepairsAlterations&MtceOfBldgs,BA05,DDM - Electrical                        ,617.15,27/09/2013,R,EDMUNDSON ELECTRICAL LTD      
344,Central Services,SupS Facilities,Corporate Services Buildings,E02240,Premises Related Expenditure  ,RepairsAlterations&MtceOfBldgs,BA05,DDM - Electrical                        ,526.91,01/10/2013,R,ADT FIRE & SECURITY PLC       
345,Central Services,SupS Facilities,Corporate Services Buildings,E02240,Premises Related Expenditure  ,Energy Costs                  ,BB02,Electricity                             ,"1,425.07",01/10/2013,R,EDF                           
346,Central Services,SupS Facilities,Corporate Services Buildings,E02240,Premises Related Expenditure  ,Energy Costs                  ,BB02,Electricity                             ,"13,987.51",04/10/2013,R,SCOTTISHPOWER                 
347,Central Services,SupS Facilities,Corporate Services Buildings,E02240,Premises Related Expenditure  ,Energy Costs                  ,BB03,Gas (incl. Butane)                      ,"11,577.04",03/10/2013,R,GAZPROM MARKETING&TRADING LTD 
348,Central Services,SupS Facilities,Corporate Services Buildings,E02240,Premises Related Expenditure  ,Energy Costs                  ,BB03,Gas (incl. Butane)                      ,"-2,400.08",05/09/2013,R,GAZPROM MARKETING&TRADING LTD 
349,Central Services,SupS Facilities,Corporate Services Buildings,E02240,Premises Related Expenditure  ,Water Services                ,BE01,Use of Water (Metered)                  ,986.88,27/09/2013,R,SUTTON AND EAST SURREY WATER  
350,Childrens & Education Services,Strategic Management,CSF Buildings,E02256,Premises Related Expenditure  ,RepairsAlterations&MtceOfBldgs,BA06,Repairs & Maintenance General           ,"1,140.00",09/10/2013,R,SYMES GARDEN SERVICES         
351,Cultural Env Reg&Plan Services,Parks & Open Spaces,E & R Buildings,E02344,Premises Related Expenditure  ,RepairsAlterations&MtceOfBldgs,BA03,DDM - Mechanical                        ,706.53,10/09/2013,R,COFELY LIMITED                
352,Cultural Env Reg&Plan Services,Parks & Open Spaces,E & R Buildings,E02344,Premises Related Expenditure  ,RepairsAlterations&MtceOfBldgs,BA03,DDM - Mechanical                        ,572.3,25/09/2013,R,COFELY LIMITED                
353,Adult Social Care,PS u65 Day Care,C & H Buildings,E02345,Premises Related Expenditure  ,RepairsAlterations&MtceOfBldgs,BA05,DDM - Electrical                        ,697.87,25/09/2013,R,COFELY LIMITED                
354,Adult Social Care,PS u65 Day Care,C & H Buildings,E02345,Premises Related Expenditure  ,RepairsAlterations&MtceOfBldgs,BA05,DDM - Electrical                        ,548.75,27/08/2013,R,COFELY LIMITED                
355,Cultural Env Reg&Plan Services,Parks & Open Spaces,Leisure Buildings,E02350,Premises Related Expenditure  ,RepairsAlterations&MtceOfBldgs,BA03,DDM - Mechanical                        ,671.82,25/09/2013,R,COFELY LIMITED                
356,Cultural Env Reg&Plan Services,Parks & Open Spaces,Leisure Buildings,E02350,Premises Related Expenditure  ,RepairsAlterations&MtceOfBldgs,BA05,DDM - Electrical                        ,723.37,14/10/2013,R,COFELY LIMITED                
357,Central Services,SupS DOF,BUSINESS PARTNERS,E04059,Employees                     ,Direct Employee Expenses      ,AA17,Agency Staff & Casual Paymts            ,"11,375.00",06/10/2013,R,REDACTED
358,Central Services,SupS DOF,Director of Corporate Services,E04060,Supplies & Services           ,Services                      ,DF11,Counsel's Fees                          ,"1,238.00",11/09/2013,R,REDACTED
359,Central Services,SupS DOF,Director of Corporate Services,E04060,Supplies & Services           ,Services                      ,DF11,Counsel's Fees                          ,"1,415.00",30/09/2013,R,WRAGGE & CO LLP               
360,Central Services,SupS DOF,Director of Corporate Services,E04060,Supplies & Services           ,Services                      ,DF11,Counsel's Fees                          ,"3,505.00",30/08/2013,R,WRAGGE & CO LLP               
361,Central Services,SupS DOF,Director of Corporate Services,E04060,Supplies & Services           ,Services                      ,DF11,Counsel's Fees                          ,567,18/09/2013,R,REDACTED
362,Central Services,SupS DOF,Director of Corporate Services,E04060,Supplies & Services           ,Services                      ,DF11,Counsel's Fees                          ,"2,222.00",30/09/2013,R,WRAGGE & CO LLP               
363,Central Services,SupS DOF,AD RESOURCES,E04061,Supplies & Services           ,Services                      ,DF03,CONSULTANTS                             ,"8,970.00",08/10/2013,R,PUBLIC SECTOR CONSULTANTS     
364,Central Services,SupS DOF,AD RESOURCES,E04061,Supplies & Services           ,Comms and Computing           ,DG50,Other IT Expenditure                    ,"1,040.80",09/08/2013,R,REAL ASSET MANAGEMENT PLC     
365,Central Services,GENERATED ACCOUNT,Parking Cash Collect'n Contrct,E06225,Third Party Payments          ,Private Contractors           ,EH02,Miscellaneous Hired Services            ,"1,168.31",30/09/2013,R,BANKING AUTOMATION LTD        
366,Central Services,GENERATED ACCOUNT,Parking Cash Collect'n Contrct,E06225,Third Party Payments          ,Private Contractors           ,EH02,Miscellaneous Hired Services            ,"10,845.80",30/08/2013,R,BANKING AUTOMATION LTD        
367,Central Services,GENERATED ACCOUNT,Parking Cash Collect'n Contrct,E06225,Third Party Payments          ,Private Contractors           ,EH02,Miscellaneous Hired Services            ,"10,589.00",30/09/2013,R,BANKING AUTOMATION LTD        
368,Central Services,GENERATED ACCOUNT,Parking Cash Collect'n Contrct,E06225,Third Party Payments          ,Private Contractors           ,EH02,Miscellaneous Hired Services            ,"1,066.17",30/08/2013,R,BANKING AUTOMATION LTD        
369,Central Services,GENERATED ACCOUNT,Establishments' Cash Collect'n,E06226,Third Party Payments          ,Private Contractors           ,EH02,Miscellaneous Hired Services            ,507.7,30/09/2013,R,LOOMIS UK LTD                 
370,Central Services,SupS Legal,Legal Services,E10282,Supplies & Services           ,Services                      ,DF28,Court Fees                              ,"6,640.00",23/10/2013,R,REDACTED
371,Central Services,SupS Legal,Legal Services,E10282,Supplies & Services           ,Services                      ,DF28,Court Fees                              ,900,09/10/2013,R,REDACTED
372,Central Services,SupS Legal,Legal Services,E10282,Supplies & Services           ,Services                      ,DF28,Court Fees                              ,"3,945.00",23/10/2013,R,REDACTED
373,Central Services,SupS Legal,Shared Legal Service,E10288,Supplies & Services           ,Equip Furniture/Materials     ,DA80,Books                                   ,"16,000.00",04/10/2013,R,PRACTICAL LAW COMPANY         
374,Central Services,SupS Legal,Shared Legal Service,E10288,Supplies & Services           ,Prntng Stnry Gen Off Exp      ,DE03,Stationery                              ,530,19/10/2013,R,OFFICE DEPOT UK LTD           
375,Central Services,SupS Legal,Shared Legal Service,E10288,Supplies & Services           ,Services                      ,DF03,Consultants                             ,"2,415.00",15/10/2013,R,CGJ ROBERTS - HRC GROUP       
376,Central Services,SupS Legal,Shared Legal Service,E10288,Supplies & Services           ,Services                      ,DF03,Consultants                             ,"2,330.80",24/09/2013,R,SGS                           
377,Central Services,SupS Legal,Shared Legal Service,E10288,Supplies & Services           ,Services                      ,DF09,Miscellaneous Fees                      ,"1,171.47",30/09/2013,R,WINCANTON RECORDS MANAGEMENT  
378,Central Services,SupS Legal,Shared Legal Service,E10288,Supplies & Services           ,Services                      ,DF11,Counsel's Fees                          ,720,24/09/2013,R,REDACTED
379,Central Services,SupS Legal,Shared Legal Service,E10288,Supplies & Services           ,Services                      ,DF11,Counsel's Fees                          ,870,26/06/2013,R,REDACTED
380,Central Services,SupS Legal,Shared Legal Service,E10288,Supplies & Services           ,Services                      ,DF11,Counsel's Fees                          ,520,01/10/2013,R,REDACTED
381,Central Services,SupS Legal,Shared Legal Service,E10288,Supplies & Services           ,Services                      ,DF11,Counsel's Fees                          ,720,26/07/2013,R,REDACTED
382,Central Services,SupS Legal,Shared Legal Service,E10288,Supplies & Services           ,Services                      ,DF11,Counsel's Fees                          ,520,22/08/2013,R,REDACTED
383,Central Services,SupS Legal,Shared Legal Service,E10288,Supplies & Services           ,Grants and Subscriptions      ,DJ04,Subscriptions                           ,587,09/10/2013,R,SGS                           
384,Central Services,SupS Legal,Richmond Legal,E10289,Supplies & Services           ,Services                      ,DF09,Miscellaneous Fees                      ,827.4,31/05/2013,R,JORDANS LTD                   
385,Central Services,SupS Legal,Richmond Legal,E10289,Supplies & Services           ,Services                      ,DF11,Counsel's Fees                          ,"4,500.00",23/09/2013,R,REDACTED
386,Central Services,SupS Legal,Richmond Legal,E10289,Supplies & Services           ,Services                      ,DF11,Counsel's Fees                          ,"1,500.00",02/07/2013,R,REDACTED
387,Central Services,SupS Legal,Richmond Legal,E10289,Supplies & Services           ,Services                      ,DF11,Counsel's Fees                          ,850,02/09/2013,R,REDACTED
388,Central Services,SupS Legal,Richmond Legal,E10289,Supplies & Services           ,Services                      ,DF11,Counsel's Fees                          ,600,09/09/2013,R,REDACTED
389,Central Services,SupS Legal,Richmond Legal,E10289,Supplies & Services           ,Services                      ,DF11,Counsel's Fees                          ,"1,200.00",17/10/2013,R,REDACTED
390,Central Services,SupS Legal,Richmond Legal,E10289,Supplies & Services           ,Services                      ,DF11,Counsel's Fees                          ,500,02/07/2013,R,REDACTED
391,Central Services,SupS Legal,Richmond Legal,E10289,Supplies & Services           ,Services                      ,DF11,Counsel's Fees                          ,550,20/09/2013,R,REDACTED
392,Central Services,SupS Legal,Richmond Legal,E10289,Supplies & Services           ,Services                      ,DF11,Counsel's Fees                          ,"1,125.00",02/09/2013,R,REDACTED
393,Central Services,SupS Legal,Richmond Legal,E10289,Supplies & Services           ,Services                      ,DF11,Counsel's Fees                          ,"1,400.00",09/09/2013,R,REDACTED
394,Central Services,SupS Legal,Richmond Legal,E10289,Supplies & Services           ,Services                      ,DF95,Services from Provider                  ,"3,477.00",10/09/2013,R,REDACTED
395,Central Services,SupS Legal,4 Borough Legal Service                 ,E10290,Supplies & Services           ,Services                      ,DF03,Consultants                             ,"2,455.34",11/09/2013,R,LEXIS NEXIS                   
396,Central Services,SupS Legal,4 Borough Legal Service                 ,E10290,Supplies & Services           ,Services                      ,DF03,Consultants                             ,"3,800.00",11/09/2013,R,LEXIS NEXIS                   
397,Central Services,SupS Legal,4 Borough Legal Service                 ,E10290,Supplies & Services           ,Services                      ,DF03,Consultants                             ,"1,340.43",11/09/2013,R,LEXIS NEXIS                   
398,Central Services,SupS Legal,4 Borough Legal Service                 ,E10290,Supplies & Services           ,Services                      ,DF03,Consultants                             ,"3,800.00",11/09/2013,R,LEXIS NEXIS                   
399,Central Services,SupS Legal,4 Borough Legal Service                 ,E10290,Supplies & Services           ,Comms and Computing           ,DG02,Software Licences                       ,"5,125.00",18/09/2013,R,LEXIS NEXIS                   
400,Central Services,SupS Legal,4 Borough Legal Service                 ,E10290,Supplies & Services           ,Comms and Computing           ,DG02,Software Licences                       ,"6,757.50",30/08/2013,R,ZYLPHA LIMITED                
401,Central Services,SupS Legal,4 Borough Legal Service                 ,E10290,Supplies & Services           ,Comms and Computing           ,DG08,Computer Hardware                       ,"2,333.50",10/09/2013,R,SPECIALIST COMPUTER CENT. PLC 
402,Central Services,SupS Legal,4 Borough Legal Service                 ,E10290,Supplies & Services           ,Comms and Computing           ,DG08,Computer Hardware                       ,"1,440.00",24/09/2013,R,TOTAL COMPUTER NETWORKS       
403,Central Services,SupS Legal,4 Borough Legal Service                 ,E10290,Supplies & Services           ,Comms and Computing           ,DG08,Computer Hardware                       ,"1,242.00",25/09/2013,R,VIGLEN LIMITED                
404,Central Services,SupS Legal,4 Borough Legal Service                 ,E10290,Supplies & Services           ,Comms and Computing           ,DG08,Computer Hardware                       ,"2,324.00",11/09/2013,R,VIGLEN LIMITED                
405,Central Services,SupS Legal,4 Borough Legal Service                 ,E10290,Supplies & Services           ,Comms and Computing           ,DG08,Computer Hardware                       ,"1,800.00",20/09/2013,R,INCOM TELECOMMUNICATIONS      
406,Central Services,SupS IT,AD Business Improvement,E14358,Employees                     ,Direct Employee Expenses      ,AA17,Agency Staff & Casual Paymts            ,"10,500.00",30/09/2013,R,PENNA PLC                     
407,Central Services,SupS IT,Corp Saving-Print Strategy,E14359,Supplies & Services           ,Equip Furniture/Materials     ,DA77,Photocopier Rental                      ,"9,604.96",28/08/2013,R,ALTODIGITAL NETWORKS LTD      
408,Central Services,SupS IT,Corp Saving-Print Strategy,E14359,Supplies & Services           ,Equip Furniture/Materials     ,DA77,Photocopier Rental                      ,"29,750.00",28/08/2013,R,ALTODIGITAL NETWORKS LTD      
409,Central Services,SupS IT,Corp Saving-Print Strategy,E14359,Supplies & Services           ,Prntng Stnry Gen Off Exp      ,DE06,MULTI-FUNCTIONAL PRINTERS               ,"37,112.56",28/08/2013,R,ALTODIGITAL NETWORKS LTD      
410,Central Services,SupS IT,BI IT Projects,E14360,Supplies & Services           ,Services                      ,DF03,Consultants                             ,"4,500.00",09/09/2013,R,PRACTICUS                     
411,Central Services,SupS IT,BI IT Projects,E14360,Supplies & Services           ,Services                      ,DF03,Consultants                             ,"7,500.00",07/10/2013,R,PRACTICUS                     
412,Central Services,SupS IT,AD I&T,E14363,Employees                     ,Direct Employee Expenses      ,AA17,Agency Staff & Casual Paymts            ,"12,000.00",03/10/2013,R,GATENBY SANDERSON             
413,Central Services,SupS IT,Systems & Projects,E14366,Supplies & Services           ,Comms and Computing           ,DG02,Software Licences                       ,"4,508.00",30/09/2013,R,FIRMSTEP                      
414,Central Services,SupS IT,Systems & Projects,E14366,Supplies & Services           ,Grants and Subscriptions      ,DJ04,Subscriptions                           ,"2,803.43",08/10/2013,R,SITE IMPROVE LTD              
415,Central Services,SupS IT,Operations & Telecomms,E14367,Employees                     ,Direct Employee Expenses      ,AA17,Agency Staff & Casual Paymts            ,"4,200.00",03/10/2013,R,REDACTED
416,Central Services,SupS IT,Operations & Telecomms,E14367,Premises Related Expenditure  ,RepairsAlterations&MtceOfBldgs,BA05,DDM - Electrical                        ,500,09/10/2013,R,DATA TECHNIQUES               
417,Central Services,SupS IT,Operations & Telecomms,E14367,Supplies & Services           ,Comms and Computing           ,DG15,Network Maintenance                     ,"1,842.83",08/09/2013,R,BRITISH TELECOMMUNICATIONS PLC
418,Central Services,SupS IT,Operations & Telecomms,E14367,Supplies & Services           ,Comms and Computing           ,DG54,Corporate Telephones                    ,"8,377.51",16/10/2013,R,COLT TELECOMMUNICATIONS       
419,Central Services,SupS IT,Operations & Telecomms,E14367,Supplies & Services           ,Comms and Computing           ,DG54,Corporate Telephones                    ,"9,821.79",04/10/2013,R,T MOBILE (UK)                 
420,Central Services,SupS IT,Distributed Services,E14368,Supplies & Services           ,Comms and Computing           ,DG15,Network Maintenance                     ,599.8,14/10/2013,R,MISCO                         
421,Central Services,SupS IT,Distributed Services,E14368,Supplies & Services           ,Comms and Computing           ,DG63,Software Licences - Data                ,"4,485.00",30/09/2013,R,NET-CTRL                      
422,Central Services,SupS IT,Distributed Services,E14368,Supplies & Services           ,Comms and Computing           ,DG63,Software Licences - Data                ,"40,198.50",30/09/2013,R,NET-CTRL                      
423,Central Services,SupS IT,Distributed Services,E14368,Supplies & Services           ,Comms and Computing           ,DG63,Software Licences - Data                ,"3,600.00",25/09/2013,R,TWOFOLD LTD                   
424,Central Services,SupS IT,Distributed Services,E14368,Supplies & Services           ,Comms and Computing           ,DG63,Software Licences - Data                ,"7,200.00",25/09/2013,R,TWOFOLD LTD                   
425,Central Services,SupS IT,Distributed Services,E14368,Supplies & Services           ,Comms and Computing           ,DG65,Application Licences                    ,"1,900.00",23/07/2013,R,CACI LIMITED                  
426,Central Services,SupS IT,Corp Saving-IT Consolidation,E14370,Premises Related Expenditure  ,RepairsAlterations&MtceOfBldgs,BA01,DDM - General Building                  ,977.5,14/10/2013,R,SALTASH ENTERPRISES LTD       
427,Central Services,SupS IT,Corp Saving-IT Consolidation,E14370,Premises Related Expenditure  ,RepairsAlterations&MtceOfBldgs,BA01,DDM - General Building                  ,"3,300.00",14/10/2013,R,SALTASH ENTERPRISES LTD       
428,Central Services,SupS IT,Corp Saving-IT Consolidation,E14370,Premises Related Expenditure  ,RepairsAlterations&MtceOfBldgs,BA01,DDM - General Building                  ,"1,641.03",05/04/2013,R,SALTASH ENTERPRISES LTD       
429,Central Services,SupS IT,Corp Saving-IT Consolidation,E14370,Premises Related Expenditure  ,RepairsAlterations&MtceOfBldgs,BA01,DDM - General Building                  ,"4,499.38",14/10/2013,R,SALTASH ENTERPRISES LTD       
430,Central Services,SupS IT,Corp Saving-IT Consolidation,E14370,Premises Related Expenditure  ,RepairsAlterations&MtceOfBldgs,BA01,DDM - General Building                  ,"22,048.68",09/10/2013,R,SALTASH ENTERPRISES LTD       
431,Central Services,SupS IT,Corp Saving-IT Consolidation,E14370,Premises Related Expenditure  ,RepairsAlterations&MtceOfBldgs,BA01,DDM - General Building                  ,975,14/10/2013,R,SALTASH ENTERPRISES LTD       
432,Central Services,SupS IT,Corp Saving-IT Consolidation,E14370,Premises Related Expenditure  ,RepairsAlterations&MtceOfBldgs,BA01,DDM - General Building                  ,"1,050.00",14/10/2013,R,SALTASH ENTERPRISES LTD       
433,Central Services,SupS IT,Corp Saving-IT Consolidation,E14370,Premises Related Expenditure  ,RepairsAlterations&MtceOfBldgs,BA01,DDM - General Building                  ,"6,090.00",14/10/2013,R,SALTASH ENTERPRISES LTD       
434,Central Services,SupS IT,Corp Saving-IT Consolidation,E14370,Premises Related Expenditure  ,RepairsAlterations&MtceOfBldgs,BA01,DDM - General Building                  ,"1,509.38",14/10/2013,R,SALTASH ENTERPRISES LTD       
435,Central Services,SupS IT,Corp Saving-IT Consolidation,E14370,Premises Related Expenditure  ,RepairsAlterations&MtceOfBldgs,BA01,DDM - General Building                  ,"8,000.00",05/04/2013,R,SALTASH ENTERPRISES LTD       
436,Central Services,SupS IT,Corp Saving-IT Consolidation,E14370,Premises Related Expenditure  ,RepairsAlterations&MtceOfBldgs,BA01,DDM - General Building                  ,"15,275.00",14/10/2013,R,SALTASH ENTERPRISES LTD       
437,Central Services,SupS IT,Corp Saving-IT Consolidation,E14370,Premises Related Expenditure  ,RepairsAlterations&MtceOfBldgs,BA05,DDM - Electrical                        ,"8,794.00",09/10/2013,R,PFC ENGINEERING LTD           
438,Central Services,SupS IT,No longer used,E14371,Supplies & Services           ,Services                      ,DF03,Consultants                             ,"6,150.00",02/10/2013,R,REDQUADRANT LTD               
439,Central Services,SupS IT,No longer used,E14371,Supplies & Services           ,Services                      ,DF03,Consultants                             ,"1,520.00",04/10/2013,R,REDQUADRANT LTD               
440,Central Services,SupS IT,No longer used,E14371,Supplies & Services           ,Services                      ,DF03,Consultants                             ,760,16/09/2013,R,REDQUADRANT LTD               
441,Central Services,SupS IT,No longer used,E14371,Supplies & Services           ,Services                      ,DF03,Consultants                             ,"9,610.00",01/10/2013,R,V4 SERVICES LIMITED           
442,Central Services,SupS IT,No longer used,E14371,Supplies & Services           ,Grants and Subscriptions      ,DJ04,Subscriptions                           ,"5,400.00",23/09/2013,R,EXPERIAN LTD                  
443,Cultural Env Reg&Plan Services,Mgt & Support (Env),ES Support & Development,G00070,Supplies & Services           ,Equip Furniture/Materials     ,DA01,Equipment - R & M                       ,"1,440.00",02/10/2013,R,SPEECHWRITE SUPPORT LTD       
444,Cultural Env Reg&Plan Services,Mgt & Support (Env),Senior Mgt. - E.S.C.,G00100,Supplies & Services           ,Services                      ,DF11,Counsel's fees                          ,550,05/09/2013,R,REDACTED
445,Highways & Transport Services,TRAF & HWYS MGMNT & SUPPORT,TRAF & HWYS MGMNT & SUPPORT,G00115,Employees                     ,Direct Employee Expenses      ,AA96,SALARY SACRIFICE (TEACHERS)             ,620.84,06/09/2013,R,F.W.EVANS CYCLES (UK) LTD.    
446,Highways & Transport Services,Hwys/Rds (struct) not split,C'way & F'way Mtce,G00121,Supplies & Services           ,Grants and Subscriptions      ,DJ04,Subscriptions                           ,"1,303.00",19/08/2013,R,LONDON BRIDGES ENG. GROUP     
447,Highways & Transport Services,Hwys/Rds (struct) not split,Surf Water Drainage,G00123,Third Party Payments          ,Private Contractors           ,EH56,Carriageway/Fway Maint                  ,635,04/10/2013,R,STILLWATER ASSOCIATES         
448,Highways & Transport Services,Repair prin/oth rds not split,Walk Sheets,G00127,Third Party Payments          ,Private Contractors           ,EH56,Carriageway/Fway Maint                  ,545.95,14/10/2013,R,FM CONWAY LTD                 
449,Highways & Transport Services,Repair prin/oth rds not split,Walk Sheets,G00127,Third Party Payments          ,Private Contractors           ,EH56,Carriageway/Fway Maint                  ,984.56,05/10/2013,R,FM CONWAY LTD                 
450,Highways & Transport Services,Repair prin/oth rds not split,Walk Sheets,G00127,Third Party Payments          ,Private Contractors           ,EH56,Carriageway/Fway Maint                  ,"15,000.00",05/10/2013,R,FM CONWAY LTD                 
451,Highways & Transport Services,Repair prin/oth rds not split,Walk Sheets,G00127,Third Party Payments          ,Private Contractors           ,EH56,Carriageway/Fway Maint                  ,"1,548.16",16/10/2013,R,FM CONWAY LTD                 
452,Highways & Transport Services,Repair prin/oth rds not split,Walk Sheets,G00127,Third Party Payments          ,Private Contractors           ,EH56,Carriageway/Fway Maint                  ,"3,827.39",17/10/2013,R,FM CONWAY LTD                 
453,Highways & Transport Services,Repair prin/oth rds not split,Walk Sheets,G00127,Third Party Payments          ,Private Contractors           ,EH56,Carriageway/Fway Maint                  ,"6,260.67",05/10/2013,R,FM CONWAY LTD                 
454,Highways & Transport Services,Repair prin/oth rds not split,Walk Sheets,G00127,Third Party Payments          ,Private Contractors           ,EH56,Carriageway/Fway Maint                  ,952.19,16/10/2013,R,FM CONWAY LTD                 
455,Highways & Transport Services,Repair prin/oth rds not split,Walk Sheets,G00127,Third Party Payments          ,Private Contractors           ,EH56,Carriageway/Fway Maint                  ,"5,824.91",05/10/2013,R,FM CONWAY LTD                 
456,Highways & Transport Services,Hwys/Rds (struct) not split,"Br., H'ways & Struct",G00128,Third Party Payments          ,Private Contractors           ,EH01,Miscellaneous Contrct Services          ,"2,588.09",19/09/2013,R,NETWORK RAIL INFRASTRUCTURE LT
457,Highways & Transport Services,Hwys/Rds (struct) not split,"Br., H'ways & Struct",G00128,Third Party Payments          ,Private Contractors           ,EH56,Carriageway/Fway Maint                  ,"18,731.70",30/08/2013,R,FM CONWAY LTD                 
458,Highways & Transport Services,Winter Maintenance.,Winter Maintenance,G00150,Third Party Payments          ,Other Local Authorities       ,EB50,WINTER CONTRACT                         ,"3,779.26",04/10/2013,R,SALT UNION LIMITED            
459,Highways & Transport Services,Winter Maintenance.,Winter Maintenance,G00150,Third Party Payments          ,Other Local Authorities       ,EB50,WINTER CONTRACT                         ,"3,762.68",09/10/2013,R,SALT UNION LIMITED            
460,Highways & Transport Services,Winter Maintenance.,Winter Maintenance,G00150,Third Party Payments          ,Other Local Authorities       ,EB50,WINTER CONTRACT                         ,"1,877.20",10/10/2013,R,SALT UNION LIMITED            
461,Highways & Transport Services,Winter Maintenance.,Winter Maintenance,G00150,Third Party Payments          ,Other Local Authorities       ,EB50,WINTER CONTRACT                         ,"1,846.82",03/10/2013,R,SALT UNION LIMITED            
462,Highways & Transport Services,Winter Maintenance.,Winter Maintenance,G00150,Third Party Payments          ,Other Local Authorities       ,EB50,WINTER CONTRACT                         ,"2,829.94",02/10/2013,R,SALT UNION LIMITED            
463,Highways & Transport Services,Winter Maintenance.,Winter Maintenance,G00150,Third Party Payments          ,Other Local Authorities       ,EB50,WINTER CONTRACT                         ,"2,802.33",30/09/2013,R,SALT UNION LIMITED            
464,Highways & Transport Services,Winter Maintenance.,Winter Maintenance,G00150,Third Party Payments          ,Other Local Authorities       ,EB50,WINTER CONTRACT                         ,"2,809.24",01/10/2013,R,SALT UNION LIMITED            
465,Highways & Transport Services,Winter Maintenance.,Winter Maintenance,G00150,Third Party Payments          ,Other Local Authorities       ,EB50,WINTER CONTRACT                         ,"1,891.00",10/10/2013,R,SALT UNION LIMITED            
466,Highways & Transport Services,Winter Maintenance.,Winter Maintenance,G00150,Third Party Payments          ,Other Local Authorities       ,EB50,WINTER CONTRACT                         ,"2,812.69",18/10/2013,R,SALT UNION LIMITED            
467,Highways & Transport Services,Winter Maintenance.,Winter Maintenance,G00150,Third Party Payments          ,Other Local Authorities       ,EB50,WINTER CONTRACT                         ,"1,899.29",17/10/2013,R,SALT UNION LIMITED            
468,Highways & Transport Services,Winter Maintenance.,Winter Maintenance,G00150,Third Party Payments          ,Other Local Authorities       ,EB50,WINTER CONTRACT                         ,"2,834.10",15/10/2013,R,SALT UNION LIMITED            
469,Highways & Transport Services,Winter Maintenance.,Winter Maintenance,G00150,Third Party Payments          ,Other Local Authorities       ,EB50,WINTER CONTRACT                         ,952.06,11/10/2013,R,SALT UNION LIMITED            
470,Highways & Transport Services,Winter Maintenance.,Winter Maintenance,G00150,Third Party Payments          ,Other Local Authorities       ,EB50,WINTER CONTRACT                         ,"3,724.02",08/10/2013,R,SALT UNION LIMITED            
471,Highways & Transport Services,Winter Maintenance.,Winter Maintenance,G00150,Third Party Payments          ,Other Local Authorities       ,EB50,WINTER CONTRACT                         ,"2,829.95",14/10/2013,R,SALT UNION LIMITED            
472,Highways & Transport Services,Winter Maintenance.,Winter Maintenance,G00150,Third Party Payments          ,Other Local Authorities       ,EB50,WINTER CONTRACT                         ,938.94,22/10/2013,R,SALT UNION LIMITED            
473,Highways & Transport Services,Winter Maintenance.,Winter Maintenance,G00150,Third Party Payments          ,Other Local Authorities       ,EB50,WINTER CONTRACT                         ,"1,857.18",21/10/2013,R,SALT UNION LIMITED            
474,Highways & Transport Services,Saf mtc prin/oth rds not split,Traffic Signs.,G00160,Third Party Payments          ,Private Contractors           ,EH01,Miscellaneous Agency Services           ,"1,900.00",17/10/2013,R,FM CONWAY LTD                 
475,Highways & Transport Services,Saf mtc prin/oth rds not split,Traffic Signs.,G00160,Third Party Payments          ,Private Contractors           ,EH01,Miscellaneous Agency Services           ,"1,231.45",25/10/2013,R,MAY GURNEY LTD T/A CARTLEDGE  
476,Highways & Transport Services,Saf mtc prin/oth rds not split,Traffic Signs.,G00160,Third Party Payments          ,Private Contractors           ,EH01,Miscellaneous Agency Services           ,"2,313.03",25/10/2013,R,MAY GURNEY LTD T/A CARTLEDGE  
477,Highways & Transport Services,Saf mtc prin/oth rds not split,Traffic Signs.,G00160,Third Party Payments          ,Private Contractors           ,EH01,Miscellaneous Agency Services           ,"1,565.07",25/10/2013,R,MAY GURNEY LTD T/A CARTLEDGE  
478,Highways & Transport Services,Saf mtc prin/oth rds not split,Traffic Signs.,G00160,Third Party Payments          ,Private Contractors           ,EH02,Miscellaneous Hired Services            ,"3,597.44",05/10/2013,R,FM CONWAY LTD                 
479,Highways & Transport Services,Saf mtc prin/oth rds not split,Traffic Signals .,G00170,Third Party Payments          ,Other Agencies                ,EJ57,Traffic Signals Control Unit            ,"82,529.59",08/10/2013,R,TRANSPORT FOR LONDON          
480,Highways & Transport Services,Traffic Management,Tr Man & Accid Sch,G00220,Supplies & Services           ,Equip Furniture/Materials     ,DA09,Equip-Purchases                         ,565,10/07/2013,R,MISCO                         
481,Highways & Transport Services,Traffic Management,Tr Man & Accid Sch,G00220,Supplies & Services           ,Services                      ,DF02,Misc Advertising/Publicity              ,727.8,14/09/2013,R,NEWSQUEST (LONDON)LTD         
482,Highways & Transport Services,Traffic Management,Tr Man & Accid Sch,G00220,Supplies & Services           ,Services                      ,DF02,Misc Advertising/Publicity              ,800.58,28/09/2013,R,NEWSQUEST (LONDON)LTD         
483,Highways & Transport Services,Street Lighting.,Street Lighting .,G00260,Premises Related Expenditure  ,Energy Costs                  ,BB02,Electricity                             ,"1,362.75",03/10/2013,R,SCOTTISHPOWER                 
484,Highways & Transport Services,Street Lighting.,Street Lighting .,G00260,Premises Related Expenditure  ,Energy Costs                  ,BB02,Electricity                             ,"42,451.23",03/10/2013,R,SCOTTISHPOWER                 
485,Highways & Transport Services,Street Lighting.,Street Lighting .,G00260,Third Party Payments          ,Private Contractors           ,EH01,Miscellaneous Agency Services           ,"1,790.67",27/09/2013,R,MAY GURNEY LTD T/A CARTLEDGE  
486,Highways & Transport Services,Street Lighting.,Street Lighting .,G00260,Third Party Payments          ,Private Contractors           ,EH01,Miscellaneous Agency Services           ,"13,947.98",27/09/2013,R,MAY GURNEY LTD T/A CARTLEDGE  
487,Highways & Transport Services,Street Lighting.,Street Lighting .,G00260,Third Party Payments          ,Private Contractors           ,EH01,Miscellaneous Agency Services           ,670.86,23/09/2013,R,MAY GURNEY LTD T/A CARTLEDGE  
488,Highways & Transport Services,Street Lighting.,Street Lighting .,G00260,Third Party Payments          ,Private Contractors           ,EH01,Miscellaneous Agency Services           ,"1,501.94",02/10/2013,R,NETWORK RAIL                  
489,Highways & Transport Services,Street Lighting.,Street Lighting .,G00260,Third Party Payments          ,Private Contractors           ,EH01,Miscellaneous Agency Services           ,"2,901.32",23/09/2013,R,MAY GURNEY LTD T/A CARTLEDGE  
490,Highways & Transport Services,Street Lighting.,Street Lighting .,G00260,Third Party Payments          ,Private Contractors           ,EH01,Miscellaneous Agency Services           ,644,07/10/2013,R,UK POWER NETWORKS (OPERATIONS)
491,Highways & Transport Services,Off-street parking,Morden Park Lorry Pk,G00299,Premises Related Expenditure  ,RepairsAlterations&MtceOfBldgs,BA06,Repairs & Maintenance General           ,876.86,12/10/2013,R,FM CONWAY LTD                 
492,Highways & Transport Services,Off-street parking,"St. Mks Rd, Multi Sty",G00308,Premises Related Expenditure  ,Rents                         ,BC01,Miscellaneous Rents                     ,"5,164.17",22/08/2013,R,FISHER PROPERTY CONSULTANTS   
493,Highways & Transport Services,Parking Enforcement not split,Civil Enforcement Officers,G00330,Premises Related Expenditure  ,Rents                         ,BC01,Miscellaneous Rents                     ,"1,352.93",06/09/2013,R,REDACTED
494,Highways & Transport Services,Parking Enforcement not split,Operational Running Costs,G00331,Supplies & Services           ,Comms and Computing           ,DG56,SRF Work                                ,755.88,10/07/2013,R,MISCO                         
495,Highways & Transport Services,Parking Enforcement not split,Operational Running Costs,G00331,Third Party Payments          ,Other Agencies                ,EJ58,Parking Cttee for London                ,"30,000.00",17/10/2013,R,HMCTS                         
496,Highways & Transport Services,Repair prin/oth rds not split,Flood Risk Management,G00350,Supplies & Services           ,Services                      ,DF02,Misc Advertising/Publicity              ,655.02,28/09/2013,R,NEWSQUEST (LONDON)LTD         
497,Highways & Transport Services,Repair prin/oth rds not split,Flood Risk Management,G00350,Supplies & Services           ,Services                      ,DF02,Misc Advertising/Publicity              ,"1,091.70",21/09/2013,R,NEWSQUEST (LONDON)LTD         
498,Highways & Transport Services,Repair prin/oth rds not split,Flood Risk Management,G00350,Supplies & Services           ,Services                      ,DF03,Consultants                             ,"3,685.20",30/09/2013,R,URS INFRASTRUCTURE & ENV UK LT
499,Highways & Transport Services,Hwys/Rds (struct) not split,Footpath Crossings.,G00390,Third Party Payments          ,Private Contractors           ,EH56,Carriageway/Fway Maint                  ,"3,042.97",17/10/2013,R,FM CONWAY LTD                 
500,Highways & Transport Services,Hwys/Rds (struct) not split,Footpath Crossings.,G00390,Third Party Payments          ,Private Contractors           ,EH56,Carriageway/Fway Maint                  ,522.2,05/10/2013,R,FM CONWAY LTD                 
501,Highways & Transport Services,Hwys/Rds (struct) not split,Footpath Crossings.,G00390,Third Party Payments          ,Private Contractors           ,EH56,Carriageway/Fway Maint                  ,"12,565.16",05/10/2013,R,FM CONWAY LTD                 
502,Cultural Env Reg&Plan Services,Street Clean - Not highways,Street Cleansing (Inc. Gully),G00492,Employees                     ,Direct Employee Expenses      ,AA17,Agency Staff & Casual Paymts            ,"7,614.15",23/08/2013,R,REDACTED
503,Cultural Env Reg&Plan Services,Street Clean - Not highways,Street Cleansing (Inc. Gully),G00492,Supplies & Services           ,Equip Furniture/Materials     ,DA08,Tools-Purchase                          ,534.78,19/09/2013,R,BELL BRUSH                    
504,Cultural Env Reg&Plan Services,Street Clean - Not highways,Street Cleansing (Inc. Gully),G00492,Supplies & Services           ,Equip Furniture/Materials     ,DA31,Waste Sacks & Bags                      ,"1,512.90",20/09/2013,R,POLARIS PLASTICS LTD          
505,Cultural Env Reg&Plan Services,Street Clean - Not highways,Street Cleansing (Inc. Gully),G00492,Supplies & Services           ,Clothing Unfrms Laundry       ,DC02,Clothing & Uniforms                     ,"1,509.37",09/10/2013,R,SAFETY MANAGEMENT             
506,Adult Social Care,Supported/Sheltered Employment,Shltd Placement Sch.,G00520,Supplies & Services           ,Clothing Unfrms Laundry       ,DC02,Clothing & Uniforms                     ,"1,500.00",09/10/2013,R,SAFETY MANAGEMENT             
507,Cultural Env Reg&Plan Services,Waste Disposal (not separated),Waste Disposal .,G00550,Third Party Payments          ,Private Contractors           ,EH01,Dog Bin Disposal - Biffa                ,631.53,16/08/2013,R,BIFFA WASTE SERVICES LTD      
508,Cultural Env Reg&Plan Services,Waste Disposal (not separated),Waste Disposal .,G00550,Third Party Payments          ,Private Contractors           ,EH66,Clinical Waste Disposal                 ,813.88,30/09/2013,R,S.GRUNDON (WASTE) LTD.        
509,Cultural Env Reg&Plan Services,Waste Disposal (not separated),Waste Disposal .,G00550,Third Party Payments          ,Private Contractors           ,EH96,GULLY DISPOSAL                          ,"1,680.22",30/09/2013,R,CORY ENVIRONMENTAL LIMITED    
510,Cultural Env Reg&Plan Services,Civic Amenity Sites,Garth Road Site,G00580,Premises Related Expenditure  ,RepairsAlterations&MtceOfBldgs,BA70,Maintenance of Weighbridge              ,"7,250.00",17/10/2013,R,PRECIA MOLEN                  
511,Cultural Env Reg&Plan Services,Civic Amenity Sites,SLWP (Garth Rd Site)                    ,G00581,Transport Related Expenditure ,Direct Transport Costs        ,CA01,Petrol Derv & Oil                       ,"2,079.30",13/09/2013,R,HALL FUELS                    
512,Highways & Transport Services,Hwys/Rds (struct) not split,Grass Cut/Tr Mtce,G00600,Premises Related Expenditure  ,Ground Maintenance Costs      ,BL03,Maintenance of Grounds                  ,"2,232.00",16/10/2013,R,FM CONWAY LTD                 
513,Cultural Env Reg&Plan Services,Recycling (Collection),Recycling Activities,G00640,Third Party Payments          ,Private Contractors           ,EH61,Green Waste Disposal                    ,"9,489.77",30/09/2013,R,VIRIDOR WASTE KENT LTD        
514,Cultural Env Reg&Plan Services,Recycling (Collection),BARROW AND BINS REPLACEMENT,G00641,Supplies & Services           ,Equip Furniture/Materials     ,DA54,GREEN KERBSIDE RECYCLING BOXES          ,"6,048.00",15/10/2013,R,STRAIGHT PLC                  
515,Cultural Env Reg&Plan Services,Household Waste Collection,Refuse Collection (Operations),G00661,Supplies & Services           ,Equip Furniture/Materials     ,DA32,Wheeled Bins                            ,"1,440.00",17/09/2013,R,UK CONTAINER MAINTENANCE LTD  
516,Cultural Env Reg&Plan Services,Household Waste Collection,Refuse Collection (Operations),G00661,Supplies & Services           ,Clothing Unfrms Laundry       ,DC02,Clothing & Uniforms                     ,"1,509.37",09/10/2013,R,SAFETY MANAGEMENT             
517,Cultural Env Reg&Plan Services,Housing Standards,AIR QUALITY GRANT (DEFRA) MB,G00732,Third Party Payments          ,Private Contractors           ,EH02,Miscellaneous Hired Services            ,"4,189.00",24/09/2013,R,KINGS COLLEGE LONDON          
518,Cultural Env Reg&Plan Services,Community Develop't (Plg),N.E.Mitcham Community Asso,G18250,Supplies & Services           ,Grants and Subscriptions      ,DJ01,Grants                                  ,"18,640.00",01/10/2013,R,NORTH EAST MITCHAM COMM ASSOC 
519,Cultural Env Reg&Plan Services,Community Develop't (Plg),Colliers Wood Community Asso,G18251,Supplies & Services           ,Grants and Subscriptions      ,DJ01,Grants                                  ,"6,170.00",01/10/2013,R,COLLIERS WOOD COMMUNITY ASSOC 
520,Cultural Env Reg&Plan Services,Community Develop't (Plg),S Mitcham Community Asso,G18253,Supplies & Services           ,Grants and Subscriptions      ,DJ01,Grants                                  ,"19,320.00",01/10/2013,R,SOUTH MITCHAM COMMUNITY ASS   
521,Cultural Env Reg&Plan Services,Community Develop't (Plg),S Wimbledon Community Asso,G18254,Supplies & Services           ,Grants and Subscriptions      ,DJ01,Grants                                  ,"2,735.00",01/10/2013,R,SOUTH WIMBLEDON COMMUNITY ASSO
522,Cultural Env Reg&Plan Services,Community Develop't (Plg),St. Marks Family Cntr,G18257,Supplies & Services           ,Grants and Subscriptions      ,DJ01,Grants                                  ,"27,050.00",01/10/2013,R,ST MARKS FAMILY CENTRE        
523,Cultural Env Reg&Plan Services,Museums & Galleries,Wandle Industrial Museum,G19289,Supplies & Services           ,Grants and Subscriptions      ,DJ01,Grants                                  ,"1,975.00",01/10/2013,R,THE WANDLE INDUSTRIAL MUSEUM  
524,Central Services,Grants - Voluntary Groups,Vestry Hall,G19290,Employees                     ,Direct Employee Expenses      ,AA17,Agency Staff & Casual Paymts            ,580.82,31/08/2013,R,REDACTED
525,Central Services,Grants - Voluntary Groups,Vestry Hall,G19290,Employees                     ,Direct Employee Expenses      ,AA17,Agency Staff & Casual Paymts            ,"4,611.35",10/10/2013,R,REDACTED
526,Central Services,Grants - Voluntary Groups,Vestry Hall,G19290,Employees                     ,Direct Employee Expenses      ,AA17,Agency Staff & Casual Paymts            ,545.1,30/09/2013,R,REDACTED
527,Central Services,Grants - Voluntary Groups,Vestry Hall,G19290,Premises Related Expenditure  ,Cleaning and Domestic Supplies,BH03,Cleaning Services                       ,"1,357.76",30/09/2013,R,BIRKIN CLEANING SERVICES LTD  
528,Cultural Env Reg&Plan Services,BC Regs & Other not split,Building Control,H01100,Supplies & Services           ,Prntng Stnry Gen Off Exp      ,DE03,Stationery                              ,700,10/10/2013,R,ROTADEX SYSTEMS LTD           
529,Cultural Env Reg&Plan Services,DC Advice Apps & Reg not split,Development Control,H01130,Supplies & Services           ,Services                      ,DF11,Counsel's fees                          ,"31,170.00",08/08/2013,R,DICKY BIRDS (PEPYS RD)        
530,Cultural Env Reg&Plan Services,DC Advice Apps & Reg not split,Development Control,H01130,Supplies & Services           ,Comms and Computing           ,DG09,Computer Purchases - Misc               ,"3,000.00",30/09/2013,R,NORTHGATE INFORMATION SOLUTION
531,Cultural Env Reg&Plan Services,DC Advice Apps & Reg not split,Development Control,H01130,Customer and client receipts  ,Fees                          ,RB56,Application Fees X                      ,820,09/10/2013,R,RAIL FOR LONDON               
532,Cultural Env Reg&Plan Services,Planning Policy not split,Spatial Policy,H01173,Third Party Payments          ,Private Contractors           ,EH10,Contract Payments                       ,"1,982.50",03/10/2013,R,BNP PARIBAS REAL EST.ADVISORY 
533,Cultural Env Reg&Plan Services,Planning Policy not split,REGENERATION & INVESTMENT,H01174,Supplies & Services           ,Prntng Stnry Gen Off Exp      ,DE22,Marketing                               ,650,22/10/2013,R,BULLET POINT MEDIA LTD        
534,Cultural Env Reg&Plan Services,Planning Policy not split,REGENERATION & INVESTMENT,H01174,Supplies & Services           ,Prntng Stnry Gen Off Exp      ,DE22,Marketing                               ,500,29/10/2013,R,BULLET POINT MEDIA LTD        
535,Cultural Env Reg&Plan Services,Planning Policy not split,REGENERATION & INVESTMENT,H01174,Supplies & Services           ,Prntng Stnry Gen Off Exp      ,DE22,Marketing                               ,"1,500.00",14/10/2013,R,REDACTED
536,Cultural Env Reg&Plan Services,Planning Policy not split,REGENERATION & INVESTMENT,H01174,Supplies & Services           ,Grants and Subscriptions      ,DJ01,Grants                                  ,900,15/10/2013,R,REDACTED
537,Cultural Env Reg&Plan Services,Planning Policy not split,REGENERATION & INVESTMENT,H01174,Supplies & Services           ,Grants and Subscriptions      ,DJ01,Grants                                  ,"7,500.00",26/09/2013,R,MERTON CHAMBER OF COMMERCE    
538,Cultural Env Reg&Plan Services,Planning Policy not split,REGENERATION & INVESTMENT,H01174,Supplies & Services           ,Grants and Subscriptions      ,DJ01,Grants                                  ,600,15/10/2013,R,CORLEONE RESTAURANT           
539,Cultural Env Reg&Plan Services,Planning Policy not split,REGENERATION & INVESTMENT,H01174,Supplies & Services           ,Grants and Subscriptions      ,DJ01,Grants                                  ,"5,500.00",23/09/2013,R,MERTON CHAMBER OF COMMERCE    
540,Cultural Env Reg&Plan Services,Planning Policy not split,REGENERATION & INVESTMENT,H01174,Supplies & Services           ,Grants and Subscriptions      ,DJ01,Grants                                  ,600,15/10/2013,R,CAFFE D'ORO LTD               
541,Cultural Env Reg&Plan Services,Planning Policy not split,REGENERATION & INVESTMENT,H01174,Third Party Payments          ,Private Contractors           ,EH02,Miscellaneous Hired Services            ,"9,777.00",26/07/2013,R,LANDOLT AND BROWN LTD         
542,Cultural Env Reg&Plan Services,Planning Policy not split,HPDG - Spatial Policy,H01183,Supplies & Services           ,Services                      ,DF03,Consultants                             ,"1,500.00",18/09/2013,R,SWBA                          
543,CS -Oth Operating Inc & Expend,Extraordinary Items & PY Adj.,MILES RD GENERATOR,H01203,Premises Related Expenditure  ,Rents                         ,BC03,Room/venue rental hire                  ,"2,680.00",24/10/2013,R,WIMBLEDON STUDIOS LIMITED     
544,CS -Oth Operating Inc & Expend,Extraordinary Items & PY Adj.,MILES RD GENERATOR,H01203,Third Party Payments          ,Private Contractors           ,EH02,Miscellaneous Hired Services            ,"7,500.00",13/09/2013,R,MERTON CHAMBER OF COMMERCE    
545,Cultural Env Reg&Plan Services,Economic Dev (Not separated),(LABGI)-BUSINESS SUPPORT,H01210,Third Party Payments          ,Private Contractors           ,EH02,Miscellaneous Hired Services            ,900,18/10/2013,R,AZTEC EVENT SERVICES LTD      
546,Cultural Env Reg&Plan Services,Economic Dev (Not separated),(LABGI)-BUSINESS SUPPORT,H01210,Third Party Payments          ,Private Contractors           ,EH02,Miscellaneous Hired Services            ,"6,000.00",24/10/2013,R,THEATRE6                      
547,Cultural Env Reg&Plan Services,Market Undertakings,MBIF (Admin),H01220,Supplies & Services           ,Services                      ,DF03,Consultants                             ,"4,998.53",30/09/2013,R,STUDIO WEAVE LTD              
548,CS -Oth Operating Inc & Expend,T/A Vehicle Maintenance etc,Transport-Contract Hire,J01374,Transport Related Expenditure ,Direct Transport Costs        ,CA01,Petrol Derv & Oil                       ,"38,473.10",11/10/2013,R,HARVEST ENERGY LIMITED        
549,CS -Oth Operating Inc & Expend,T/A Vehicle Maintenance etc,Transport-Contract Hire,J01374,Transport Related Expenditure ,Direct Transport Costs        ,CA01,Petrol Derv & Oil                       ,"38,907.28",23/09/2013,R,EMO OILS LTD                  
550,CS -Oth Operating Inc & Expend,T/A Vehicle Maintenance etc,Transport-Contract Hire,J01374,Transport Related Expenditure ,Direct Transport Costs        ,CA02,Tyres                                   ,"1,515.00",26/09/2013,R,MORDEN TYRE SERVICES LTD      
551,CS -Oth Operating Inc & Expend,T/A Vehicle Maintenance etc,Transport-Contract Hire,J01374,Transport Related Expenditure ,Direct Transport Costs        ,CA02,Tyres                                   ,670,17/09/2013,R,MORDEN TYRE SERVICES LTD      
552,CS -Oth Operating Inc & Expend,T/A Vehicle Maintenance etc,Transport-Contract Hire,J01374,Transport Related Expenditure ,Direct Transport Costs        ,CA02,Tyres                                   ,995,23/09/2013,R,MORDEN TYRE SERVICES LTD      
553,CS -Oth Operating Inc & Expend,T/A Vehicle Maintenance etc,Transport-Contract Hire,J01374,Transport Related Expenditure ,Direct Transport Costs        ,CA02,Tyres                                   ,"1,405.00",24/10/2013,R,MORDEN TYRE SERVICES LTD      
554,CS -Oth Operating Inc & Expend,T/A Vehicle Maintenance etc,Transport-Contract Hire,J01374,Transport Related Expenditure ,Direct Transport Costs        ,CA02,Tyres                                   ,"2,180.00",05/09/2013,R,MORDEN TYRE SERVICES LTD      
555,CS -Oth Operating Inc & Expend,T/A Vehicle Maintenance etc,Transport-Contract Hire,J01374,Transport Related Expenditure ,Direct Transport Costs        ,CA02,Tyres                                   ,870,30/09/2013,R,MORDEN TYRE SERVICES LTD      
556,CS -Oth Operating Inc & Expend,T/A Vehicle Maintenance etc,Transport-Contract Hire,J01374,Transport Related Expenditure ,Direct Transport Costs        ,CA02,Tyres                                   ,500,23/10/2013,R,MORDEN TYRE SERVICES LTD      
557,CS -Oth Operating Inc & Expend,T/A Vehicle Maintenance etc,Transport-Contract Hire,J01374,Transport Related Expenditure ,Direct Transport Costs        ,CA02,Tyres                                   ,"1,340.00",02/10/2013,R,MORDEN TYRE SERVICES LTD      
558,CS -Oth Operating Inc & Expend,T/A Vehicle Maintenance etc,Transport-Contract Hire,J01374,Transport Related Expenditure ,Direct Transport Costs        ,CA05,Transport Recharge from Envser          ,"2,000.00",23/10/2013,R,V.O.S.A                       
559,CS -Oth Operating Inc & Expend,T/A Vehicle Maintenance etc,Transport-Contract Hire,J01374,Transport Related Expenditure ,Direct Transport Costs        ,CA55,Specialist Maint. (Off Site)            ,"1,621.76",05/09/2013,R,REDACTED
560,CS -Oth Operating Inc & Expend,T/A Vehicle Maintenance etc,Transport-Contract Hire,J01374,Transport Related Expenditure ,Direct Transport Costs        ,CA55,Specialist Maint. (Off Site)            ,549.38,23/09/2013,R,KINGSLEY COMM COMPONENTS LTD  
561,CS -Oth Operating Inc & Expend,T/A Vehicle Maintenance etc,Transport-Contract Hire,J01374,Transport Related Expenditure ,Direct Transport Costs        ,CA55,Specialist Maint. (Off Site)            ,549.38,23/09/2013,R,KINGSLEY COMM COMPONENTS LTD  
562,CS -Oth Operating Inc & Expend,T/A Vehicle Maintenance etc,Transport-Contract Hire,J01374,Transport Related Expenditure ,Direct Transport Costs        ,CA55,Specialist Maint. (Off Site)            ,914.97,07/10/2013,R,FLEETSPEED COACHWORKS LTD.    
563,CS -Oth Operating Inc & Expend,T/A Vehicle Maintenance etc,Transport-Contract Hire,J01374,Transport Related Expenditure ,Direct Transport Costs        ,CA55,Specialist Maint. (Off Site)            ,549.38,23/09/2013,R,KINGSLEY COMM COMPONENTS LTD  
564,CS -Oth Operating Inc & Expend,T/A Vehicle Maintenance etc,Transport-Contract Hire,J01374,Transport Related Expenditure ,Direct Transport Costs        ,CA55,Specialist Maint. (Off Site)            ,518.14,30/09/2013,R,KINGSLEY COMM COMPONENTS LTD  
565,CS -Oth Operating Inc & Expend,T/A Vehicle Maintenance etc,Transport-Contract Hire,J01374,Transport Related Expenditure ,Direct Transport Costs        ,CA55,Specialist Maint. (Off Site)            ,549.38,23/09/2013,R,KINGSLEY COMM COMPONENTS LTD  
566,CS -Oth Operating Inc & Expend,T/A Vehicle Maintenance etc,Transport-Contract Hire,J01374,Transport Related Expenditure ,Direct Transport Costs        ,CA55,Specialist Maint. (Off Site)            ,"4,260.24",03/09/2013,R,REDACTED
567,CS -Oth Operating Inc & Expend,T/A Vehicle Maintenance etc,Transport-Contract Hire,J01374,Transport Related Expenditure ,Direct Transport Costs        ,CA56,Specialist Maint. (On Site)             ,543.75,13/10/2013,R,R.J.H.WELDING                 
568,CS -Oth Operating Inc & Expend,T/A Vehicle Maintenance etc,Transport-Contract Hire,J01374,Transport Related Expenditure ,Direct Transport Costs        ,CA56,Specialist Maint. (On Site)             ,525,10/10/2013,R,R.J.H.WELDING                 
569,CS -Oth Operating Inc & Expend,T/A Vehicle Maintenance etc,Transport-Contract Hire,J01374,Transport Related Expenditure ,Direct Transport Costs        ,CA56,Specialist Maint. (On Site)             ,589.19,10/10/2013,R,R.J.H.WELDING                 
570,CS -Oth Operating Inc & Expend,T/A Vehicle Maintenance etc,Transport-Contract Hire,J01374,Transport Related Expenditure ,Direct Transport Costs        ,CA56,Specialist Maint. (On Site)             ,"1,837.50",16/10/2013,R,R.J.H.WELDING                 
571,CS -Oth Operating Inc & Expend,T/A Vehicle Maintenance etc,Transport-Contract Hire,J01374,Transport Related Expenditure ,Direct Transport Costs        ,CA56,Specialist Maint. (On Site)             ,575,10/10/2013,R,R.J.H.WELDING                 
572,CS -Oth Operating Inc & Expend,T/A Vehicle Maintenance etc,Transport-Contract Hire,J01374,Transport Related Expenditure ,Direct Transport Costs        ,CA56,Specialist Maint. (On Site)             ,575,10/10/2013,R,R.J.H.WELDING                 
573,CS -Oth Operating Inc & Expend,T/A Vehicle Maintenance etc,Transport-Contract Hire,J01374,Transport Related Expenditure ,Direct Transport Costs        ,CA56,Specialist Maint. (On Site)             ,"1,033.11",13/10/2013,R,R.J.H.WELDING                 
574,CS -Oth Operating Inc & Expend,T/A Vehicle Maintenance etc,Transport-Contract Hire,J01374,Transport Related Expenditure ,Direct Transport Costs        ,CA56,Specialist Maint. (On Site)             ,"1,725.00",16/10/2013,R,R.J.H.WELDING                 
575,CS -Oth Operating Inc & Expend,T/A Vehicle Maintenance etc,Transport-Contract Hire,J01374,Transport Related Expenditure ,Direct Transport Costs        ,CA56,Specialist Maint. (On Site)             ,"1,782.50",16/10/2013,R,R.J.H.WELDING                 
576,CS -Oth Operating Inc & Expend,T/A Vehicle Maintenance etc,Transport-Contract Hire,J01374,Transport Related Expenditure ,Direct Transport Costs        ,CA56,Specialist Maint. (On Site)             ,525,10/10/2013,R,R.J.H.WELDING                 
577,CS -Oth Operating Inc & Expend,T/A Vehicle Maintenance etc,Transport-Contract Hire,J01374,Transport Related Expenditure ,Direct Transport Costs        ,CA56,Specialist Maint. (On Site)             ,540,13/10/2013,R,R.J.H.WELDING                 
578,CS -Oth Operating Inc & Expend,T/A Vehicle Maintenance etc,Transport-Contract Hire,J01374,Transport Related Expenditure ,Direct Transport Costs        ,CA72,Vehicle Parts                           ,944.14,23/10/2013,R,DENNIS EAGLE LIMITED          
579,CS -Oth Operating Inc & Expend,T/A Vehicle Maintenance etc,Transport-Contract Hire,J01374,Transport Related Expenditure ,Direct Transport Costs        ,CA72,Vehicle Parts                           ,900.53,07/10/2013,R,DENNIS EAGLE LIMITED          
580,CS -Oth Operating Inc & Expend,T/A Vehicle Maintenance etc,Transport-Contract Hire,J01374,Transport Related Expenditure ,Direct Transport Costs        ,CA72,Vehicle Parts                           ,796.06,05/10/2013,R,SCANIA(GREAT BRITAIN)LIMITED  
581,CS -Oth Operating Inc & Expend,T/A Vehicle Maintenance etc,Transport-Contract Hire,J01374,Transport Related Expenditure ,Direct Transport Costs        ,CA72,Vehicle Parts                           ,672.38,13/09/2013,R,CITROEN LONDON WEST           
582,CS -Oth Operating Inc & Expend,T/A Vehicle Maintenance etc,Transport-Contract Hire,J01374,Transport Related Expenditure ,Direct Transport Costs        ,CA72,Vehicle Parts                           ,715,03/10/2013,R,TENNANTS                      
583,CS -Oth Operating Inc & Expend,T/A Vehicle Maintenance etc,Transport-Contract Hire,J01374,Transport Related Expenditure ,Direct Transport Costs        ,CA72,Vehicle Parts                           ,571.73,05/07/2013,R,GRAYS TRUCK CENTRE LIMITED    
584,CS -Oth Operating Inc & Expend,T/A Vehicle Maintenance etc,Transport-Contract Hire,J01374,Transport Related Expenditure ,Direct Transport Costs        ,CA72,Vehicle Parts                           ,586.24,22/10/2013,R,JD ASSOCIATES                 
585,CS -Oth Operating Inc & Expend,T/A Vehicle Maintenance etc,Transport-Contract Hire,J01374,Transport Related Expenditure ,Direct Transport Costs        ,CA72,Vehicle Parts                           ,727.89,23/10/2013,R,GEESINK NORBA                 
586,CS -Oth Operating Inc & Expend,T/A Vehicle Maintenance etc,Transport-Contract Hire,J01374,Transport Related Expenditure ,Direct Transport Costs        ,CA72,Vehicle Parts                           ,"1,012.41",09/10/2013,R,GEESINK NORBA                 
587,CS -Oth Operating Inc & Expend,T/A Vehicle Maintenance etc,Transport-Contract Hire,J01374,Transport Related Expenditure ,Direct Transport Costs        ,CA72,Vehicle Parts                           ,521.04,07/10/2013,R,COMMERCIAL & PLANT LTD        
588,CS -Oth Operating Inc & Expend,T/A Vehicle Maintenance etc,Transport-Contract Hire,J01374,Transport Related Expenditure ,Direct Transport Costs        ,CA72,Vehicle Parts                           ,611.54,28/10/2013,R,COMMERCIAL & PLANT LTD        
589,CS -Oth Operating Inc & Expend,T/A Vehicle Maintenance etc,Transport-Contract Hire,J01374,Transport Related Expenditure ,Direct Transport Costs        ,CA72,Vehicle Parts                           ,808.97,14/10/2013,R,COMMERCIAL & PLANT LTD        
590,CS -Oth Operating Inc & Expend,T/A Vehicle Maintenance etc,Transport-Contract Hire,J01374,Transport Related Expenditure ,Direct Transport Costs        ,CA72,Vehicle Parts                           ,512,16/10/2013,R,SKINNERS OF OXTED             
591,CS -Oth Operating Inc & Expend,T/A Vehicle Maintenance etc,Transport-Contract Hire,J01374,Transport Related Expenditure ,Direct Transport Costs        ,CA72,Vehicle Parts                           ,"1,294.00",17/10/2013,R,GEESINK NORBA                 
592,CS -Oth Operating Inc & Expend,T/A Vehicle Maintenance etc,Transport-Contract Hire,J01374,Transport Related Expenditure ,Contract Hire and Op Leasing  ,CC53,Plant Hire for MRCS                     ,850,07/10/2013,R,FIVEWAYS MUNICIPAL VEHICLE HIR
593,CS -Oth Operating Inc & Expend,T/A Vehicle Maintenance etc,Transport-Contract Hire,J01374,Transport Related Expenditure ,Contract Hire and Op Leasing  ,CC53,Plant Hire for MRCS                     ,"1,745.00",27/09/2013,R,GVS HIRE LTD                  
594,CS -Oth Operating Inc & Expend,T/A Vehicle Maintenance etc,Transport-Contract Hire,J01374,Transport Related Expenditure ,Contract Hire and Op Leasing  ,CC53,Plant Hire for MRCS                     ,700,29/09/2013,R,PHOENIX VEHICLE HIRE LTD      
595,CS -Oth Operating Inc & Expend,T/A Vehicle Maintenance etc,Transport-Contract Hire,J01374,Transport Related Expenditure ,Contract Hire and Op Leasing  ,CC53,Plant Hire for MRCS                     ,850,21/10/2013,R,FIVEWAYS MUNICIPAL VEHICLE HIR
596,CS -Oth Operating Inc & Expend,T/A Vehicle Maintenance etc,Transport-Contract Hire,J01374,Transport Related Expenditure ,Contract Hire and Op Leasing  ,CC53,Plant Hire for MRCS                     ,850,17/09/2013,R,FIVEWAYS MUNICIPAL VEHICLE HIR
597,CS -Oth Operating Inc & Expend,T/A Vehicle Maintenance etc,Transport-Contract Hire,J01374,Transport Related Expenditure ,Contract Hire and Op Leasing  ,CC53,Plant Hire for MRCS                     ,850,05/09/2013,R,FIVEWAYS MUNICIPAL VEHICLE HIR
598,CS -Oth Operating Inc & Expend,T/A Vehicle Maintenance etc,Transport-Contract Hire,J01374,Transport Related Expenditure ,Contract Hire and Op Leasing  ,CC53,Plant Hire for MRCS                     ,-700,07/10/2013,R,PHOENIX VEHICLE HIRE LTD      
599,CS -Oth Operating Inc & Expend,T/A Vehicle Maintenance etc,Transport-Contract Hire,J01374,Transport Related Expenditure ,Contract Hire and Op Leasing  ,CC53,Plant Hire for MRCS                     ,850,07/10/2013,R,FIVEWAYS MUNICIPAL VEHICLE HIR
600,CS -Oth Operating Inc & Expend,T/A Vehicle Maintenance etc,Transport-Contract Hire,J01374,Transport Related Expenditure ,Contract Hire and Op Leasing  ,CC53,Plant Hire for MRCS                     ,700,22/09/2013,R,PHOENIX VEHICLE HIRE LTD      
601,CS -Oth Operating Inc & Expend,T/A Vehicle Maintenance etc,Transport-Contract Hire,J01374,Transport Related Expenditure ,Contract Hire and Op Leasing  ,CC53,Plant Hire for MRCS                     ,850,09/09/2013,R,FIVEWAYS MUNICIPAL VEHICLE HIR
602,CS -Oth Operating Inc & Expend,T/A Vehicle Maintenance etc,Transport-Contract Hire,J01374,Transport Related Expenditure ,Contract Hire and Op Leasing  ,CC53,Plant Hire for MRCS                     ,693,30/09/2013,R,REDACTED
603,CS -Oth Operating Inc & Expend,T/A Vehicle Maintenance etc,Transport-Contract Hire,J01374,Transport Related Expenditure ,Contract Hire and Op Leasing  ,CC53,Plant Hire for MRCS                     ,560,22/09/2013,R,PHOENIX VEHICLE HIRE LTD      
604,CS -Oth Operating Inc & Expend,T/A Vehicle Maintenance etc,Transport-Contract Hire,J01374,Transport Related Expenditure ,Contract Hire and Op Leasing  ,CC56,Plant Hire for Leisure                  ,"1,755.00",30/09/2013,R,REDACTED
605,CS -Oth Operating Inc & Expend,T/A Vehicle Maintenance etc,Transport-Contract Hire,J01374,Transport Related Expenditure ,Contract Hire and Op Leasing  ,CC57,Pland Hire for Housing                  ,940,30/09/2013,R,REDACTED
606,CS -Oth Operating Inc & Expend,T/A Vehicle Maintenance etc,Transport-Contract Hire,J01374,Transport Related Expenditure ,Contract Hire and Op Leasing  ,CC59,HIRING TRANSPORT OPERATIONS             ,"1,386.00",30/09/2013,R,BURNT TREE VEHICLE RENTAL     
607,CS -Oth Operating Inc & Expend,T/A Vehicle Maintenance etc,Transport-Contract Hire,J01374,Transport Related Expenditure ,Contract Hire and Op Leasing  ,CC59,HIRING TRANSPORT OPERATIONS             ,"1,386.00",30/09/2013,R,BURNT TREE VEHICLE RENTAL     
608,CS -Oth Operating Inc & Expend,T/A Vehicle Maintenance etc,Transport-Contract Hire,J01374,Transport Related Expenditure ,Contract Hire and Op Leasing  ,CC59,HIRING TRANSPORT OPERATIONS             ,"2,238.32",30/09/2013,R,REDACTED
609,CS -Oth Operating Inc & Expend,T/A Vehicle Maintenance etc,Transport-Contract Hire,J01374,Transport Related Expenditure ,Contract Hire and Op Leasing  ,CC59,HIRING TRANSPORT OPERATIONS             ,"1,386.00",30/09/2013,R,BURNT TREE VEHICLE RENTAL     
610,CS -Oth Operating Inc & Expend,T/A Vehicle Maintenance etc,Transport-Contract Hire,J01374,Transport Related Expenditure ,Contract Hire and Op Leasing  ,CC64,HIRING TRANSPORT SEN CABS               ,648,30/09/2013,R,CHEAM STATION CARS            
611,CS -Oth Operating Inc & Expend,T/A Vehicle Maintenance etc,Transport-Contract Hire,J01374,Transport Related Expenditure ,Contract Hire and Op Leasing  ,CC64,HIRING TRANSPORT SEN CABS               ,"3,279.00",30/09/2013,R,SHERWOOD TRANSPORT GROUP      
612,CS -Oth Operating Inc & Expend,T/A Vehicle Maintenance etc,Transport-Contract Hire,J01374,Transport Related Expenditure ,Contract Hire and Op Leasing  ,CC64,HIRING TRANSPORT SEN CABS               ,"1,200.00",30/09/2013,R,CHEAM STATION CARS            
613,CS -Oth Operating Inc & Expend,T/A Vehicle Maintenance etc,Transport-Contract Hire,J01374,Transport Related Expenditure ,Contract Hire and Op Leasing  ,CC64,HIRING TRANSPORT SEN CABS               ,"1,742.40",30/09/2013,R,SHERWOOD TRANSPORT GROUP      
614,CS -Oth Operating Inc & Expend,T/A Vehicle Maintenance etc,Transport-Contract Hire,J01374,Transport Related Expenditure ,Contract Hire and Op Leasing  ,CC64,HIRING TRANSPORT SEN CABS               ,960,30/09/2013,R,SILVERBURN FINANCE (UK) LTD   
615,CS -Oth Operating Inc & Expend,T/A Vehicle Maintenance etc,Transport-Contract Hire,J01374,Transport Related Expenditure ,Contract Hire and Op Leasing  ,CC64,HIRING TRANSPORT SEN CABS               ,"1,501.00",30/09/2013,R,SHERWOOD TRANSPORT GROUP      
616,CS -Oth Operating Inc & Expend,T/A Vehicle Maintenance etc,Transport-Contract Hire,J01374,Transport Related Expenditure ,Contract Hire and Op Leasing  ,CC64,HIRING TRANSPORT SEN CABS               ,"1,860.00",30/09/2013,R,KINGSTON ACCESSIBILITY TRAN LT
617,CS -Oth Operating Inc & Expend,T/A Vehicle Maintenance etc,Transport-Contract Hire,J01374,Transport Related Expenditure ,Contract Hire and Op Leasing  ,CC64,HIRING TRANSPORT SEN CABS               ,780,30/09/2013,R,NVCAR HIRE LTD                
618,CS -Oth Operating Inc & Expend,T/A Vehicle Maintenance etc,Transport-Contract Hire,J01374,Transport Related Expenditure ,Contract Hire and Op Leasing  ,CC64,HIRING TRANSPORT SEN CABS               ,819,30/09/2013,R,BARCLAYS ASSET & SALES FINANCE
619,CS -Oth Operating Inc & Expend,T/A Vehicle Maintenance etc,Transport-Contract Hire,J01374,Transport Related Expenditure ,Contract Hire and Op Leasing  ,CC64,HIRING TRANSPORT SEN CABS               ,"4,484.00",30/09/2013,R,BARCLAYS ASSET & SALES FINANCE
620,CS -Oth Operating Inc & Expend,T/A Vehicle Maintenance etc,Transport-Contract Hire,J01374,Transport Related Expenditure ,Contract Hire and Op Leasing  ,CC64,HIRING TRANSPORT SEN CABS               ,"2,236.00",30/09/2013,R,BARCLAYS ASSET & SALES FINANCE
621,CS -Oth Operating Inc & Expend,T/A Vehicle Maintenance etc,Transport-Contract Hire,J01374,Transport Related Expenditure ,Contract Hire and Op Leasing  ,CC64,HIRING TRANSPORT SEN CABS               ,"1,920.00",30/09/2013,R,SILVERBURN FINANCE (UK) LTD   
622,CS -Oth Operating Inc & Expend,T/A Vehicle Maintenance etc,Transport-Contract Hire,J01374,Transport Related Expenditure ,Contract Hire and Op Leasing  ,CC64,HIRING TRANSPORT SEN CABS               ,"2,800.00",30/09/2013,R,BARCLAYS ASSET & SALES FINANCE
623,CS -Oth Operating Inc & Expend,T/A Vehicle Maintenance etc,Transport-Contract Hire,J01374,Transport Related Expenditure ,Contract Hire and Op Leasing  ,CC64,HIRING TRANSPORT SEN CABS               ,960,30/09/2013,R,GALPINS SERVICE               
624,CS -Oth Operating Inc & Expend,T/A Vehicle Maintenance etc,Transport-Contract Hire,J01374,Transport Related Expenditure ,Contract Hire and Op Leasing  ,CC64,HIRING TRANSPORT SEN CABS               ,952,30/09/2013,R,CAPITAL CARS                  
625,CS -Oth Operating Inc & Expend,T/A Vehicle Maintenance etc,Transport-Contract Hire,J01374,Transport Related Expenditure ,Contract Hire and Op Leasing  ,CC64,HIRING TRANSPORT SEN CABS               ,"1,330.00",30/09/2013,R,SHERWOOD TRANSPORT GROUP      
626,CS -Oth Operating Inc & Expend,T/A Vehicle Maintenance etc,Transport-Contract Hire,J01374,Transport Related Expenditure ,Contract Hire and Op Leasing  ,CC64,HIRING TRANSPORT SEN CABS               ,767.5,30/09/2013,R,GALPINS SERVICE               
627,CS -Oth Operating Inc & Expend,T/A Vehicle Maintenance etc,Transport-Contract Hire,J01374,Transport Related Expenditure ,Contract Hire and Op Leasing  ,CC64,HIRING TRANSPORT SEN CABS               ,"1,785.00",30/09/2013,R,SHERWOOD TRANSPORT GROUP      
628,CS -Oth Operating Inc & Expend,T/A Vehicle Maintenance etc,Transport-Contract Hire,J01374,Transport Related Expenditure ,Contract Hire and Op Leasing  ,CC64,HIRING TRANSPORT SEN CABS               ,"1,368.00",30/09/2013,R,NVCAR HIRE LTD                
629,CS -Oth Operating Inc & Expend,T/A Vehicle Maintenance etc,Transport-Contract Hire,J01374,Transport Related Expenditure ,Contract Hire and Op Leasing  ,CC64,HIRING TRANSPORT SEN CABS               ,680,30/09/2013,R,BRUNSWICK CARS LTD            
630,CS -Oth Operating Inc & Expend,T/A Vehicle Maintenance etc,Transport-Contract Hire,J01374,Transport Related Expenditure ,Contract Hire and Op Leasing  ,CC64,HIRING TRANSPORT SEN CABS               ,"1,400.00",30/09/2013,R,CAPITAL CARS                  
631,CS -Oth Operating Inc & Expend,T/A Vehicle Maintenance etc,Transport-Contract Hire,J01374,Transport Related Expenditure ,Contract Hire and Op Leasing  ,CC64,HIRING TRANSPORT SEN CABS               ,"2,080.26",30/09/2013,R,SHERWOOD TRANSPORT GROUP      
632,CS -Oth Operating Inc & Expend,T/A Vehicle Maintenance etc,Transport-Contract Hire,J01374,Transport Related Expenditure ,Contract Hire and Op Leasing  ,CC64,HIRING TRANSPORT SEN CABS               ,900,30/09/2013,R,NVCAR HIRE LTD                
633,CS -Oth Operating Inc & Expend,T/A Vehicle Maintenance etc,Transport-Contract Hire,J01374,Transport Related Expenditure ,Contract Hire and Op Leasing  ,CC64,HIRING TRANSPORT SEN CABS               ,740,30/09/2013,R,KENDALL CARS                  
634,CS -Oth Operating Inc & Expend,T/A Vehicle Maintenance etc,Transport-Contract Hire,J01374,Transport Related Expenditure ,Contract Hire and Op Leasing  ,CC64,HIRING TRANSPORT SEN CABS               ,"2,850.00",29/09/2013,R,WALLINGTON CARS & COURIERS LTD
635,CS -Oth Operating Inc & Expend,T/A Vehicle Maintenance etc,Transport-Contract Hire,J01374,Transport Related Expenditure ,Contract Hire and Op Leasing  ,CC64,HIRING TRANSPORT SEN CABS               ,"2,268.00",30/09/2013,R,CAPITAL CARS                  
636,CS -Oth Operating Inc & Expend,T/A Vehicle Maintenance etc,Transport-Contract Hire,J01374,Transport Related Expenditure ,Contract Hire and Op Leasing  ,CC64,HIRING TRANSPORT SEN CABS               ,665,02/10/2013,R,AERIAL CAR SERVICES LTD       
637,CS -Oth Operating Inc & Expend,T/A Vehicle Maintenance etc,Transport-Contract Hire,J01374,Transport Related Expenditure ,Contract Hire and Op Leasing  ,CC64,HIRING TRANSPORT SEN CABS               ,"2,276.00",30/09/2013,R,GALPINS SERVICE               
638,CS -Oth Operating Inc & Expend,T/A Vehicle Maintenance etc,Transport-Contract Hire,J01374,Transport Related Expenditure ,Contract Hire and Op Leasing  ,CC64,HIRING TRANSPORT SEN CABS               ,"1,254.00",30/09/2013,R,NVCAR HIRE LTD                
639,CS -Oth Operating Inc & Expend,T/A Vehicle Maintenance etc,Transport-Contract Hire,J01374,Transport Related Expenditure ,Contract Hire and Op Leasing  ,CC64,HIRING TRANSPORT SEN CABS               ,"1,125.00",30/09/2013,R,SHERWOOD TRANSPORT GROUP      
640,CS -Oth Operating Inc & Expend,T/A Vehicle Maintenance etc,Transport-Contract Hire,J01374,Transport Related Expenditure ,Contract Hire and Op Leasing  ,CC64,HIRING TRANSPORT SEN CABS               ,672,30/09/2013,R,NVCAR HIRE LTD                
641,CS -Oth Operating Inc & Expend,T/A Vehicle Maintenance etc,Transport-Contract Hire,J01374,Transport Related Expenditure ,Contract Hire and Op Leasing  ,CC64,HIRING TRANSPORT SEN CABS               ,"1,365.00",30/09/2013,R,NVCAR HIRE LTD                
642,CS -Oth Operating Inc & Expend,T/A Vehicle Maintenance etc,Transport-Contract Hire,J01374,Transport Related Expenditure ,Contract Hire and Op Leasing  ,CC64,HIRING TRANSPORT SEN CABS               ,"2,660.00",30/09/2013,R,KINGSTON ACCESSIBILITY TRAN LT
643,CS -Oth Operating Inc & Expend,T/A Vehicle Maintenance etc,Transport-Contract Hire,J01374,Transport Related Expenditure ,Contract Hire and Op Leasing  ,CC64,HIRING TRANSPORT SEN CABS               ,"2,834.00",30/09/2013,R,SILVERBURN FINANCE (UK) LTD   
644,CS -Oth Operating Inc & Expend,T/A Vehicle Maintenance etc,Transport-Contract Hire,J01374,Transport Related Expenditure ,Contract Hire and Op Leasing  ,CC64,HIRING TRANSPORT SEN CABS               ,532,30/09/2013,R,SILVERBURN FINANCE (UK) LTD   
645,CS -Oth Operating Inc & Expend,T/A Vehicle Maintenance etc,Transport-Contract Hire,J01374,Transport Related Expenditure ,Contract Hire and Op Leasing  ,CC64,HIRING TRANSPORT SEN CABS               ,760,30/09/2013,R,NVCAR HIRE LTD                
646,CS -Oth Operating Inc & Expend,T/A Vehicle Maintenance etc,Transport-Contract Hire,J01374,Transport Related Expenditure ,Contract Hire and Op Leasing  ,CC64,HIRING TRANSPORT SEN CABS               ,"3,243.00",30/09/2013,R,BARCLAYS ASSET & SALES FINANCE
647,CS -Oth Operating Inc & Expend,T/A Vehicle Maintenance etc,Transport-Contract Hire,J01374,Transport Related Expenditure ,Contract Hire and Op Leasing  ,CC64,HIRING TRANSPORT SEN CABS               ,"3,280.00",30/09/2013,R,BARCLAYS ASSET & SALES FINANCE
648,CS -Oth Operating Inc & Expend,T/A Vehicle Maintenance etc,Transport-Contract Hire,J01374,Transport Related Expenditure ,Contract Hire and Op Leasing  ,CC64,HIRING TRANSPORT SEN CABS               ,"1,403.64",30/09/2013,R,KINGSTON ACCESSIBILITY TRAN LT
649,CS -Oth Operating Inc & Expend,T/A Vehicle Maintenance etc,Transport-Contract Hire,J01374,Transport Related Expenditure ,Contract Hire and Op Leasing  ,CC64,HIRING TRANSPORT SEN CABS               ,"1,040.00",30/09/2013,R,BARCLAYS ASSET & SALES FINANCE
650,CS -Oth Operating Inc & Expend,T/A Vehicle Maintenance etc,Transport-Contract Hire,J01374,Transport Related Expenditure ,Contract Hire and Op Leasing  ,CC64,HIRING TRANSPORT SEN CABS               ,"3,610.00",30/09/2013,R,BARCLAYS ASSET & SALES FINANCE
651,CS -Oth Operating Inc & Expend,T/A Vehicle Maintenance etc,Transport-Contract Hire,J01374,Transport Related Expenditure ,Contract Hire and Op Leasing  ,CC64,HIRING TRANSPORT SEN CABS               ,"1,872.00",30/09/2013,R,SILVERBURN FINANCE (UK) LTD   
652,CS -Oth Operating Inc & Expend,T/A Vehicle Maintenance etc,Transport-Contract Hire,J01374,Transport Related Expenditure ,Contract Hire and Op Leasing  ,CC64,HIRING TRANSPORT SEN CABS               ,"1,368.00",30/09/2013,R,NVCAR HIRE LTD                
653,CS -Oth Operating Inc & Expend,T/A Vehicle Maintenance etc,Transport-Contract Hire,J01374,Transport Related Expenditure ,Contract Hire and Op Leasing  ,CC64,HIRING TRANSPORT SEN CABS               ,"2,240.00",30/09/2013,R,KINGSTON ACCESSIBILITY TRAN LT
654,CS -Oth Operating Inc & Expend,T/A Vehicle Maintenance etc,Transport-Contract Hire,J01374,Transport Related Expenditure ,Contract Hire and Op Leasing  ,CC64,HIRING TRANSPORT SEN CABS               ,"1,508.04",30/09/2013,R,KINGSTON ACCESSIBILITY TRAN LT
655,CS -Oth Operating Inc & Expend,T/A Vehicle Maintenance etc,Transport-Contract Hire,J01374,Transport Related Expenditure ,Contract Hire and Op Leasing  ,CC64,HIRING TRANSPORT SEN CABS               ,"3,454.00",30/09/2013,R,SILVERBURN FINANCE (UK) LTD   
656,CS -Oth Operating Inc & Expend,T/A Vehicle Maintenance etc,Transport-Contract Hire,J01374,Transport Related Expenditure ,Contract Hire and Op Leasing  ,CC64,HIRING TRANSPORT SEN CABS               ,"1,320.00",30/09/2013,R,SILVERBURN FINANCE (UK) LTD   
657,CS -Oth Operating Inc & Expend,T/A Vehicle Maintenance etc,Transport-Contract Hire,J01374,Transport Related Expenditure ,Contract Hire and Op Leasing  ,CC64,HIRING TRANSPORT SEN CABS               ,684,30/09/2013,R,NVCAR HIRE LTD                
658,CS -Oth Operating Inc & Expend,T/A Vehicle Maintenance etc,Transport-Contract Hire,J01374,Transport Related Expenditure ,Contract Hire and Op Leasing  ,CC64,HIRING TRANSPORT SEN CABS               ,"1,140.00",30/09/2013,R,SILVERBURN FINANCE (UK) LTD   
659,CS -Oth Operating Inc & Expend,T/A Vehicle Maintenance etc,Transport-Contract Hire,J01374,Transport Related Expenditure ,Contract Hire and Op Leasing  ,CC64,HIRING TRANSPORT SEN CABS               ,950,30/09/2013,R,KINGSTON ACCESSIBILITY TRAN LT
660,CS -Oth Operating Inc & Expend,T/A Vehicle Maintenance etc,Transport-Contract Hire,J01374,Transport Related Expenditure ,Contract Hire and Op Leasing  ,CC64,HIRING TRANSPORT SEN CABS               ,"2,603.00",30/09/2013,R,NVCAR HIRE LTD                
661,CS -Oth Operating Inc & Expend,T/A Vehicle Maintenance etc,Transport-Contract Hire,J01374,Transport Related Expenditure ,Contract Hire and Op Leasing  ,CC64,HIRING TRANSPORT SEN CABS               ,"2,222.00",30/09/2013,R,BARCLAYS ASSET & SALES FINANCE
662,CS -Oth Operating Inc & Expend,T/A Vehicle Maintenance etc,Transport-Contract Hire,J01374,Transport Related Expenditure ,Contract Hire and Op Leasing  ,CC64,HIRING TRANSPORT SEN CABS               ,"1,000.00",30/09/2013,R,SHERWOOD TRANSPORT GROUP      
663,CS -Oth Operating Inc & Expend,T/A Vehicle Maintenance etc,Transport-Contract Hire,J01374,Transport Related Expenditure ,Contract Hire and Op Leasing  ,CC64,HIRING TRANSPORT SEN CABS               ,"1,844.82",30/09/2013,R,KINGSTON ACCESSIBILITY TRAN LT
664,CS -Oth Operating Inc & Expend,T/A Vehicle Maintenance etc,Transport-Contract Hire,J01374,Transport Related Expenditure ,Contract Hire and Op Leasing  ,CC64,HIRING TRANSPORT SEN CABS               ,"2,232.00",30/09/2013,R,CAPITAL CARS                  
665,CS -Oth Operating Inc & Expend,T/A Vehicle Maintenance etc,Transport-Contract Hire,J01374,Transport Related Expenditure ,Contract Hire and Op Leasing  ,CC64,HIRING TRANSPORT SEN CABS               ,992,30/09/2013,R,A STAR TRANSPORT LIMITED      
666,CS -Oth Operating Inc & Expend,T/A Vehicle Maintenance etc,Transport-Contract Hire,J01374,Transport Related Expenditure ,Contract Hire and Op Leasing  ,CC64,HIRING TRANSPORT SEN CABS               ,630,30/09/2013,R,KENDALL CARS                  
667,CS -Oth Operating Inc & Expend,T/A Vehicle Maintenance etc,Transport-Contract Hire,J01374,Transport Related Expenditure ,Contract Hire and Op Leasing  ,CC64,HIRING TRANSPORT SEN CABS               ,900,30/09/2013,R,KINGSTON ACCESSIBILITY TRAN LT
668,CS -Oth Operating Inc & Expend,T/A Vehicle Maintenance etc,Transport-Contract Hire,J01374,Transport Related Expenditure ,Contract Hire and Op Leasing  ,CC64,HIRING TRANSPORT SEN CABS               ,"1,120.00",30/09/2013,R,SILVERBURN FINANCE (UK) LTD   
669,CS -Oth Operating Inc & Expend,T/A Vehicle Maintenance etc,Transport-Contract Hire,J01374,Transport Related Expenditure ,Contract Hire and Op Leasing  ,CC64,HIRING TRANSPORT SEN CABS               ,836,30/09/2013,R,CAPITAL CARS                  
670,CS -Oth Operating Inc & Expend,T/A Vehicle Maintenance etc,Transport-Contract Hire,J01374,Transport Related Expenditure ,Contract Hire and Op Leasing  ,CC64,HIRING TRANSPORT SEN CABS               ,792,02/10/2013,R,AERIAL CAR SERVICES LTD       
671,CS -Oth Operating Inc & Expend,T/A Vehicle Maintenance etc,Transport-Contract Hire,J01374,Transport Related Expenditure ,Contract Hire and Op Leasing  ,CC64,HIRING TRANSPORT SEN CABS               ,945,30/09/2013,R,CAPITAL CARS                  
672,CS -Oth Operating Inc & Expend,T/A Vehicle Maintenance etc,Transport-Contract Hire,J01374,Transport Related Expenditure ,Contract Hire and Op Leasing  ,CC64,HIRING TRANSPORT SEN CABS               ,"1,982.00",30/09/2013,R,KINGSTON ACCESSIBILITY TRAN LT
673,CS -Oth Operating Inc & Expend,T/A Vehicle Maintenance etc,Transport-Contract Hire,J01374,Transport Related Expenditure ,Contract Hire and Op Leasing  ,CC64,HIRING TRANSPORT SEN CABS               ,816,30/09/2013,R,KINGSTON ACCESSIBILITY TRAN LT
674,CS -Oth Operating Inc & Expend,T/A Vehicle Maintenance etc,Transport-Contract Hire,J01374,Transport Related Expenditure ,Contract Hire and Op Leasing  ,CC64,HIRING TRANSPORT SEN CABS               ,"1,330.00",30/09/2013,R,NVCAR HIRE LTD                
675,CS -Oth Operating Inc & Expend,T/A Vehicle Maintenance etc,Transport-Contract Hire,J01374,Transport Related Expenditure ,Contract Hire and Op Leasing  ,CC64,HIRING TRANSPORT SEN CABS               ,"2,600.00",30/09/2013,R,BARCLAYS ASSET & SALES FINANCE
676,CS -Oth Operating Inc & Expend,T/A Vehicle Maintenance etc,Transport-Contract Hire,J01374,Transport Related Expenditure ,Contract Hire and Op Leasing  ,CC64,HIRING TRANSPORT SEN CABS               ,"1,881.00",30/09/2013,R,SHERWOOD TRANSPORT GROUP      
677,CS -Oth Operating Inc & Expend,T/A Vehicle Maintenance etc,Transport-Contract Hire,J01374,Transport Related Expenditure ,Contract Hire and Op Leasing  ,CC64,HIRING TRANSPORT SEN CABS               ,"3,021.00",30/09/2013,R,BRUNSWICK CARS LTD            
678,CS -Oth Operating Inc & Expend,T/A Vehicle Maintenance etc,Transport-Contract Hire,J01374,Transport Related Expenditure ,Contract Hire and Op Leasing  ,CC64,HIRING TRANSPORT SEN CABS               ,848.3,30/09/2013,R,KINGSTON ACCESSIBILITY TRAN LT
679,CS -Oth Operating Inc & Expend,T/A Vehicle Maintenance etc,Transport-Contract Hire,J01374,Transport Related Expenditure ,Contract Hire and Op Leasing  ,CC64,HIRING TRANSPORT SEN CABS               ,"1,623.50",30/09/2013,R,SHERWOOD TRANSPORT GROUP      
680,CS -Oth Operating Inc & Expend,T/A Vehicle Maintenance etc,Transport-Contract Hire,J01374,Transport Related Expenditure ,Contract Hire and Op Leasing  ,CC64,HIRING TRANSPORT SEN CABS               ,"1,764.00",30/09/2013,R,CAPITAL CARS                  
681,CS -Oth Operating Inc & Expend,T/A Vehicle Maintenance etc,Transport-Contract Hire,J01374,Transport Related Expenditure ,Contract Hire and Op Leasing  ,CC64,HIRING TRANSPORT SEN CABS               ,"2,194.50",30/09/2013,R,SHERWOOD TRANSPORT GROUP      
682,CS -Oth Operating Inc & Expend,T/A Vehicle Maintenance etc,Transport-Contract Hire,J01374,Transport Related Expenditure ,Contract Hire and Op Leasing  ,CC64,HIRING TRANSPORT SEN CABS               ,996,30/09/2013,R,NVCAR HIRE LTD                
683,CS -Oth Operating Inc & Expend,T/A Vehicle Maintenance etc,Transport-Contract Hire,J01374,Transport Related Expenditure ,Contract Hire and Op Leasing  ,CC64,HIRING TRANSPORT SEN CABS               ,"1,596.00",30/09/2013,R,SILVERBURN FINANCE (UK) LTD   
684,CS -Oth Operating Inc & Expend,T/A Vehicle Maintenance etc,Transport-Contract Hire,J01374,Transport Related Expenditure ,Contract Hire and Op Leasing  ,CC64,HIRING TRANSPORT SEN CABS               ,"1,269.00",30/09/2013,R,CAPITAL CARS                  
685,CS -Oth Operating Inc & Expend,T/A Vehicle Maintenance etc,Transport-Contract Hire,J01374,Transport Related Expenditure ,Contract Hire and Op Leasing  ,CC64,HIRING TRANSPORT SEN CABS               ,643.52,30/09/2013,R,SILVERBURN FINANCE (UK) LTD   
686,CS -Oth Operating Inc & Expend,T/A Vehicle Maintenance etc,Transport-Contract Hire,J01374,Transport Related Expenditure ,Contract Hire and Op Leasing  ,CC64,HIRING TRANSPORT SEN CABS               ,"1,558.00",30/09/2013,R,CAPITAL CARS                  
687,CS -Oth Operating Inc & Expend,T/A Vehicle Maintenance etc,Transport-Contract Hire,J01374,Transport Related Expenditure ,Contract Hire and Op Leasing  ,CC64,HIRING TRANSPORT SEN CABS               ,"2,628.00",30/09/2013,R,KINGSTON ACCESSIBILITY TRAN LT
688,CS -Oth Operating Inc & Expend,T/A Vehicle Maintenance etc,Transport-Contract Hire,J01374,Transport Related Expenditure ,Contract Hire and Op Leasing  ,CC64,HIRING TRANSPORT SEN CABS               ,"1,080.00",30/09/2013,R,KENDALL CARS                  
689,CS -Oth Operating Inc & Expend,T/A Vehicle Maintenance etc,Transport-Contract Hire,J01374,Transport Related Expenditure ,Contract Hire and Op Leasing  ,CC64,HIRING TRANSPORT SEN CABS               ,"1,872.00",30/09/2013,R,BARCLAYS ASSET & SALES FINANCE
690,CS -Oth Operating Inc & Expend,T/A Vehicle Maintenance etc,Transport-Contract Hire,J01374,Transport Related Expenditure ,Contract Hire and Op Leasing  ,CC64,HIRING TRANSPORT SEN CABS               ,"1,480.00",30/09/2013,R,CAPITAL CARS                  
691,CS -Oth Operating Inc & Expend,T/A Vehicle Maintenance etc,Transport-Contract Hire,J01374,Transport Related Expenditure ,Contract Hire and Op Leasing  ,CC64,HIRING TRANSPORT SEN CABS               ,"2,206.26",30/09/2013,R,KINGSTON ACCESSIBILITY TRAN LT
692,CS -Oth Operating Inc & Expend,T/A Vehicle Maintenance etc,Transport-Contract Hire,J01374,Transport Related Expenditure ,Contract Hire and Op Leasing  ,CC64,HIRING TRANSPORT SEN CABS               ,"1,480.00",30/09/2013,R,SILVERBURN FINANCE (UK) LTD   
693,CS -Oth Operating Inc & Expend,T/A Vehicle Maintenance etc,Transport-Contract Hire,J01374,Transport Related Expenditure ,Contract Hire and Op Leasing  ,CC64,HIRING TRANSPORT SEN CABS               ,"1,260.00",30/09/2013,R,SHERWOOD TRANSPORT GROUP      
694,CS -Oth Operating Inc & Expend,T/A Vehicle Maintenance etc,Transport-Contract Hire,J01374,Transport Related Expenditure ,Contract Hire and Op Leasing  ,CC64,HIRING TRANSPORT SEN CABS               ,768,30/09/2013,R,SILVERBURN FINANCE (UK) LTD   
695,CS -Oth Operating Inc & Expend,T/A Vehicle Maintenance etc,Transport-Contract Hire,J01374,Transport Related Expenditure ,Contract Hire and Op Leasing  ,CC64,HIRING TRANSPORT SEN CABS               ,"2,696.00",30/09/2013,R,BARCLAYS ASSET & SALES FINANCE
696,CS -Oth Operating Inc & Expend,T/A Vehicle Maintenance etc,Transport-Contract Hire,J01374,Transport Related Expenditure ,Contract Hire and Op Leasing  ,CC64,HIRING TRANSPORT SEN CABS               ,"2,536.12",30/09/2013,R,KINGSTON ACCESSIBILITY TRAN LT
697,CS -Oth Operating Inc & Expend,T/A Vehicle Maintenance etc,Transport-Contract Hire,J01374,Transport Related Expenditure ,Contract Hire and Op Leasing  ,CC64,HIRING TRANSPORT SEN CABS               ,"1,080.00",30/09/2013,R,SILVERBURN FINANCE (UK) LTD   
698,CS -Oth Operating Inc & Expend,T/A Vehicle Maintenance etc,Transport-Contract Hire,J01374,Transport Related Expenditure ,Contract Hire and Op Leasing  ,CC64,HIRING TRANSPORT SEN CABS               ,"3,021.00",30/09/2013,R,KINGSTON ACCESSIBILITY TRAN LT
699,CS -Oth Operating Inc & Expend,T/A Vehicle Maintenance etc,Transport-Contract Hire,J01374,Transport Related Expenditure ,Contract Hire and Op Leasing  ,CC64,HIRING TRANSPORT SEN CABS               ,"1,372.00",30/09/2013,R,CAPITAL CARS                  
700,CS -Oth Operating Inc & Expend,T/A Vehicle Maintenance etc,Transport-Contract Hire,J01374,Transport Related Expenditure ,Contract Hire and Op Leasing  ,CC64,HIRING TRANSPORT SEN CABS               ,"1,575.00",30/09/2013,R,SHERWOOD TRANSPORT GROUP      
701,CS -Oth Operating Inc & Expend,T/A Vehicle Maintenance etc,Transport-Contract Hire,J01374,Transport Related Expenditure ,Contract Hire and Op Leasing  ,CC64,HIRING TRANSPORT SEN CABS               ,"1,690.20",30/09/2013,R,KINGSTON ACCESSIBILITY TRAN LT
702,CS -Oth Operating Inc & Expend,T/A Vehicle Maintenance etc,Transport-Contract Hire,J01374,Transport Related Expenditure ,Contract Hire and Op Leasing  ,CC64,HIRING TRANSPORT SEN CABS               ,912,30/09/2013,R,GALPINS SERVICE               
703,CS -Oth Operating Inc & Expend,T/A Vehicle Maintenance etc,Transport-Contract Hire,J01374,Transport Related Expenditure ,Contract Hire and Op Leasing  ,CC64,HIRING TRANSPORT SEN CABS               ,"1,070.67",30/09/2013,R,GALPINS SERVICE               
704,CS -Oth Operating Inc & Expend,T/A Vehicle Maintenance etc,Transport-Contract Hire,J01374,Transport Related Expenditure ,Contract Hire and Op Leasing  ,CC64,HIRING TRANSPORT SEN CABS               ,"1,254.00",30/09/2013,R,CAPITAL CARS                  
705,CS -Oth Operating Inc & Expend,T/A Vehicle Maintenance etc,Transport-Contract Hire,J01374,Transport Related Expenditure ,Contract Hire and Op Leasing  ,CC64,HIRING TRANSPORT SEN CABS               ,756,30/09/2013,R,NVCAR HIRE LTD                
706,CS -Oth Operating Inc & Expend,T/A Vehicle Maintenance etc,Transport-Contract Hire,J01374,Transport Related Expenditure ,Contract Hire and Op Leasing  ,CC64,HIRING TRANSPORT SEN CABS               ,"1,439.28",30/09/2013,R,KINGSTON ACCESSIBILITY TRAN LT
707,CS -Oth Operating Inc & Expend,T/A Vehicle Maintenance etc,Transport-Contract Hire,J01374,Transport Related Expenditure ,Contract Hire and Op Leasing  ,CC64,HIRING TRANSPORT SEN CABS               ,"1,728.00",30/09/2013,R,BARCLAYS ASSET & SALES FINANCE
708,CS -Oth Operating Inc & Expend,T/A Vehicle Maintenance etc,Transport-Contract Hire,J01374,Transport Related Expenditure ,Contract Hire and Op Leasing  ,CC64,HIRING TRANSPORT SEN CABS               ,"1,420.00",30/09/2013,R,CHEAM STATION CARS            
709,CS -Oth Operating Inc & Expend,T/A Vehicle Maintenance etc,Transport-Contract Hire,J01374,Transport Related Expenditure ,Contract Hire and Op Leasing  ,CC64,HIRING TRANSPORT SEN CABS               ,580,30/09/2013,R,SHERWOOD TRANSPORT GROUP      
710,CS -Oth Operating Inc & Expend,T/A Vehicle Maintenance etc,Transport-Contract Hire,J01374,Transport Related Expenditure ,Contract Hire and Op Leasing  ,CC64,HIRING TRANSPORT SEN CABS               ,760,30/09/2013,R,GALPINS SERVICE               
711,CS -Oth Operating Inc & Expend,T/A Vehicle Maintenance etc,Transport-Contract Hire,J01374,Transport Related Expenditure ,Contract Hire and Op Leasing  ,CC64,HIRING TRANSPORT SEN CABS               ,777.1,30/09/2013,R,SILVERBURN FINANCE (UK) LTD   
712,CS -Oth Operating Inc & Expend,T/A Vehicle Maintenance etc,Transport-Contract Hire,J01374,Transport Related Expenditure ,Contract Hire and Op Leasing  ,CC64,HIRING TRANSPORT SEN CABS               ,"1,008.00",30/09/2013,R,CHEAM STATION CARS            
713,CS -Oth Operating Inc & Expend,T/A Vehicle Maintenance etc,Transport-Contract Hire,J01374,Transport Related Expenditure ,Contract Hire and Op Leasing  ,CC64,HIRING TRANSPORT SEN CABS               ,"1,237.50",30/09/2013,R,SHERWOOD TRANSPORT GROUP      
714,CS -Oth Operating Inc & Expend,T/A Vehicle Maintenance etc,Transport-Contract Hire,J01374,Transport Related Expenditure ,Contract Hire and Op Leasing  ,CC64,HIRING TRANSPORT SEN CABS               ,"2,119.88",30/09/2013,R,KINGSTON ACCESSIBILITY TRAN LT
715,CS -Oth Operating Inc & Expend,T/A Vehicle Maintenance etc,Transport-Contract Hire,J01374,Transport Related Expenditure ,Contract Hire and Op Leasing  ,CC64,HIRING TRANSPORT SEN CABS               ,"2,394.00",30/09/2013,R,CAPITAL CARS                  
716,CS -Oth Operating Inc & Expend,T/A Vehicle Maintenance etc,Transport-Contract Hire,J01374,Transport Related Expenditure ,Contract Hire and Op Leasing  ,CC64,HIRING TRANSPORT SEN CABS               ,"1,612.80",30/09/2013,R,SILVERBURN FINANCE (UK) LTD   
717,CS -Oth Operating Inc & Expend,T/A Vehicle Maintenance etc,Transport-Contract Hire,J01374,Transport Related Expenditure ,Contract Hire and Op Leasing  ,CC64,HIRING TRANSPORT SEN CABS               ,"1,686.06",30/09/2013,R,KINGSTON ACCESSIBILITY TRAN LT
718,CS -Oth Operating Inc & Expend,T/A Vehicle Maintenance etc,Transport-Contract Hire,J01374,Transport Related Expenditure ,Contract Hire and Op Leasing  ,CC64,HIRING TRANSPORT SEN CABS               ,"1,845.00",30/09/2013,R,SHERWOOD TRANSPORT GROUP      
719,CS -Oth Operating Inc & Expend,T/A Vehicle Maintenance etc,Transport-Contract Hire,J01374,Transport Related Expenditure ,Contract Hire and Op Leasing  ,CC66,HIRING TRANSPORT H&SS CAB CHILDREN      ,"2,579.57",30/09/2013,R,KINGSTON ACCESSIBILITY TRAN LT
720,CS -Oth Operating Inc & Expend,T/A Vehicle Maintenance etc,Transport-Contract Hire,J01374,Transport Related Expenditure ,Contract Hire and Op Leasing  ,CC66,HIRING TRANSPORT H&SS CAB CHILDREN      ,"1,938.00",30/09/2013,R,KINGSTON ACCESSIBILITY TRAN LT
721,CS -Oth Operating Inc & Expend,T/A Vehicle Maintenance etc,Transport-Contract Hire,J01374,Transport Related Expenditure ,Contract Hire and Op Leasing  ,CC66,HIRING TRANSPORT H&SS CAB CHILDREN      ,643.52,30/09/2013,R,SILVERBURN FINANCE (UK) LTD   
722,CS -Oth Operating Inc & Expend,T/A Vehicle Maintenance etc,Transport-Contract Hire,J01374,Transport Related Expenditure ,Contract Hire and Op Leasing  ,CC66,HIRING TRANSPORT H&SS CAB CHILDREN      ,616,01/10/2013,R,BARCLAYS ASSET & SALES FINANCE
723,CS -Oth Operating Inc & Expend,T/A Vehicle Maintenance etc,Transport-Contract Hire,J01374,Transport Related Expenditure ,Contract Hire and Op Leasing  ,CC66,HIRING TRANSPORT H&SS CAB CHILDREN      ,725,30/09/2013,R,SHERWOOD TRANSPORT GROUP      
724,CS -Oth Operating Inc & Expend,T/A Vehicle Maintenance etc,Transport-Contract Hire,J01374,Transport Related Expenditure ,Contract Hire and Op Leasing  ,CC66,HIRING TRANSPORT H&SS CAB CHILDREN      ,"1,368.00",30/09/2013,R,NVCAR HIRE LTD                
725,CS -Oth Operating Inc & Expend,T/A Vehicle Maintenance etc,Transport-Contract Hire,J01374,Transport Related Expenditure ,Contract Hire and Op Leasing  ,CC66,HIRING TRANSPORT H&SS CAB CHILDREN      ,576,30/09/2013,R,NVCAR HIRE LTD                
726,CS -Oth Operating Inc & Expend,T/A Vehicle Maintenance etc,Transport-Contract Hire,J01374,Transport Related Expenditure ,Contract Hire and Op Leasing  ,CC66,HIRING TRANSPORT H&SS CAB CHILDREN      ,510,30/09/2013,R,BARCLAYS ASSET & SALES FINANCE
727,CS -Oth Operating Inc & Expend,T/A Vehicle Maintenance etc,Transport-Contract Hire,J01374,Transport Related Expenditure ,Contract Hire and Op Leasing  ,CC67,HIRING TRANSPORT H&SS CAB ADULTS        ,752,30/09/2013,R,CAPITAL CARS                  
728,CS -Oth Operating Inc & Expend,T/A Vehicle Maintenance etc,Transport-Contract Hire,J01374,Transport Related Expenditure ,Contract Hire and Op Leasing  ,CC67,HIRING TRANSPORT H&SS CAB ADULTS        ,896,30/09/2013,R,BARCLAYS ASSET & SALES FINANCE
729,CS -Oth Operating Inc & Expend,T/A Vehicle Maintenance etc,Transport-Contract Hire,J01374,Transport Related Expenditure ,Contract Hire and Op Leasing  ,CC67,HIRING TRANSPORT H&SS CAB ADULTS        ,"1,885.38",30/09/2013,R,KINGSTON ACCESSIBILITY TRAN LT
730,CS -Oth Operating Inc & Expend,T/A Vehicle Maintenance etc,Transport-Contract Hire,J01374,Transport Related Expenditure ,Contract Hire and Op Leasing  ,CC67,HIRING TRANSPORT H&SS CAB ADULTS        ,894,30/09/2013,R,NVCAR HIRE LTD                
731,CS -Oth Operating Inc & Expend,T/A Vehicle Maintenance etc,Transport-Contract Hire,J01374,Transport Related Expenditure ,Contract Hire and Op Leasing  ,CC67,HIRING TRANSPORT H&SS CAB ADULTS        ,"1,856.00",30/09/2013,R,BARCLAYS ASSET & SALES FINANCE
732,CS -Oth Operating Inc & Expend,T/A Vehicle Maintenance etc,Transport-Contract Hire,J01374,Transport Related Expenditure ,Contract Hire and Op Leasing  ,CC67,HIRING TRANSPORT H&SS CAB ADULTS        ,696,30/09/2013,R,BARCLAYS ASSET & SALES FINANCE
733,CS -Oth Operating Inc & Expend,T/A Vehicle Maintenance etc,Transport-Contract Hire,J01374,Transport Related Expenditure ,Contract Hire and Op Leasing  ,CC67,HIRING TRANSPORT H&SS CAB ADULTS        ,"2,220.30",30/09/2013,R,BARCLAYS ASSET & SALES FINANCE
734,CS -Oth Operating Inc & Expend,T/A Vehicle Maintenance etc,Transport-Contract Hire,J01374,Transport Related Expenditure ,Contract Hire and Op Leasing  ,CC67,HIRING TRANSPORT H&SS CAB ADULTS        ,608,30/09/2013,R,NVCAR HIRE LTD                
735,CS -Oth Operating Inc & Expend,T/A Vehicle Maintenance etc,Transport-Contract Hire,J01374,Transport Related Expenditure ,Contract Hire and Op Leasing  ,CC67,HIRING TRANSPORT H&SS CAB ADULTS        ,960,30/09/2013,R,A STAR TRANSPORT LIMITED      
736,CS -Oth Operating Inc & Expend,T/A Vehicle Maintenance etc,Transport-Contract Hire,J01374,Transport Related Expenditure ,Contract Hire and Op Leasing  ,CC67,HIRING TRANSPORT H&SS CAB ADULTS        ,"1,292.00",30/09/2013,R,BARCLAYS ASSET & SALES FINANCE
737,CS -Oth Operating Inc & Expend,T/A Vehicle Maintenance etc,Transport-Contract Hire,J01374,Transport Related Expenditure ,Contract Hire and Op Leasing  ,CC67,HIRING TRANSPORT H&SS CAB ADULTS        ,"1,062.00",30/09/2013,R,CAPITAL CARS                  
738,CS -Oth Operating Inc & Expend,T/A Vehicle Maintenance etc,Transport-Contract Hire,J01374,Transport Related Expenditure ,Contract Hire and Op Leasing  ,CC67,HIRING TRANSPORT H&SS CAB ADULTS        ,"1,091.66",30/09/2013,R,KINGSTON ACCESSIBILITY TRAN LT
739,CS -Oth Operating Inc & Expend,T/A Vehicle Maintenance etc,Transport-Contract Hire,J01374,Transport Related Expenditure ,Contract Hire and Op Leasing  ,CC67,HIRING TRANSPORT H&SS CAB ADULTS        ,693.96,30/09/2013,R,KINGSTON ACCESSIBILITY TRAN LT
740,CS -Oth Operating Inc & Expend,T/A Vehicle Maintenance etc,Transport-Contract Hire,J01374,Transport Related Expenditure ,Contract Hire and Op Leasing  ,CC67,HIRING TRANSPORT H&SS CAB ADULTS        ,840,02/10/2013,R,AERIAL CAR SERVICES LTD       
741,CS -Oth Operating Inc & Expend,T/A Vehicle Maintenance etc,Transport-Contract Hire,J01374,Transport Related Expenditure ,Contract Hire and Op Leasing  ,CC67,HIRING TRANSPORT H&SS CAB ADULTS        ,910,30/09/2013,R,KINGSTON ACCESSIBILITY TRAN LT
742,CS -Oth Operating Inc & Expend,T/A Vehicle Maintenance etc,Transport-Contract Hire,J01374,Transport Related Expenditure ,Contract Hire and Op Leasing  ,CC67,HIRING TRANSPORT H&SS CAB ADULTS        ,"1,292.00",30/09/2013,R,SILVERBURN FINANCE (UK) LTD   
743,CS -Oth Operating Inc & Expend,T/A Vehicle Maintenance etc,Transport-Contract Hire,J01374,Transport Related Expenditure ,Contract Hire and Op Leasing  ,CC67,HIRING TRANSPORT H&SS CAB ADULTS        ,"1,530.00",30/09/2013,R,KINGSTON ACCESSIBILITY TRAN LT
744,CS -Oth Operating Inc & Expend,T/A Vehicle Maintenance etc,Transport-Contract Hire,J01374,Transport Related Expenditure ,Contract Hire and Op Leasing  ,CC67,HIRING TRANSPORT H&SS CAB ADULTS        ,918,30/09/2013,R,SILVERBURN FINANCE (UK) LTD   
745,CS -Oth Operating Inc & Expend,T/A Vehicle Maintenance etc,Transport-Contract Hire,J01374,Transport Related Expenditure ,Contract Hire and Op Leasing  ,CC67,HIRING TRANSPORT H&SS CAB ADULTS        ,625,30/09/2013,R,NVCAR HIRE LTD                
746,CS -Oth Operating Inc & Expend,T/A Vehicle Maintenance etc,Transport-Contract Hire,J01374,Transport Related Expenditure ,Contract Hire and Op Leasing  ,CC67,HIRING TRANSPORT H&SS CAB ADULTS        ,"1,264.00",30/09/2013,R,NVCAR HIRE LTD                
747,CS -Oth Operating Inc & Expend,T/A Vehicle Maintenance etc,Transport-Contract Hire,J01374,Transport Related Expenditure ,Contract Hire and Op Leasing  ,CC67,HIRING TRANSPORT H&SS CAB ADULTS        ,518,30/09/2013,R,CAPITAL CARS                  
748,CS -Oth Operating Inc & Expend,T/A Vehicle Maintenance etc,Transport-Contract Hire,J01374,Transport Related Expenditure ,Contract Hire and Op Leasing  ,CC68,HIRING TRANSPORT SEN COLLEGES CABS      ,727.78,30/09/2013,R,KINGSTON ACCESSIBILITY TRAN LT
749,CS -Oth Operating Inc & Expend,T/A Vehicle Maintenance etc,Transport-Contract Hire,J01374,Transport Related Expenditure ,Contract Hire and Op Leasing  ,CC68,HIRING TRANSPORT SEN COLLEGES CABS      ,"1,564.00",30/09/2013,R,BARCLAYS ASSET & SALES FINANCE
750,CS -Oth Operating Inc & Expend,T/A Vehicle Maintenance etc,Transport-Contract Hire,J01374,Transport Related Expenditure ,Contract Hire and Op Leasing  ,CC68,HIRING TRANSPORT SEN COLLEGES CABS      ,"1,871.70",30/09/2013,R,KINGSTON ACCESSIBILITY TRAN LT
751,CS -Oth Operating Inc & Expend,T/A Vehicle Maintenance etc,Transport-Contract Hire,J01374,Transport Related Expenditure ,Contract Hire and Op Leasing  ,CC68,HIRING TRANSPORT SEN COLLEGES CABS      ,"1,024.00",30/09/2013,R,CAPITAL CARS                  
752,CS -Oth Operating Inc & Expend,T/A Vehicle Maintenance etc,Transport-Contract Hire,J01374,Transport Related Expenditure ,Contract Hire and Op Leasing  ,CC68,HIRING TRANSPORT SEN COLLEGES CABS      ,928,30/09/2013,R,BARCLAYS ASSET & SALES FINANCE
753,CS -Oth Operating Inc & Expend,T/A Vehicle Maintenance etc,Transport-Contract Hire,J01374,Transport Related Expenditure ,Contract Hire and Op Leasing  ,CC68,HIRING TRANSPORT SEN COLLEGES CABS      ,"2,917.76",30/09/2013,R,KINGSTON ACCESSIBILITY TRAN LT
754,CS -Oth Operating Inc & Expend,T/A Vehicle Maintenance etc,Transport-Contract Hire,J01374,Transport Related Expenditure ,Contract Hire and Op Leasing  ,CC68,HIRING TRANSPORT SEN COLLEGES CABS      ,660,30/09/2013,R,CAPITAL CARS                  
755,CS -Oth Operating Inc & Expend,T/A Vehicle Maintenance etc,Transport-Contract Hire,J01374,Transport Related Expenditure ,Contract Hire and Op Leasing  ,CC68,HIRING TRANSPORT SEN COLLEGES CABS      ,840,30/09/2013,R,CAPITAL CARS                  
756,CS -Oth Operating Inc & Expend,T/A Vehicle Maintenance etc,Transport-Contract Hire,J01374,Supplies & Services           ,Expenses                      ,DH02,Conferences                             ,520,19/09/2013,R,FREIGHT TRANSPORT ASSOCIATION 
757,CS -Oth Operating Inc & Expend,T/A Vehicle Maintenance etc,Transport-Contract Hire,J01374,Supplies & Services           ,Grants and Subscriptions      ,DJ04,Subscriptions                           ,883,12/09/2013,R,FREIGHT TRANSPORT ASSOCIATION 
758,CS -Oth Operating Inc & Expend,T/A Vehicle Maintenance etc,Transport-Workshop,J01376,Transport Related Expenditure ,Direct Transport Costs        ,CA72,Vehicle Parts                           ,924.7,29/08/2013,R,BOC LTD.                      
759,CS -Oth Operating Inc & Expend,T/A Vehicle Maintenance etc,Transport-Workshop,J01376,Transport Related Expenditure ,Contract Hire and Op Leasing  ,CC60,Vehicle Hire for LB Sutton              ,"1,695.00",29/09/2013,R,CALVERTON FACTORS LTD         
760,CS -Oth Operating Inc & Expend,T/A Vehicle Maintenance etc,Transport-Workshop,J01376,Transport Related Expenditure ,Contract Hire and Op Leasing  ,CC60,Vehicle Hire for LB Sutton              ,"2,520.00",30/09/2013,R,BRUNSWICK CARS LTD            
761,CS -Oth Operating Inc & Expend,T/A Vehicle Maintenance etc,Transport-Workshop,J01376,Transport Related Expenditure ,Contract Hire and Op Leasing  ,CC60,Vehicle Hire for LB Sutton              ,514,29/09/2013,R,CALVERTON FACTORS LTD         
762,CS -Oth Operating Inc & Expend,T/A Vehicle Maintenance etc,Transport-Workshop,J01376,Transport Related Expenditure ,Contract Hire and Op Leasing  ,CC60,Vehicle Hire for LB Sutton              ,"1,957.00",30/09/2013,R,BRUNSWICK CARS LTD            
763,CS -Oth Operating Inc & Expend,T/A Vehicle Maintenance etc,Transport-Workshop,J01376,Transport Related Expenditure ,Contract Hire and Op Leasing  ,CC60,Vehicle Hire for LB Sutton              ,"4,960.00",30/09/2013,R,BARCLAYS ASSET & SALES FINANCE
764,CS -Oth Operating Inc & Expend,T/A Vehicle Maintenance etc,Transport-Workshop,J01376,Transport Related Expenditure ,Contract Hire and Op Leasing  ,CC60,Vehicle Hire for LB Sutton              ,"1,634.00",30/09/2013,R,BARCLAYS ASSET & SALES FINANCE
765,CS -Oth Operating Inc & Expend,T/A Vehicle Maintenance etc,Transport-Workshop,J01376,Transport Related Expenditure ,Contract Hire and Op Leasing  ,CC60,Vehicle Hire for LB Sutton              ,"1,080.00",29/09/2013,R,CALVERTON FACTORS LTD         
766,CS -Oth Operating Inc & Expend,T/A Vehicle Maintenance etc,Transport-Workshop,J01376,Transport Related Expenditure ,Contract Hire and Op Leasing  ,CC60,Vehicle Hire for LB Sutton              ,592,30/09/2013,R,CAPITAL CARS                  
767,CS -Oth Operating Inc & Expend,T/A Vehicle Maintenance etc,Transport-Workshop,J01376,Transport Related Expenditure ,Contract Hire and Op Leasing  ,CC65,Vehicle Hire for Education              ,"1,800.00",30/09/2013,R,NVCAR HIRE LTD                
768,CS -Oth Operating Inc & Expend,T/A Vehicle Maintenance etc,Transport-Workshop,J01376,Supplies & Services           ,Equip Furniture/Materials     ,DA01,Equipment - R & M                       ,"1,108.45",27/07/2013,R,SUNLIGHT SERVICE GROUP LTD    
769,CS -Oth Operating Inc & Expend,T/A Vehicle Maintenance etc,Transport-Workshop,J01376,Supplies & Services           ,Equip Furniture/Materials     ,DA01,Equipment - R & M                       ,687.08,01/10/2013,R,SUNLIGHT SERVICE GROUP LTD    
770,CS -Oth Operating Inc & Expend,T/A Vehicle Maintenance etc,Transport-Workshop,J01376,Supplies & Services           ,Equip Furniture/Materials     ,DA01,Equipment - R & M                       ,"1,832.25",19/08/2013,R,LIFTMASTER COMMERCIAL EQUIP   
771,CS -Oth Operating Inc & Expend,T/A Vehicle Maintenance etc,Transport-Workshop,J01376,Supplies & Services           ,Equip Furniture/Materials     ,DA09,Equip-Purchases                         ,694,16/10/2013,R,R.J.H.WELDING                 
772,CS -Oth Operating Inc & Expend,T/A Vehicle Maintenance etc,Transport-Workshop,J01376,Supplies & Services           ,Comms and Computing           ,DG07,Computer Software                       ,"6,807.19",01/10/2013,R,KAPPA LAMBDA SQUARED LTD      
773,Cultural Env Reg&Plan Services,Mgt & Support (Env),Estates Mgt,J01420,Supplies & Services           ,Services                      ,DF09,Miscellaneous Fees                      ,854.6,19/07/2013,R,SEARCHFLOW LTD                
774,Cultural Env Reg&Plan Services,Mgt & Support (Env),Estates Mgt,J01420,Supplies & Services           ,Services                      ,DF09,Miscellaneous Fees                      ,880.58,18/07/2013,R,SEARCHFLOW LTD                
775,Central Services,NDC Unused Office Accomodation,Montgomery Close,J02044,Premises Related Expenditure  ,RepairsAlterations&MtceOfBldgs,BA03,DDM - MECHANICAL                        ,620.33,25/09/2013,R,COFELY LIMITED                
776,CS -Oth Operating Inc & Expend,Extraordinary Items & PY Adj.,33 Greenwood Close,J03203,Premises Related Expenditure  ,RepairsAlterations&MtceOfBldgs,BA01,DDM - General Building                  ,"23,750.00",01/10/2013,R,SLOANE DEMOLITION LIMITED     
777,CS -Oth Operating Inc & Expend,Extraordinary Items & PY Adj.,Pollards Hill Comm Cntre,J08074,Premises Related Expenditure  ,RepairsAlterations&MtceOfBldgs,BA03,DDM - Mechanical                        ,695.47,25/09/2013,R,COFELY LIMITED                
778,Childrens & Education Services,Statutory & Regulatory Duties,Senior Mngt & Support Services,K01005,Employees                     ,Indirect Employee Expenses    ,AB57,External Training Costs                 ,"3,800.00",06/09/2013,R,THE DIVERSITY PRACTICE        
779,Childrens & Education Services,Statutory & Regulatory Duties,Senior Mngt & Support Services,K01005,Supplies & Services           ,Services                      ,DF03,CONSULTANTS                             ,"1,687.50",01/10/2013,R,MILTONCOX LIMITED             
780,Childrens & Education Services,Statutory & Regulatory Duties,Senior Mngt & Support Services,K01005,Supplies & Services           ,Services                      ,DF11,Counsel's Fees                          ,825,28/08/2013,R,REDACTED
781,Childrens & Education Services,Statutory & Regulatory Duties,Central Administration,K01008,Supplies & Services           ,Comms and Computing           ,DG04,Postage - General                       ,510,01/10/2013,R,TRAVELCARE                    
782,Childrens & Education Services,Statutory & Regulatory Duties,Schools IT Support,K02008,Supplies & Services           ,Comms and Computing           ,DG50,Other IT Expenditure                    ,600,02/10/2013,R,ATOMWIDE LTD                  
783,Childrens & Education Services,Statutory & Regulatory Duties,Commissioning Manager,K03001,Employees                     ,Indirect Employee Expenses    ,AB02,Recruitment Adverts                     ,"1,440.00",22/10/2013,R,PENNA COMMUNICATIONS (NO 2 A/C
784,Childrens & Education Services,Statutory & Regulatory Duties,Research and Statistics,K03016,Supplies & Services           ,Services                      ,DF09,Miscellaneous Fees                      ,"4,500.00",18/09/2013,R,GREATER LONDON AUTHORITY      
785,Childrens & Education Services,Asset Management,PFI Unitary Charges,K03023,Third Party Payments          ,Private Contractors           ,EH02,Miscellaneous Hired Services            ,506.37,30/09/2013,R,NEWSCHOOLS (MERTON) LIMITED   
786,Childrens & Education Services,Asset Management,PFI Unitary Charges,K03023,Third Party Payments          ,Private Contractors           ,EH02,Miscellaneous Hired Services            ,"3,350.00",12/09/2013,R,ICL SOLUTIONS                 
787,Childrens & Education Services,Statutory & Regulatory Duties,Head of Special Educatn Needs,K04017,Supplies & Services           ,Services                      ,DF03,Consultants                             ,"1,700.00",07/10/2013,R,ANAIRO SOLUTIONS LIMITED      
788,Childrens & Education Services,Statutory & Regulatory Duties,Head of Special Educatn Needs,K04017,Supplies & Services           ,Services                      ,DF03,Consultants                             ,850,30/09/2013,R,ANAIRO SOLUTIONS LIMITED      
789,Childrens & Education Services,Statutory & Regulatory Duties,Head of Special Educatn Needs,K04017,Supplies & Services           ,Services                      ,DF03,Consultants                             ,"2,125.00",23/09/2013,R,ANAIRO SOLUTIONS LIMITED      
790,Childrens & Education Services,Statutory & Regulatory Duties,Head of Special Educatn Needs,K04017,Supplies & Services           ,Services                      ,DF03,Consultants                             ,"1,275.00",30/09/2013,R,ANAIRO SOLUTIONS LIMITED      
791,Childrens & Education Services,Education Psychology Service,Education Psychology.,K04018,Employees                     ,Direct Employee Expenses      ,AA17,Agency Staff & Casual Paymts            ,"4,950.00",01/10/2013,R,REDACTED
792,Childrens & Education Services,Support for SEN Pupils,Statementing-Transport,K04023,Transport Related Expenditure ,Public Transport              ,CD50,Home Sch/Coll Trans(Trav Exps)          ,"1,200.00",30/09/2013,R,REDACTED
793,Childrens & Education Services,Behavioural Support,Statement Support Team,K04034,Employees                     ,Direct Employee Expenses      ,AA17,Agency Staff & Casual Paymts            ,"2,520.00",05/10/2013,R,REDACTED
794,Childrens & Education Services,Behavioural Support,Statement Support Team,K04034,Employees                     ,Direct Employee Expenses      ,AA17,Agency Staff & Casual Paymts            ,"10,115.00",16/09/2013,R,GATENBYSANDERSON LIMITED      
795,Childrens & Education Services,Behavioural Support,Statement Support Team,K04034,Employees                     ,Direct Employee Expenses      ,AA17,Agency Staff & Casual Paymts            ,"2,080.00",12/10/2013,R,REDACTED
796,Childrens & Education Services,Behavioural Support,Statement Support Team,K04034,Employees                     ,Direct Employee Expenses      ,AA17,Agency Staff & Casual Paymts            ,"4,160.00",21/09/2013,R,REDACTED
797,Childrens & Education Services,Pupil Referral Units,Expanded Pupil Referral Unit,K05099,Third Party Payments          ,Private Contractors           ,EH01,Miscellaneous Agency Services           ,"5,006.96",29/08/2013,R,SW LONDON ST GEORGES NHS TRUST
798,Childrens & Education Services,Pupil Referral Units,Expanded Pupil Referral Unit,K05099,Third Party Payments          ,Private Contractors           ,EH01,Miscellaneous Agency Services           ,"4,840.92",27/09/2013,R,SW LONDON ST GEORGES NHS TRUST
799,Childrens & Education Services,Oth U5s Provn Not Prim or Spec,GSSG Workforce Development,K05111,Employees                     ,Indirect Employee Expenses    ,AB56,Internal Training Costs                 ,680,15/10/2013,R,ACTUAL FIRST AID LTD          
800,Childrens & Education Services,Oth U5s Provn Not Prim or Spec,GSSG Workforce Development,K05111,Employees                     ,Indirect Employee Expenses    ,AB56,Internal Training Costs                 ,640,10/10/2013,R,ACTUAL FIRST AID LTD          
801,Childrens & Education Services,Nursery schools,GSSG Central Administration,K05400,Supplies & Services           ,Equip Furniture/Materials     ,DA09,Equip-Purchases                         ,865.18,07/05/2013,R,COSY                          
802,Childrens & Education Services,GENERATED ACCOUNT,Mitcham MAT,K05411,Employees                     ,Indirect Employee Expenses    ,AB57,External Training Costs                 ,"1,600.00",18/10/2013,R,KIN SUPPORT SERVICES          
803,Childrens & Education Services,GENERATED ACCOUNT,Mitcham MAT (Premises),K05412,Premises Related Expenditure  ,Cleaning and Domestic Supplies,BH03,Cleaning Services                       ,"1,186.24",30/09/2013,R,BIRKIN CLEANING SERVICES LTD  
804,Childrens & Education Services,Nursery schools,Lavender CC Non Childcare,K05415,Premises Related Expenditure  ,Cleaning and Domestic Supplies,BH03,Cleaning Services                       ,"1,189.54",30/09/2013,R,BIRKIN CLEANING SERVICES LTD  
805,Childrens & Education Services,Nursery schools,E.Years-Intergenerational Cntr,K05416,Premises Related Expenditure  ,RepairsAlterations&MtceOfBldgs,BA06,Repairs & Maintenance General           ,695,08/10/2013,R,FIRE COMPLIANCE MANAGM'T SERV 
806,Childrens & Education Services,Nursery schools,E.Years-Intergenerational Cntr,K05416,Premises Related Expenditure  ,Energy Costs                  ,BB02,Electricity                             ,775.41,04/10/2013,R,SCOTTISHPOWER                 
807,Childrens & Education Services,Nursery schools,E.Years-Intergenerational Cntr,K05416,Premises Related Expenditure  ,Cleaning and Domestic Supplies,BH03,Cleaning Services                       ,796.82,30/09/2013,R,BIRKIN CLEANING SERVICES LTD  
808,Childrens & Education Services,Nursery schools,E.Years-Intergenerational Cntr,K05416,Supplies & Services           ,Services                      ,DF03,Consultants                             ,"1,819.44",01/10/2013,R,REDACTED
809,Childrens & Education Services,Nursery schools,E.Years-Intergenerational Cntr,K05416,Supplies & Services           ,Services                      ,DF30,Activities Programme                    ,750,15/10/2013,R,THE JAYNE STEWART SCH OF DANCE
810,Childrens & Education Services,Vocational - Adult Education,AE-Familiy Learning,K06041,Supplies & Services           ,Services                      ,DF30,Activities Programme                    ,989,03/10/2013,R,ST MARKS FAMILY CENTRE        
811,Childrens & Education Services,Vocational - Adult Education,AE-Adult Education Main,K06049,Premises Related Expenditure  ,Water Services                ,BE01,Use of Water (Metered)                  ,"1,799.27",16/10/2013,R,THAMES WATER UTILITIES LTD.   
812,Childrens & Education Services,Vocational - Adult Education,AE-Adult Education Main,K06049,Premises Related Expenditure  ,Cleaning and Domestic Supplies,BH03,Cleaning Services                       ,"2,773.59",25/08/2013,R,JULIUS RUTHERFOORD & CO LTD   
813,Childrens & Education Services,Vocational - Adult Education,AE-Adult Education Main,K06049,Premises Related Expenditure  ,Cleaning and Domestic Supplies,BH03,Cleaning Services                       ,"2,773.59",25/09/2013,R,JULIUS RUTHERFOORD & CO LTD   
814,Childrens & Education Services,Vocational - Adult Education,AE-Adult Education Main,K06049,Supplies & Services           ,Prntng Stnry Gen Off Exp      ,DE03,Stationery                              ,548,22/10/2013,R,OFFICE DEPOT UK LTD           
815,Childrens & Education Services,Vocational - Adult Education,AE-Adult Education Main,K06049,Supplies & Services           ,Services                      ,DF02,Misc Advertising/Publicity              ,577.5,24/09/2013,R,LONDON LETTERBOX MARKETING    
816,Childrens & Education Services,Vocational - Adult Education,AE-Adult Education Main,K06049,Supplies & Services           ,Services                      ,DF02,Misc Advertising/Publicity              ,"1,104.00",21/09/2013,R,NEWSQUEST (LONDON)LTD         
817,Childrens & Education Services,Vocational - Adult Education,AE-Adult Education Main,K06049,Supplies & Services           ,Services                      ,DF02,Misc Advertising/Publicity              ,"1,104.00",07/09/2013,R,NEWSQUEST (LONDON)LTD         
818,Childrens & Education Services,Vocational - Adult Education,AE-Adult Education Main,K06049,Supplies & Services           ,Services                      ,DF03,Consultants                             ,"1,988.10",03/05/2013,R,TCMD LTD                      
819,Childrens & Education Services,Vocational - Adult Education,AE-Adult Education Main,K06049,Supplies & Services           ,Services                      ,DF03,Consultants                             ,"1,325.40",24/08/2013,R,TCMD LTD                      
820,Childrens & Education Services,Vocational - Adult Education,AE-Adult Education Main,K06049,Supplies & Services           ,Services                      ,DF27,Examination Fees                        ,961,15/10/2013,R,EDEXCEL                       
821,Childrens & Education Services,Vocational - Adult Education,AE-Adult Education Main,K06049,Supplies & Services           ,Comms and Computing           ,DG02,Software Licences                       ,"8,160.00",25/09/2013,R,LEARNING ASSISTANT            
822,Childrens & Education Services,Vocational - Adult Education,AE-Adult Education Main,K06049,Supplies & Services           ,Comms and Computing           ,DG02,Software Licences                       ,"1,075.15",20/09/2013,R,COPYRIGHT LICENSING AGENCY LTD
823,Childrens & Education Services,Vocational - Adult Education,AE-Adult Education Main,K06049,Supplies & Services           ,Comms and Computing           ,DG04,Postage - General                       ,"1,213.41",14/10/2013,R,NEOPOST FINANCE LIMITED       
824,Childrens & Education Services,Youth Centres (Residential),Youth Service,K06053,Supplies & Services           ,Expenses                      ,DH12,Young Peoples Expenses                  ,718.75,14/10/2013,R,YOUTH FUN DAYS                
825,Childrens & Education Services,Youth Centres (Residential),Youth Service,K06053,Supplies & Services           ,Expenses                      ,DH12,Young Peoples Expenses                  ,"4,247.97",11/10/2013,R,THE AWARD SCHEME LTD          
826,Childrens & Education Services,Youth Centres (Residential),Conx-Merton Vol Serv (RobMoile,K06070,Third Party Payments          ,Private Contractors           ,EH01,Miscellaneous Agency Services           ,"6,400.00",10/09/2013,R,ST TERESA'S                   
827,Childrens & Education Services,Youth Centres (Residential),Youth Office Premises Cost,K06073,Premises Related Expenditure  ,RepairsAlterations&MtceOfBldgs,BA05,DDM - Electrical                        ,800,23/08/2013,R,FIRST CHOICE FACILITIES PLC   
828,Childrens & Education Services,Vocational - Adult Education,AE-Family Literacy,K06082,Supplies & Services           ,Services                      ,DF30,Activities Programme                    ,726.75,02/10/2013,R,ST MARKS FAMILY CENTRE        
829,Childrens & Education Services,Vocational - Adult Education,AE-Family Literacy,K06082,Supplies & Services           ,Services                      ,DF30,Activities Programme                    ,726.75,02/10/2013,R,ST MARKS FAMILY CENTRE        
830,Childrens & Education Services,Youth Centres (Residential),PAYP Moving Forward in Life,K06092,Employees                     ,Indirect Employee Expenses    ,AB57,PAYP Moving Forward in Life             ,"3,500.00",20/09/2013,R,CONSTRUCTION YOUTH TRUST      
831,Childrens & Education Services,Youth Centres (Residential),PAYP Moving Forward in Life,K06092,Employees                     ,Indirect Employee Expenses    ,AB57,PAYP Moving Forward in Life             ,"2,200.00",09/07/2013,R,KINGSTON COLLEGE              
832,Childrens & Education Services,Youth Centres (Residential),PAYP Moving Forward in Life,K06092,Supplies & Services           ,Expenses                      ,DH12,Young Peoples Expenses                  ,560,09/10/2013,R,SURREY COUNTY COUNCIL         
833,Childrens & Education Services,Youth Centres (Residential),Youth Opps Fund (GF C G),K06093,Supplies & Services           ,Grants and Subscriptions      ,DJ01,Grants                                  ,520,24/10/2013,R,RCCG THORP                    
834,Childrens & Education Services,Vocational - Adult Education,AE-Mind & Body,K06104,Supplies & Services           ,Services                      ,DF07,Bought in Teaching Services             ,600,09/10/2013,R,BRIDGE TRAINING UK LTD        
835,Childrens & Education Services,Pupil Support,Children & Yth Participation,K06115,Supplies & Services           ,Expenses                      ,DH12,Young Peoples Expenses                  ,582.39,17/10/2013,R,THE TROPHY STORE              
836,Childrens & Education Services,Asset Management,Premises and Contracts,K08069,Employees                     ,Indirect Employee Expenses    ,AB02,Recruitment Adverts                     ,"1,540.00",30/09/2013,R,PENNA COMMUNICATIONS (NO 2 A/C
837,Childrens & Education Services,Asset Management,Premises and Contracts,K08069,Supplies & Services           ,Services                      ,DF03,Consultants                             ,"4,000.00",14/10/2013,R,I-CLEAN                       
838,Childrens & Education Services,Asset Management,Premises and Contracts,K08069,Supplies & Services           ,Services                      ,DF03,Consultants                             ,"1,530.00",30/09/2013,R,SYNERGY CPC LLP               
839,Childrens & Education Services,Asset Management,S106 Bid,K08077,Premises Related Expenditure  ,RepairsAlterations&MtceOfBldgs,BA06,Repairs & Maintenance General           ,"132,409.65",16/09/2013,R,MANSELL CONSTRUCTION SERVICES 
840,Childrens & Education Services,Asset Management,S106 Bid,K08077,Premises Related Expenditure  ,RepairsAlterations&MtceOfBldgs,BA06,Repairs & Maintenance General           ,"266,433.88",20/09/2013,R,MANSELL CONSTRUCTION SERVICES 
841,Childrens & Education Services,Asset Management,S106 Bid,K08077,Premises Related Expenditure  ,RepairsAlterations&MtceOfBldgs,BA79,Security of Premises                    ,"6,386.40",01/10/2013,R,REDACTED
842,Childrens & Education Services,Asset Management,S106 Bid,K08077,Premises Related Expenditure  ,Energy Costs                  ,BB02,Electricity                             ,"2,621.75",24/09/2013,R,SOUTHERN ELECTRIC             
843,Childrens & Education Services,Asset Management,S106 Bid,K08077,Premises Related Expenditure  ,Energy Costs                  ,BB02,Electricity                             ,"1,400.80",24/09/2013,R,SOUTHERN ELECTRIC             
844,Childrens & Education Services,Asset Management,S106 Bid,K08077,Premises Related Expenditure  ,Rents                         ,BC03,Room/venue rental hire                  ,680.34,01/10/2013,R,PORTAKABIN LIMITED            
845,Childrens & Education Services,Asset Management,S106 Bid,K08077,Premises Related Expenditure  ,Rents                         ,BC03,Room/venue rental hire                  ,680.34,01/11/2013,R,PORTAKABIN LIMITED            
846,Childrens & Education Services,Asset Management,Centre Commissioned Servs,K08078,Supplies & Services           ,Grants and Subscriptions      ,DJ01,Grants                                  ,"18,750.00",19/09/2013,R,CARERS SUPPORT MERTON         
847,Childrens & Education Services,Asset Management,Centre Commissioned Servs,K08078,Supplies & Services           ,Grants and Subscriptions      ,DJ01,Grants                                  ,"7,750.00",26/09/2013,R,VOLUNTEER CENTRE MERTON       
848,Childrens & Education Services,Asset Management,Centre Commissioned Servs,K08078,Supplies & Services           ,Grants and Subscriptions      ,DJ01,Grants                                  ,"6,875.00",22/07/2013,R,BROADWAY HOMELESS & SUPPORT   
849,Childrens & Education Services,Asset Management,Centre Commissioned Servs,K08078,Supplies & Services           ,Grants and Subscriptions      ,DJ01,Grants                                  ,"2,060.00",02/05/2013,R,COLLIERS WOOD WOODCRAFT FOLK  
850,Childrens & Education Services,Asset Management,Centre Commissioned Servs,K08078,Supplies & Services           ,Grants and Subscriptions      ,DJ01,Grants                                  ,"4,138.40",03/10/2013,R,NORTH EAST MITCHAM COMM ASSOC 
851,Childrens & Education Services,Asset Management,Centre Commissioned Servs,K08078,Supplies & Services           ,Grants and Subscriptions      ,DJ01,Grants                                  ,"2,360.00",02/05/2013,R,COLLIERS WOOD WOODCRAFT FOLK  
852,Childrens & Education Services,Asset Management,Centre Commissioned Servs,K08078,Supplies & Services           ,Grants and Subscriptions      ,DJ01,Grants                                  ,"9,780.00",23/10/2013,R,ST TERESA'S                   
853,Childrens & Education Services,Asset Management,Centre Commissioned Servs,K08078,Supplies & Services           ,Grants and Subscriptions      ,DJ01,Grants                                  ,"10,000.00",01/10/2013,R,MERTON VOLUNTARY SERV COUNCIL 
854,Childrens & Education Services,Asset Management,Centre Commissioned Servs,K08078,Supplies & Services           ,Grants and Subscriptions      ,DJ01,Grants                                  ,"4,500.00",19/09/2013,R,CARERS SUPPORT MERTON         
855,Childrens & Education Services,Asset Management,Centre Commissioned Servs,K08078,Supplies & Services           ,Grants and Subscriptions      ,DJ01,Grants                                  ,"12,927.75",03/10/2013,R,UPTOWN UK                     
856,Childrens & Education Services,Asset Management,Centre Commissioned Servs,K08078,Supplies & Services           ,Grants and Subscriptions      ,DJ01,Grants                                  ,"13,750.00",25/09/2013,R,BROADWAY HOMELESS & SUPPORT   
857,Childrens & Education Services,Asset Management,Centre Commissioned Servs,K08078,Supplies & Services           ,Grants and Subscriptions      ,DJ01,Grants                                  ,"7,500.00",15/10/2013,R,ENDEAVOUR CLUB                
858,Childrens & Education Services,Asset Management,Centre Commissioned Servs,K08078,Supplies & Services           ,Grants and Subscriptions      ,DJ01,Grants                                  ,"23,370.00",16/09/2013,R,MERTON VOLUNTARY SERV COUNCIL 
859,Childrens & Education Services,Facilitating School Improvemnt,SSQ,K09077,Supplies & Services           ,Services                      ,DF03,Consultants                             ,800,27/09/2013,R,REDACTED
860,Childrens & Education Services,Facilitating School Improvemnt,SSQ,K09077,Supplies & Services           ,Grants and Subscriptions      ,DJ04,Subscriptions                           ,"5,375.00",11/10/2013,R,TESTBASE                      
861,Childrens & Education Services,Statutory & Regulatory Duties,Profess Develop Cntre,K09084,Premises Related Expenditure  ,Cleaning and Domestic Supplies,BH03,Cleaning Services                       ,"2,718.68",25/09/2013,R,JULIUS RUTHERFOORD & CO LTD   
862,Childrens & Education Services,Statutory & Regulatory Duties,Profess Develop Cntre,K09084,Premises Related Expenditure  ,Cleaning and Domestic Supplies,BH09,Communal/Commercial Waste               ,831.7,01/10/2013,R,LONDON BOROUGH OF MERTON      
863,Childrens & Education Services,Admissions & Planning Sch Prov,Schools Admin & Pupil Benefits,K90001,Supplies & Services           ,Comms and Computing           ,DG04,Postage - General                       ,610,18/09/2013,R,TRAVELCARE                    
864,Childrens & Education Services,Sch Meals & Milk-Not Delegated,Free School Meals,K90002,Premises Related Expenditure  ,RepairsAlterations&MtceOfBldgs,BA01,DDM - General Building                  ,541,14/10/2013,R,DF20 LTD                      
865,Childrens & Education Services,Support for SEN Pupils,Non-Delegated Statements,K90024,Employees                     ,Direct Employee Expenses      ,AA17,Agency Staff & Casual Paymts            ,"2,400.00",30/09/2013,R,REDACTED
866,Childrens & Education Services,Support for SEN Pupils,Non-Delegated Statements,K90024,Employees                     ,Direct Employee Expenses      ,AA17,Agency Staff & Casual Paymts            ,700,15/07/2013,R,REDACTED
867,Childrens & Education Services,Support for SEN Pupils,Non-Delegated Statements,K90024,Employees                     ,Direct Employee Expenses      ,AA17,Agency Staff & Casual Paymts            ,600,09/10/2013,R,REDACTED
868,Childrens & Education Services,Support for SEN Pupils,Non-Delegated Statements,K90024,Employees                     ,Direct Employee Expenses      ,AA17,Agency Staff & Casual Paymts            ,"1,571.52",30/09/2013,R,REDACTED
869,Childrens & Education Services,Support for SEN Pupils,Non-Delegated Statements,K90024,Employees                     ,Direct Employee Expenses      ,AA17,Agency Staff & Casual Paymts            ,"1,027.50",25/09/2013,R,REDACTED
870,Childrens & Education Services,Support for SEN Pupils,Non-Delegated Statements,K90024,Employees                     ,Direct Employee Expenses      ,AA17,Agency Staff & Casual Paymts            ,"1,050.00",01/10/2013,R,REDACTED
871,Childrens & Education Services,Support for SEN Pupils,Non-Delegated Statements,K90024,Supplies & Services           ,Equip Furniture/Materials     ,DA09,Equip-Purchases                         ,"1,581.00",30/09/2013,R,JAMES LECKEY DESIGN           
872,Childrens & Education Services,Support for SEN Pupils,Non-Delegated Statements,K90024,Supplies & Services           ,Services                      ,DF09,Miscellaneous Fees                      ,"1,204.80",01/10/2013,R,INDEPENDENT BUSINESS SERV.LTD 
873,Childrens & Education Services,Support for SEN Pupils,Non-Delegated Statements,K90024,Third Party Payments          ,Other Local Authorities       ,EB48,OLA PAYMENTS-STATEMENTS                 ,"20,813.56",15/10/2013,R,GLENTHORNE HIGH SCHOOL        
874,Childrens & Education Services,Support for SEN Pupils,Non-Delegated Statements,K90024,Third Party Payments          ,Other Local Authorities       ,EB48,OLA PAYMENTS-STATEMENTS                 ,"62,303.98",15/10/2013,R,GLENTHORNE HIGH SCHOOL        
875,Childrens & Education Services,Support for SEN Pupils,Non-Delegated Statements,K90024,Third Party Payments          ,Other Local Authorities       ,EB48,OLA PAYMENTS-STATEMENTS                 ,"2,964.50",03/10/2013,R,SWAFFIELD PRIMARY SCHOOL      
876,Childrens & Education Services,Support for SEN Pupils,Non-Delegated Statements,K90024,Third Party Payments          ,Other Local Authorities       ,EB48,OLA PAYMENTS-STATEMENTS                 ,"7,680.50",03/10/2013,R,SWAFFIELD PRIMARY SCHOOL      
877,Childrens & Education Services,Support for SEN Pupils,Non-Delegated Statements,K90024,Third Party Payments          ,Other Local Authorities       ,EB48,OLA PAYMENTS-STATEMENTS                 ,"4,980.50",07/10/2013,R,ABBEY PRIMARY SCHOOL          
878,Childrens & Education Services,Support for SEN Pupils,Non-Delegated Statements,K90024,Third Party Payments          ,Other Local Authorities       ,EB48,OLA PAYMENTS-STATEMENTS                 ,"1,304.00",03/10/2013,R,THE LONDON ORATORY SCHOOL     
879,Childrens & Education Services,Support for SEN Pupils,Non-Delegated Statements,K90024,Third Party Payments          ,Other Local Authorities       ,EB48,OLA PAYMENTS-STATEMENTS                 ,"3,912.00",03/10/2013,R,THE LONDON ORATORY SCHOOL     
880,Childrens & Education Services,Support for SEN Pupils,Non-Delegated Statements,K90024,Third Party Payments          ,Other Local Authorities       ,EB48,OLA PAYMENTS-STATEMENTS                 ,"6,640.67",16/10/2013,R,EARLSFIELD PRIMARY SCHOOL     
881,Childrens & Education Services,Support for SEN Pupils,Non-Delegated Statements,K90024,Third Party Payments          ,Other Local Authorities       ,EB48,OLA PAYMENTS-STATEMENTS                 ,"3,986.67",14/10/2013,R,OVERTON GRANGE SCHOOL         
882,Childrens & Education Services,Support for SEN Pupils,Non-Delegated Statements,K90024,Third Party Payments          ,Other Local Authorities       ,EB48,OLA PAYMENTS-STATEMENTS                 ,830.08,03/10/2013,R,REGINE COELI CATHOLIC PRIMARY 
883,Childrens & Education Services,Support for SEN Pupils,Non-Delegated Statements,K90024,Third Party Payments          ,Other Local Authorities       ,EB48,OLA PAYMENTS-STATEMENTS                 ,"1,660.17",07/10/2013,R,ABBEY PRIMARY SCHOOL          
884,Childrens & Education Services,Support for SEN Pupils,Non-Delegated Statements,K90024,Third Party Payments          ,Other Local Authorities       ,EB48,OLA PAYMENTS-STATEMENTS                 ,"10,876.97",15/10/2013,R,BROADWATER PRIMARY SCH        
885,Childrens & Education Services,Support for SEN Pupils,Non-Delegated Statements,K90024,Third Party Payments          ,Other Local Authorities       ,EB48,OLA PAYMENTS-STATEMENTS                 ,"3,291.67",03/10/2013,R,BROOKFIELDS PRIMARY SCHOOL    
886,Childrens & Education Services,Support for SEN Pupils,Non-Delegated Statements,K90024,Third Party Payments          ,Other Local Authorities       ,EB48,OLA PAYMENTS-STATEMENTS                 ,"1,660.17",03/10/2013,R,REGINE COELI CATHOLIC PRIMARY 
887,Childrens & Education Services,Support for SEN Pupils,Non-Delegated Statements,K90024,Third Party Payments          ,Other Local Authorities       ,EB48,OLA PAYMENTS-STATEMENTS                 ,"3,095.83",15/10/2013,R,BROADWATER PRIMARY SCH        
888,Childrens & Education Services,Support for SEN Pupils,Non-Delegated Statements,K90024,Third Party Payments          ,Other Local Authorities       ,EB50,OLA-Payments - Day Schools              ,"4,716.88",14/10/2013,R,FORESTERS PRIM'Y SCH SPEC UNIT
889,Childrens & Education Services,Support for SEN Pupils,Non-Delegated Statements,K90024,Third Party Payments          ,Other Local Authorities       ,EB50,OLA-Payments - Day Schools              ,"7,568.00",03/10/2013,R,BEORMUND PRIMARY SCHOOL       
890,Childrens & Education Services,Support for SEN Pupils,Non-Delegated Statements,K90024,Third Party Payments          ,Other Local Authorities       ,EB50,OLA-Payments - Day Schools              ,"5,767.37",16/10/2013,R,STANLEY PARK HIGH             
891,Childrens & Education Services,Support for SEN Pupils,Non-Delegated Statements,K90024,Third Party Payments          ,Other Local Authorities       ,EB50,OLA-Payments - Day Schools              ,"10,169.67",15/10/2013,R,BEDELSFORD SCHOOL             
892,Childrens & Education Services,Support for SEN Pupils,Non-Delegated Statements,K90024,Third Party Payments          ,Other Local Authorities       ,EB50,OLA-Payments - Day Schools              ,"13,333.34",21/10/2013,R,HAYMERLE SPECIAL SCHOOL       
893,Childrens & Education Services,Support for SEN Pupils,Non-Delegated Statements,K90024,Third Party Payments          ,Other Local Authorities       ,EB50,OLA-Payments - Day Schools              ,"2,972.00",03/10/2013,R,HAYMERLE SPECIAL SCHOOL       
894,Childrens & Education Services,Support for SEN Pupils,Non-Delegated Statements,K90024,Third Party Payments          ,Other Local Authorities       ,EB50,OLA-Payments - Day Schools              ,"8,916.00",03/10/2013,R,HAYMERLE SPECIAL SCHOOL       
895,Childrens & Education Services,Support for SEN Pupils,Non-Delegated Statements,K90024,Third Party Payments          ,Other Local Authorities       ,EB50,OLA-Payments - Day Schools              ,"2,522.67",03/10/2013,R,BEORMUND PRIMARY SCHOOL       
896,Childrens & Education Services,Support for SEN Pupils,Non-Delegated Statements,K90024,Third Party Payments          ,Other Local Authorities       ,EB50,OLA-Payments - Day Schools              ,"10,169.67",03/10/2013,R,BEDELSFORD SCHOOL             
897,Childrens & Education Services,Support for SEN Pupils,Non-Delegated Statements,K90024,Third Party Payments          ,Other Local Authorities       ,EB51,OLA Payments - Special Units            ,"12,429.62",07/10/2013,R,WANDSWORTH CORPORATION        
898,Childrens & Education Services,Support for SEN Pupils,Non-Delegated Statements,K90024,Third Party Payments          ,Other Establishments          ,EG01,Alternative SEN Provision               ,557.5,30/09/2013,R,HA TUTORS LTD                 
899,Childrens & Education Services,Support for SEN Pupils,Non-Delegated Statements,K90024,Third Party Payments          ,Other Establishments          ,EG01,Alternative SEN Provision               ,"1,330.00",30/09/2013,R,HA TUTORS LTD                 
900,Childrens & Education Services,Support for SEN Pupils,Non-Delegated Statements,K90024,Third Party Payments          ,Other Establishments          ,EG01,Alternative SEN Provision               ,"1,862.00",30/09/2013,R,HA TUTORS LTD                 
901,Childrens & Education Services,Support for SEN Pupils,Non-Delegated Statements,K90024,Third Party Payments          ,Other Establishments          ,EG01,Alternative SEN Provision               ,"2,395.20",14/10/2013,R,REDACTED
902,Childrens & Education Services,Support for SEN Pupils,Non-Delegated Statements,K90024,Third Party Payments          ,Other Establishments          ,EG50,Ind Day Schs Payments                   ,"12,093.67",01/10/2013,R,EAGLE HOUSE SCHOOL (SUTTON)   
903,Childrens & Education Services,Support for SEN Pupils,Non-Delegated Statements,K90024,Third Party Payments          ,Other Establishments          ,EG50,Ind Day Schs Payments                   ,"6,652.40",02/09/2013,R,ST DOMINIC'S SCHOOL           
904,Childrens & Education Services,Support for SEN Pupils,Non-Delegated Statements,K90024,Third Party Payments          ,Other Establishments          ,EG50,Ind Day Schs Payments                   ,"16,618.34",01/10/2013,R,EAGLE HOUSE SCHOOL (SUTTON)   
905,Childrens & Education Services,Support for SEN Pupils,Non-Delegated Statements,K90024,Third Party Payments          ,Other Establishments          ,EG50,Ind Day Schs Payments                   ,"16,618.34",01/10/2013,R,EAGLE HOUSE SCHOOL (SUTTON)   
906,Childrens & Education Services,Support for SEN Pupils,Non-Delegated Statements,K90024,Third Party Payments          ,Other Establishments          ,EG50,Ind Day Schs Payments                   ,"11,890.00",09/09/2013,R,BROWN'S SCHOOL                
907,Childrens & Education Services,Support for SEN Pupils,Non-Delegated Statements,K90024,Third Party Payments          ,Other Establishments          ,EG50,Ind Day Schs Payments                   ,"10,931.46",16/09/2013,R,ST DOMINIC'S SCHOOL           
908,Childrens & Education Services,Support for SEN Pupils,Non-Delegated Statements,K90024,Third Party Payments          ,Other Establishments          ,EG50,Ind Day Schs Payments                   ,"6,779.20",04/09/2013,R,BLOSSOM LOWER SCHOOL LTD      
909,Childrens & Education Services,Support for SEN Pupils,Non-Delegated Statements,K90024,Third Party Payments          ,Other Establishments          ,EG50,Ind Day Schs Payments                   ,"16,618.34",01/10/2013,R,EAGLE HOUSE SCHOOL (SUTTON)   
910,Childrens & Education Services,Support for SEN Pupils,Non-Delegated Statements,K90024,Third Party Payments          ,Other Establishments          ,EG50,Ind Day Schs Payments                   ,"11,963.00",01/07/2013,R,BLOSSOM HOUSE SCHOOL          
911,Childrens & Education Services,Support for SEN Pupils,Non-Delegated Statements,K90024,Third Party Payments          ,Other Establishments          ,EG50,Ind Day Schs Payments                   ,"1,201.00",16/09/2013,R,ST DOMINIC'S SCHOOL           
912,Childrens & Education Services,Support for SEN Pupils,Non-Delegated Statements,K90024,Third Party Payments          ,Other Establishments          ,EG50,Ind Day Schs Payments                   ,"10,797.00",01/07/2013,R,BLOSSOM HOUSE SCHOOL          
913,Childrens & Education Services,Support for SEN Pupils,Non-Delegated Statements,K90024,Third Party Payments          ,Other Establishments          ,EG50,Ind Day Schs Payments                   ,"11,963.00",01/07/2013,R,BLOSSOM HOUSE SCHOOL          
914,Childrens & Education Services,Support for SEN Pupils,Non-Delegated Statements,K90024,Third Party Payments          ,Other Establishments          ,EG50,Ind Day Schs Payments                   ,"10,575.00",01/07/2013,R,BLOSSOM HOUSE SCHOOL          
915,Childrens & Education Services,Support for SEN Pupils,Non-Delegated Statements,K90024,Third Party Payments          ,Other Establishments          ,EG50,Ind Day Schs Payments                   ,"36,435.00",15/07/2013,R,ST DOMINIC'S SCHOOL           
916,Childrens & Education Services,Support for SEN Pupils,Non-Delegated Statements,K90024,Third Party Payments          ,Other Establishments          ,EG50,Ind Day Schs Payments                   ,"10,575.00",01/07/2013,R,BLOSSOM HOUSE SCHOOL          
917,Childrens & Education Services,Support for SEN Pupils,Non-Delegated Statements,K90024,Third Party Payments          ,Other Establishments          ,EG50,Ind Day Schs Payments                   ,"10,575.00",01/07/2013,R,BLOSSOM HOUSE SCHOOL          
918,Childrens & Education Services,Support for SEN Pupils,Non-Delegated Statements,K90024,Third Party Payments          ,Other Establishments          ,EG50,Ind Day Schs Payments                   ,"-3,333.00",16/09/2013,R,ST DOMINIC'S SCHOOL           
919,Childrens & Education Services,Support for SEN Pupils,Non-Delegated Statements,K90024,Third Party Payments          ,Other Establishments          ,EG50,Ind Day Schs Payments                   ,"16,618.34",01/10/2013,R,EAGLE HOUSE SCHOOL (SUTTON)   
920,Childrens & Education Services,Support for SEN Pupils,Non-Delegated Statements,K90024,Third Party Payments          ,Other Establishments          ,EG50,Ind Day Schs Payments                   ,"10,797.00",01/07/2013,R,BLOSSOM HOUSE SCHOOL          
921,Childrens & Education Services,Behavioural Support,Sensory Team,K90026,Supplies & Services           ,Services                      ,DF73,Advocacy & Mentoring Service            ,"2,151.80",23/09/2013,R,MERTON VISION                 
922,Childrens & Education Services,Promoting Improved SEN Support,Therapy in School-SEN(PCT Sals,K90029,Employees                     ,Direct Employee Expenses      ,AA17,Agency Staff & Casual Paymts            ,630,04/10/2013,R,REDACTED
923,Childrens & Education Services,Admissions & Planning Sch Prov,Retained Schools Budgets,K90030,Supplies & Services           ,Prntng Stnry Gen Off Exp      ,DE22,Marketing                               ,"2,900.00",30/09/2013,R,GREBOT DONNELLY  ASSOCIAT. LTD
924,Childrens & Education Services,Admissions & Planning Sch Prov,Retained Schools Budgets,K90030,Supplies & Services           ,Expenses                      ,DH17,Advances                                ,"1,400.00",16/11/2012,R,REDACTED
925,Childrens & Education Services,Admissions & Planning Sch Prov,Retained Schools Budgets,K90030,Supplies & Services           ,Expenses                      ,DH17,Advances                                ,"5,000.00",19/09/2013,R,PAVILLION OPERA EDU TRUST     
926,Childrens & Education Services,Facilitating School Improvemnt,SSQ CORE OFFER - EMAG (DSG),K90041,Supplies & Services           ,Expenses                      ,DH02,Conferences                             ,900,08/10/2013,R,ST JOSEPH CATHOLIC PRIMARY SCH
927,Childrens & Education Services,Facilitating School Improvemnt,SSQ CORE OFFER - EMAG (DSG),K90041,Supplies & Services           ,Expenses                      ,DH17,Advances                                ,"1,400.00",23/09/2013,R,HILLCROSS PRIMARY SCHOOL      
928,Childrens & Education Services,Nursery schools,EARLY YEARS NURSERY GRANTS,K90042,Supplies & Services           ,Grants and Subscriptions      ,DJ57,Nursery Grant Payment-4yr olds          ,"3,739.68",22/10/2013,R,BLOSSOM HOUSE SCHOOL          
929,Childrens & Education Services,Nursery schools,EARLY YEARS NURSERY GRANTS,K90042,Supplies & Services           ,Grants and Subscriptions      ,DJ57,Nursery Grant Payment-4yr olds          ,"6,468.00",22/10/2013,R,MONTIS DAY NURSERY            
930,Childrens & Education Services,Nursery schools,EARLY YEARS NURSERY GRANTS,K90042,Supplies & Services           ,Grants and Subscriptions      ,DJ57,Nursery Grant Payment-4yr olds          ,"1,360.80",14/10/2013,R,CHERUBS @ NEWMINSTER          
931,Childrens & Education Services,Nursery schools,EARLY YEARS NURSERY GRANTS,K90042,Supplies & Services           ,Grants and Subscriptions      ,DJ57,Nursery Grant Payment-4yr olds          ,"3,880.80",15/10/2013,R,FIRST LITTLE STEPS            
932,Childrens & Education Services,Nursery schools,EARLY YEARS NURSERY GRANTS,K90042,Supplies & Services           ,Grants and Subscriptions      ,DJ57,Nursery Grant Payment-4yr olds          ,"6,468.00",07/10/2013,R,BUMBLE BEES'S DAY NURSERY-COCC
